Workbook

Sheet Main Page
B1: Virginia Department of Education | O1: 1
B2: Office of ESEA Programs
B3: P. O. Box 2120
B4: Richmond, Virginia 23218-2120
B6: Title I, Part A, Improving Basic Programs
A8: Due by: | G8: 2024-07-01
G9: =YEAR(G8) & "-" & YEAR(G8)+1 -> 2024-2025
B12: Select the division name from the dropdown box. The division number will auto populate.
A13: School Division: | F13: Albemarle County Public Schools
A14: Division Number: | F14: =IF(ISBLANK(F13)," ",VLOOKUP(F13,Prefills!A6:B144,2)) -> 2
C17: Select the appropriate tab(s) and press the "Print" button. | K17: Select the appropriate button to move to the desired section within the application.
C18: Print Application | K18: Application Directory
B19: Tab # | C19: Check Mark | D19: Tab Name | J19: Cell# | K19: Push This Button to go to the Desired Page
A20: FALSE | B20: 1 | D20: Print All Tabs Below | I20: 1 | J20: B6
A21: FALSE | B21: 2 | D21: Budget Check | I21: 2 | J21: D7
A22: FALSE | B22: 3 | D22: Narrative | I22: 3 | J22: B108
A23: FALSE | B23: 4 | D23: Budget | I23: 4 | J23: B143
A24: FALSE | B24: 5 | D24: Transferability | I24: 5 | J24: B149
A25: FALSE | B25: 6 | D25: GEPA | I25: 6 | J25: B2
A26: FALSE | B26: 7 | D26: Program Requirements | I26: 7 | J26: B51
A27: FALSE | B27: 8 | D27: 35% and Above Low-Income | I27: 8 | J27: B2
A28: FALSE | B28: 9 | D28: Below 35% Low-Income | I28: 9 | J28: B53
A29: FALSE | B29: 10 | D29: Private School | I29: 10 | J29: B2
A30: FALSE | B30: 11 | D30: School Improvement | I30: 11 | J30: B2
A31: FALSE | B31: 12 | D31: Skipped School Provision | I31: 12 | J31: B10
A32: FALSE | B32: 13 | D32: Neglected | I32: 13 | J32: B17
A33: FALSE | B33: 14 | D33: Foster Care and Homeless | I33: 14 | J33: B24
A34: FALSE | B34: 15 | D34: Early Childhood | I34: 15 | J34: B34
A35: FALSE | B35: 16 | D35: Expenditure Descriptions | I35: 16 | J35: B46
A36: FALSE | B36: 17 | D36: General Assurances | I36: 17 | J36: B52
A37: FALSE | B37: 18 | D37: Program Specific Assurances | I37: 18 | J37: B61
A38: TRUE | I38: 19 | J38: B65
A39: TRUE | I39: 20 | J39: B70
I40: 21 | J40: B2
I41: 22 | J41: B2
I42: 23 | J42: B2
I43: 24 | J43: B2
I44: 25 | J44: B2
I45: 26 | J45: B2
I46: 27 | J46: B2
I47: 28 | J47: B2
I48: 29 | J48: B2
I49: 30 | J49: B2
I50: 31 | J50: B2

Sheet Budget Check
B1: Virginia Department of Education
B2: Office of ESEA Programs
B3: P. O. Box 2120
B4: Richmond, Virginia 23218-2120
B6: Title I, Part A, Improving Basic Programs
B8: ='Main Page'!G9 -> 2024-2025
B9: Autocalculated Budget Check
B10: Note: Only budget errors will display in column D. If column D is blank after the Budget and Transferability tabs have been updated the budgets are balanced.
B12: School Division: | D12: ='Main Page'!F13 -> Albemarle County Public Schools
B13: Division Number: | D13: ='Main Page'!F14 -> 2
B15: Budget Tab
B16: 1000 | C16: Total Personnel Services | D16: =IF(Budget!O13="Yes","","Budget summary does not match the detailed budget breakdown") -> 
B17: 2000 | C17: Total Employee Benefits | D17: =IF(Budget!O18="Yes","","Budget summary does not match the detailed budget breakdown") -> 
B18: 3000 | C18: Total Purchased/Contracted Services | D18: =IF(Budget!O23="Yes","","Budget summary does not match the detailed budget breakdown") -> 
B19: 4000 | C19: Total Internal Services | D19: =IF(Budget!O28="Yes","","Budget summary does not match the detailed budget breakdown") -> 
B20: 5000 | C20: Total Other Charges | D20: =IF(Budget!O33="Yes","","Budget summary does not match the detailed budget breakdown") -> 
B21: 6000 | C21: Total Materials & Supplies | D21: =IF(Budget!O38="Yes","","Budget summary does not match the detailed budget breakdown") -> 
B22: 8000 | C22: Total Capital Outlay | D22: =IF(Budget!O43="Yes","","Budget summary does not match the detailed budget breakdown") -> 
C23: Does the Budget Summary Match the Total Allocation? | D23: =IF(Budget!H47="Yes", "","Budget summary does not match the total allocation") -> 
B24: Detailed Budget Breakdown
C25: Does the Detailed Budget Breakdown Match the Total Allocation? | D25: =IF(Budget!I53="Yes", "","Detailed budget breakdown does not match the total allocation") -> 
B27: Transferability Tab
B28: 1000 | C28: Total Personnel Services | D28: =IF(Transferability!O15="Yes","","Transferability budget summary does not match the detailed budget breakdown") -> 
B29: 2000 | C29: Total Employee Benefits | D29: =IF(Transferability!O20="Yes","","Transferability budget summary does not match the detailed budget breakdown") -> 
B30: 3000 | C30: Total Purchased/Contracted Services | D30: =IF(Transferability!O25="Yes","","Transferability budget summary does not match the detailed budget breakdown") -> 
B31: 4000 | C31: Total Internal Services | D31: =IF(Transferability!O30="Yes","","Transferability budget summary does not match the detailed budget breakdown") -> 
B32: 5000 | C32: Total Other Charges | D32: =IF(Transferability!O35="Yes","","Transferability budget summary does not match the detailed budget breakdown") -> 
B33: 6000 | C33: Total Materials & Supplies | D33: =IF(Transferability!O40="Yes","","Transferability budget summary does not match the detailed budget breakdown") -> 
B34: 8000 | C34: Total Capital Outlay | D34: =IF(Transferability!O45="Yes","","Transferability budget summary does not match the detailed budget breakdown") -> 
C35: Does the Transferability Budget Summary Match the Amount Transferred into Program? | D35: =IF(Transferability!H49="Yes", "","Transferability budget summary does not match the amount transferred into program") -> 
B36: Detailed Budget Breakdown
C37: Does the Transferability Detailed Budget Breakdown Match the Transferability Allocation? | D37: =IF(Transferability!J55="Yes", "","Transferability detailed budget breakdown does not match the transferability allocation") -> 

Sheet Narrative
N1: Place an "X" by the applicable response.
D2: Virginia Department of Education | N2: X | O2: Original
D3: Office of ESEA Programs
D4: P. O. Box 2120 | O4: Revision:
D5: Richmond, Virginia 23218-2120 | O5: Revision #
O6: Date:
D7: A. COVER PAGE | O7: Explain
D8: ='Main Page'!B6 -> Title I, Part A, Improving Basic Programs | O8: Amendment:
O9: Amendment #
D10: ='Main Page'!G9 -> 2024-2025 | O10: Date:
D11: Individual Program Application | O11: Explain
D13: ="Due by " & TEXT('Main Page'!G8,"mmmm dd, yyyy") -> Due by July 01, 2024
D14: Elementary and Secondary Education Act of 1965 (ESEA), as amended by
D15: the Every Student Succeeds Act of 2015 (ESSA), Public Law 114-95
B17: To be Completed by School Division
B18: Applicant (Legal Name of Agency): | I18: Division Number: | K18: Title I, Part A, Coordinator:
B19: ='Main Page'!$F$13 -> Albemarle County Public Schools | I19: ='Main Page'!$F$14 -> 2 | K19: Andrea Blount
B20: Mailing Address (Street, City or Town, Zip Code): | I20: Phone: | K20: 434-296-5820 | N20: Ext:
B21: 401 McIntire Road Charlottesville, VA 22902 | I21: Email:
I22: ablount@k12albemarle.org
B24: LOCAL EDUCATIONAL AGENCY CERTIFICATION
B25: Use of Funds: The applicant designated above applies for an allocation of federal assistance as appropriated under ESEA. Funds are available to support local education reform efforts that are consistent with statewide education reform efforts to: 1) provide funding to implement promising education reform programs and school improvement programs based on evidence-based research; 2) provide a continuing source of innovative and educational improvement; 3) meet the educational needs of all students; and 4) develop and implement education programs to improve student achievement and teacher performance. Specific uses of funds for this application are found in the "Guidelines, Instructions, and Assurances" document.
B27: Assurances: The local educational agency assures that Title I, Part A, will be administered and implemented in compliance with all applicable statutes, regulations, policies, and program plans under ESEA. Additionally, the local educational agency agrees by signing below to implement the general and program specific assurances included in the application. The assurances and signed cover page are to be retained at the division level and, for the Title I, Part A, application (individual or consolidated form), a scanned PDF of the signed cover page must be uploaded to the ESEA SharePoint Site (below).
B28: ESEA SharePoint
B30: Certification: We hereby certify that, to the best of our knowledge, the information contained in this application is correct. The agency named above has authorized us as its representatives to file this application, and such action is recorded in the minutes of the School Board meeting held
B31: on | C31: 2024-06-13 | F31: .
B34: Superintendent’s Signature | I34: Board Chairperson’s Signature
B35: Dr. Matthew S. Haas | I35: Judy Le
B36: Superintendent’s Name | I36: Board Chairperson’s Name
B37: 2024-06-13 | I37: 2024-06-13
B38: Date | I38: Date
B40: ="Application Submission, Approval, and LEA Expenditure of Funds: Applications for Federal Funds are due by " & TEXT('Main Page'!G8,"mmmm dd, yyyy") & ". Revisions and Amendments should be submitted in a timely manner. " -> Application Submission, Approval, and LEA Expenditure of Funds: Applications for Federal Funds are due by July 01, 2024. Revisions and Amendments should be submitted in a timely manner.
B41: ="Please note, in order for the funds to be expendable by " & TEXT('Main Page'!G8,"mmmm dd, yyyy") & ", the electronic application must be received at the Virginia Department of Education by " & TEXT('Main Page'!G8,"mmmm dd, yyyy") & ", through the file submission process of the Online Management of Education Grant Awards (OMEGA) system. " -> Please note, in order for the funds to be expendable by July 01, 2024, the electronic application must be received at the Virginia Department of Education by July 01, 2024, through the file submission process of the Online Management of Education Grant Awards (OMEGA) system.
B44: Page 1
B45: ='Main Page'!$G$9 -> 2024-2025 | C45: School Division: | E45: ='Main Page'!$F$13 -> Albemarle County Public Schools | I45: Division Number: | J45: ='Main Page'!$F$14 -> 2 | K45: ='Main Page'!$B$6 -> Title I, Part A, Improving Basic Programs
B46: APPLICATION INFORMATION
B48: =YEAR('Main Page'!$G$8)-1 & "-" & YEAR('Main Page'!$G$8) -> 2023-2024 | D48: =YEAR('Main Page'!$G$8)-1 & "-" & YEAR('Main Page'!$G$8) -> 2023-2024 | F48: ELIGIBLE PROGRAM | O48: ='Main Page'!G9 -> 2024-2025
B49: Allocation | D49: Consolidated Yes or No | O49: Allocation Total
B50: =IF(ISBLANK('Main Page'!$F$13)," ",VLOOKUP('Main Page'!$F$14,Prefills!D6:F144,3)) -> 1713686.78 | D50: No | F50: Title I, Part A, Improving Basic Programs Operated by the LEAs | O50: 1713686.78
F51: Title II, Part A Transferability | O51: =O61 -> 0
F52: Title IV, Part A Transferability | O52: =O64 -> 120097.83
F53: Total Allocation | O53: =SUM(O50:Q52) -> 1833784.61
B55: TRANSFERABILITY
B57: Section 5103(b)(2) of the Every Student Succeeds Act allows LEAs to transfer funds between certain qualifying federal programs. If funds are transferred out of the Title II, Part A, or Title IV, Part A programs, PRIOR APPROVAL IS REQUIRED, and a separate Transferability approval form must be submitted.
B58: Transfer Request Form
B60: Program from which funds will be transferred | H60: Program TO which funds will be transferred: | O60: Amount
B61: Title II, Part A | G61: TO | H61: Title I, Part A, Improving Basic Programs Operated by the LEAs
B63: Program from which funds will be transferred | H63: Program TO which funds will be transferred: | O63: Amount
B64: Title IV, Part A | G64: TO | H64: Title I, Part A, Improving Basic Programs Operated by the LEAs | O64: 120097.83
B65: Page 2
B66: ='Main Page'!$G$9 -> 2024-2025 | C66: School Division: | E66: ='Main Page'!$F$13 -> Albemarle County Public Schools | I66: Division Number: | J66: ='Main Page'!$F$14 -> 2 | K66: ='Main Page'!$B$6 -> Title I, Part A, Improving Basic Programs
B67: REVISIONS AND AMENDMENTS
B69: Place an "X" in the first box indicating whether it is a revision or amendment. Enter the date of the revision or amendment. Indicate the tab(s) that have been changed. Provide a concise description of changes (for example, "Programmatic Changes--purchase of additional reading materials, object code 6000; Budget Changes--decreased travel budget in object code 5000 and increased materials to purchase additional reading materials in object code 6000"). When completing an amendment, changes to the program overview may be reflected as additions at the end of the narrative. NOTE: Any changes to the program budget should first be reflected in an amended application, followed by a budget transfer within 7 business days of approval of the amended application. Budget transfers will not be accepted without an approved amended application reflecting budget changes.
B70: 1. | C70: Revision: | F70: Date:
C71: Amendment: | F71: Date:
B73: 2. | C73: Revision: | F73: Date:
C74: Amendment: | F74: Date:
B76: 3. | C76: Revision: | F76: Date:
C77: Amendment: | F77: Date:
B79: 4. | C79: Revision: | F79: Date:
C80: Amendment: | F80: Date:
B82: 5. | C82: Revision: | F82: Date:
C83: Amendment: | F83: Date:
B85: 6. | C85: Revision: | F85: Date:
C86: Amendment: | F86: Date:
B88: 7. | C88: Revision: | F88: Date:
C89: Amendment: | F89: Date:
B91: 8. | C91: Revision: | F91: Date:
C92: Amendment: | F92: Date:
B94: 9. | C94: Revision: | F94: Date:
C95: Amendment: | F95: Date:
B97: 10. | C97: Revision: | F97: Date:
C98: Amendment: | F98: Date:
B100: 11. | C100: Revision: | F100: Date:
C101: Amendment: | F101: Date:
B103: 12. | C103: Revision: | F103: Date:
C104: Amendment: | F104: Date:
B106: Page 3
B107: ='Main Page'!$G$9 -> 2024-2025 | C107: School Division: | E107: ='Main Page'!$F$13 -> Albemarle County Public Schools | I107: Division Number: | J107: ='Main Page'!$F$14 -> 2 | K107: ='Main Page'!$B$6 -> Title I, Part A, Improving Basic Programs
B108: B. PROGRAM OVERVIEW (2 PAGES)
B109: In narrative format:
B110: Describe how the local educational agency’s program activities will align with Virginia’s challenging State academic standards, accountability plan, and agency priorities of setting high expectations for student performance; ensuring every K-12 student has a high quality, licensed teacher; creating innovative pathways for every learning; and promoting parents as partners to increase student achievement. In your description, please include the following information:
C111: a. | D111: The development and implementation of a well-rounded program of instruction to meet the academic needs of all students;
C112: b. | D112: The identification of students who may be at risk for academic failure;
C113: c. | D113: The provision of additional educational assistance to individual students the local educational agency or school determines need help in meeting the challenging State academic standards; and
C114: d. | D114: The identification and use of evidence-based practices intended to strengthen academic programs and improve school conditions for student learning.
B115: 1a. | C115: Identify the core instructional reading program(s) and any supplemental or intervention reading programs used in both Title I and non-Title I schools.
B116: Albemarle County Public Schools has adopted HMH Into Reading as our core reading program. HMH will be supplemented with additional programs to enhance literacy skills. The supplemental and intervention programs used will be UFLI, SIPPS and Lexia.
B118: 1b. | C118: Identify the core instructional math program(s) and any supplemental or intervention math programs used in both Title I and non-Title I schools.
B119: Math Investigations from Savvas is our core instructional resource. ST Math is used as a supplemental grade-level curriculum to focus on abstract and conceptual learning without language. Zearn is utilized as a supplemental intervention for math, providing targeted support to enhance students’ mathematical proficiency and reinforce classroom learning.
B121: 1c. | C121: Describe the division's instructional program as supported by the federal grant. Explain how the instructional program is supported through evidence-based practices and how the instructional program or program of services supplements, not supplants, the core instructional program or services offered by the LEA to all students and/or all schools. For Title I, Part A, include delivery model (targeted assistance and/or schoolwide), subject(s) addressed, grade span(s), etc.
B122: Albemarle County Public Schools (ACPS) is a growing school division now serving 14,182 students at fifteen elementary schools, six middle schools, and four high schools. Our strategic student-centered mission remains that all students will graduate having actively mastered the lifelong learning competencies they need to succeed as 21st-century learners, workers, and citizens. To meet this goal and ensure schools reach their accreditation targets, ACPS will focus Title I funds on literacy in the six elementary schools and two preschool programs we will serve through the whole school model. School eligibility for Title I services is determined by elementary schools with a CEP-based poverty index above 45% based on the January 2024 CEP Report. The Low-Income Factor Above 45% formula has been used to determine school allocations for the 2024-25 school year. To provide support and leadership to teachers and administrators at identified schools, Title I monies fund positions to ensure compliance and administrative and technical support to teachers and principals in all identified schools. During the school year 2024-2025, our FTE levels for Title I schools will decrease due to the cost of staff in comparison to several years ago. Many students are academically challenged in reading as measured by VALLS and other assessments detailed in the application.
B125: Page 4
B126: ='Main Page'!$G$9 -> 2024-2025 | C126: School Division: | E126: ='Main Page'!$F$13 -> Albemarle County Public Schools | I126: Division Number: | J126: ='Main Page'!$F$14 -> 2 | K126: ='Main Page'!$B$6 -> Title I, Part A, Improving Basic Programs
B127: B. PROGRAM OVERVIEW (CONTINUED)
B129: 2. | C129: Identify the multiple data sources relevant to the purpose of Title I, Part A, and describe the needs assessment process including a brief analysis of student achievement data, teacher licensure, parent engagement activities and other data sources reviewed. This data analysis will correlate with the measurable objectives that will guide the development of the program to be funded with the requested ESEA federal funds.
B130: ACPS Title I schools will use new Fall data elements to determine eligibility for reading support services through Title I. VALLS summed scores will be used to identify students in the High-Risk Bands as determined by VALLS in grades K-3. In upper elementary (4-5) DIBELS data will be used to identify students needing services. Midyear and spring assessment data in the same areas will be reviewed to inform progress and identify best instruction practices to ensure progress to achieve goals. SOL data for 3rd- 5th graders will also be reviewed as another data point. Teachers in our Title I schools are licensed according to our IPAL report. We will continue to make sure that occurs as staff turns over. Parent engagement survey results are used to inform and tailor our family engagement strategies, ensuring they address the specific needs and preferences of our parent community.
B133: 3. | C133: For Title I, Part A, explain how the division ensures that meaningful parent and family engagement activities are planned and implemented at each Title I school. Please also include all PFE related expenses, such as: personnel, activities, stipends, etc.
B134: ACPS Title I staff provides coordination, technical assistance, and other support to assist Title I schools in planning and implementing effective parental involvement activities that improve student academic achievement and school performance. Each school annually updates its parental involvement plan with input from Title I families. The Title I Coordinator assists with the review of written plans and attendance at events as needed. The Title I Coordinator connects with a variety of other departments, including Community Engagement and EL, to provide the best possible experiences for our families. While the Division shares best practices and ideas with school teachers and administrators, attendance demonstrates that school-based programs are the most meaningful to families.
B135: The six Title I schools hold carefully planned Family Reading/Literacy evening events each semester, with the Fall program designed to acquaint and involve parents with the Title I mission, program design, and goals, as well as supportive practices at home. Interpreters are used when needed during PFE events to bridge the communication gap and ensure the effective involvement of all parents and family members. An academic content theme is typically part of the event design. The Spring programs follow a similar approach, but to help parents focus on summer literacy and continued academic support at home, based on the use of engaging family activities. Take-home books are included with both Fall and Spring Family events. The expenses for the books run about $7 per book. Take-home reading books and games for interactive approaches for parents are also planned for use in bridging the home-school connection. Restaurant meals and food/snacks (grocery store) for events and meetings, paper products, books, materials for games to enhance learning, and other instructional materials are planned purchases using Title I PFE funds.
B137: 4. | C137: Describe the results of prior activities funded with Title I and how the division will use data to continually update and improve activities supported with Title I, Part A, funds. Describe progress made toward meeting measurable objectives from the 2023 application.
B138: The results of parent-family engagement nights funded by Title I demonstrate increased participation and satisfaction among parents, as evidenced by higher attendance rates and positive feedback collected through surveys. The division will utilize this data to identify areas of strength and improvement in current activities supported by Title I funds. By analyzing survey responses and attendance trends, we can tailor our family engagement initiatives to better meet the needs and preferences of parents, ultimately fostering stronger partnerships between home and school. Additionally, insights gleaned from the data will inform the development of new strategies and activities aimed at maximizing the impact of Title I funds on parent engagement and student success. Data from our Fall Title I parent family engagement survey results were used in the planning of our Spring Title I parent family engagement nights.
B141: Page 5
B142: ='Main Page'!$G$9 -> 2024-2025 | C142: School Division: | E142: ='Main Page'!$F$13 -> Albemarle County Public Schools | I142: Division Number: | J142: ='Main Page'!$F$14 -> 2 | K142: ='Main Page'!$B$6 -> Title I, Part A, Improving Basic Programs
B143: C. COORDINATION OF SERVICES
B145: Describe the partnerships within the division among the programs in this application and other federal, state, and/or local programs in the delivery of services to the targeted population(s). Describe the collaboration of program staff, parents, and the community to provide services and activities that will contribute to the attainment of the measurable objectives in this application.
B146: To optimize the division's instructional program for teachers, parents, and students in preschool through grade five, a monthly meeting of federal program leadership is held and includes coordinators of Title I, Parts A and Part C, Title II, Title III, Adult EL, and Homeless. Title I and Title III, along with Community Engagement and Adult EL, collaborate as follows: The Office of Instruction staff share methods to increase parent involvement; impact family literacy; help families support instruction in the home; provide interpretive services to increase parent participation at school events; and arrange transportation for families from identified communities to school events. Adult Education provides English Literacy classes for families and the EL and International Office partners with local community organizations to provide family literacy. Partial salary for the ACPS Homeless Liaison is funded through this grant. Albemarle County hosts four preschool programs [Bright Stars, Title I, MACAA’s Head Start, and Early Childhood Special Education (ECSE)] which cooperate to serve the needs of students, families, and teachers. This “Albemarle County Preschool Network” collaborates to support joint professional development for teachers, parent training and workshops at individual schools, and enrichment activities that support success for all at-risk children. ACPS will work with the Greater United Way of Charlottesville (Region Lead) as a Ready Region Blue Ridge Partner. The Preschool Leadership Team meets monthly to coordinate and plan for program needs, public awareness, and continuous quality improvements.
B149: D. MEASURABLE OBJECTIVES
B151: What is a Measurable Objective? A measurable objective has four components: 1) Subject (Who is the target or focus?); 2) Behavior (What will be changed/improved?); 3) Specific criteria for assessing improvement, readiness, or achievement, and tools to be used to measure effectiveness; and 4) Time period for performance or assessment.
B152: 1. | C152: State up to ten measurable objectives that will guide the development of the program to be funded with the requested ESEA federal funds.
B153: 2. | C153: Describe the evidence-based research that supports the services and activities (programs, models, instructional methods, and techniques) that will be implemented to achieve each objective and that will be supported by the requested funds.
B154: 3. | C154: Include all applicable grade spans supported by Title I, Part A funding.
B156: Measurable Objective 1:
B157: By the end of the 2024- 2025 school year, 80% of Title I students in K-1 will be in the yellow or green risk bands as determined by the VALLSS assessment. The assessment will be administered three times over the school year to monitor growth.
B160: Evidence-based research strategies, services, and activities that will be implemented and supported by the requested funds to achieve the objective:
B161: Professional development to improve literacy instruction for Title I students will be offered to their classroom teachers in partnership with their Title I teachers. Targeted areas for professional development will be based on the needs identified by the VALLS reports and other assessment indicators. In coordination with the Response to Intervention (RTI) model, teachers will receive professional development in administering and interpreting progress monitoring tools. This assessment information will inform teachers of student growth and equip them to make necessary adjustments to instruction. Teacher teams will develop Student Learning Plans as created by the VDOE for identified students. These plans will include targets for growth and will be shared with parents quarterly. Professional Learning Communities (PLCs) will provide the structure for grade-level conversations to improve student achievement. Conversations and action plans will be individualized for each Title I student.
B164: Page 6
B165: ='Main Page'!$G$9 -> 2024-2025 | C165: School Division: | E165: ='Main Page'!$F$13 -> Albemarle County Public Schools | I165: Division Number: | J165: ='Main Page'!$F$14 -> 2 | K165: ='Main Page'!$B$6 -> Title I, Part A, Improving Basic Programs
B166: D. MEASURABLE OBJECTIVES (CONTINUED)
B168: Measurable Objective 2:
B169: By the end of the 2024-2025 school year, 90% of Title I students in grades 4-5 will show more than a year’s growth according to DIBELS benchmarks -- advancing at least one grade level on the ORF task. This assessment will be administered three times for the school year to monitor for growth.
B172: Evidence-based research strategies, services, and activities that will be implemented and supported by the requested funds to achieve the objective:
B173: Professional development to improve literacy instruction for Title I students will be offered to classroom teachers in partnership with their Title I teachers. Targeted areas for professional development will be based on literacy assessment indicators. In coordination with the Response to Intervention (RTI) model, teachers will receive professional development in administering and interpreting progress monitoring tools. This assessment information will inform teachers of student growth and equip them to make necessary adjustments to instruction.
B174: Teacher teams will develop Student Learning Plans as created by the VDOE for identified students. These plans will include targets for growth and will be shared with parents quarterly. Professional Learning Communities (PLCs) will provide the structure for grade-level conversations to improve student achievement. Conversations and action plans will be individualized for each Title I student and will be based on assessment and progress monitoring data.
B176: Measurable Objective 3:
B177: By the end of the 2024-2025 school year, all Title I schools will meet accreditation requirements in the “All” category and in the related subgroups in grades 3, 4, and 5 as verified by the 2025 Reading and Math SOLs.
B180: Evidence-based research strategies, services, and activities that will be implemented and supported by the requested funds to achieve the objective:
B181: Professional development to improve literacy instruction for Title I students will be offered to classroom teachers in partnership with their Title I teachers. Targeted areas for professional development will be based on identified needs. In coordination with the Response to Intervention (RTI) model, teachers will receive professional development in administering and interpreting progress monitoring tools. This assessment information will inform teachers of student growth and equip them to make necessary adjustments to instruction. Additionally, our math and Language Arts Coordinators will work in our Title I schools to ensure the best instructional practices around the new SOLs.
B184: Page 7
B185: ='Main Page'!$G$9 -> 2024-2025 | C185: School Division: | E185: ='Main Page'!$F$13 -> Albemarle County Public Schools | I185: Division Number: | J185: ='Main Page'!$F$14 -> 2 | K185: ='Main Page'!$B$6 -> Title I, Part A, Improving Basic Programs
B186: D. MEASURABLE OBJECTIVES (CONTINUED)
B188: Measurable Objective 4:
B189: By the end of the 2024-25 school year, 100% of the students in the Title I Preschool programs at Red Hill and Agnor Hurt Elementary Schools will score within the VALLSS-identified developmental ranges for the preschool tasks.
B192: Evidence-based research strategies, services, and activities that will be implemented and supported by the requested funds to achieve the objective:
B193: Title I Preschool teachers will continue professional development with other teachers in the Albemarle County Preschool Network, working towards common curriculum, instruction, and assessment practices that align with the ACPS Framework for Quality Learning. The ACPS Preschool Curriculum, The Creative Curriculum for Preschool by Teaching Strategies vertically aligns with the ACPS English Language Arts Curriculum Framework and the ACPS Mathematics Curriculum Framework to streamline instruction between preschool and elementary grades. Families of children selected for the Title I Preschool classrooms commit to attending regular meetings with the teacher and participating in school-based opportunities that promote supporting their child’s
B194: success in school and life. In coordination with the Response to Intervention (RTI) model, teachers will receive professional development in administering and interpreting progress monitoring tools. This assessment information will inform teachers of student growth and equip them to make necessary adjustments to instruction.
B196: Measurable Objective 5:
B197: By the end of the 2024- 2025 school year, 75% of parents of students receiving Title I services will have been asked for input on what family engagement needs and opportunities they would like to participate in during the school year.
B200: Evidence-based research strategies, services, and activities that will be implemented and supported by the requested funds to achieve the objective:
B201: Title I Parent Nights are held in the Fall and Spring and provide opportunities for teachers to engage with parents through a variety of approaches. These include literacy activities, family meals, presentations on Title I programming, curriculum and performance standards, take-home books, book read-alouds, and interactive learning activities. Parents will complete surveys and provide other responses to assist with developing programs reflecting their choices for Title I events and activities.
B204: Page 8
B205: ='Main Page'!$G$9 -> 2024-2025 | C205: School Division: | E205: ='Main Page'!$F$13 -> Albemarle County Public Schools | I205: Division Number: | J205: ='Main Page'!$F$14 -> 2 | K205: ='Main Page'!$B$6 -> Title I, Part A, Improving Basic Programs
B206: D. MEASURABLE OBJECTIVES (CONTINUED)
B208: Measurable Objective 6:
B209: In Greer Elementary School the counselor will work to decrease the number of referrals and truancy by 10%.
B212: Evidence-based research strategies, services, and activities that will be implemented and supported by the requested funds to achieve the objective:
B213: At Greer the truancy rate is 5.14% which is the highest among our elementary schools. Six and a half percent of students at Greer have a discipline referral which is above the average for our Title I schools.
B216: Measurable Objective 7:
B220: Evidence-based research strategies, services, and activities that will be implemented and supported by the requested funds to achieve the objective:
B224: Page 9
B225: ='Main Page'!$G$9 -> 2024-2025 | C225: School Division: | E225: ='Main Page'!$F$13 -> Albemarle County Public Schools | I225: Division Number: | J225: ='Main Page'!$F$14 -> 2 | K225: ='Main Page'!$B$6 -> Title I, Part A, Improving Basic Programs
B226: D. MEASURABLE OBJECTIVES (CONTINUED)
B228: Measurable Objective 8:
B232: Evidence-based research strategies, services, and activities that will be implemented and supported by the requested funds to achieve the objective:
B236: Measurable Objective 9:
B240: Evidence-based research strategies, services, and activities that will be implemented and supported by the requested funds to achieve the objective:
B244: Page 10
B245: ='Main Page'!$G$9 -> 2024-2025 | C245: School Division: | E245: ='Main Page'!$F$13 -> Albemarle County Public Schools | I245: Division Number: | J245: ='Main Page'!$F$14 -> 2 | K245: ='Main Page'!$B$6 -> Title I, Part A, Improving Basic Programs
B246: D. MEASURABLE OBJECTIVES (CONTINUED)
B248: Measurable Objective 10:
B252: Evidence-based research strategies, services, and activities that will be implemented and supported by the requested funds to achieve the objective:
B255: Page 11

Sheet Budget
B1: ='Main Page'!$G$9 -> 2024-2025 | D1: School Division: | E1: ='Main Page'!$F$13 -> Albemarle County Public Schools | I1: Division Number: | J1: ='Main Page'!$F$14 -> 2 | K1: ='Main Page'!$B$6 -> Title I, Part A, Improving Basic Programs
B2: E. BUDGET SUMMARY
B4: (Projected dollar amount of Title I, Part A, funds required for administration and implementation of this program. Enter the budget in the unlocked cells.)
H6: Title I, Part A Budget for 2024-2025 Award: S010A240046 Project Code: APE42901
H7: Allocation: | N7: =Narrative!O50 -> 1713686.78
B8: OBJECT CODE | C8: EXPENDITURE | H8: AMOUNT BUDGETED | O8: DOES THE BUDGET SUMMARY MATCH THE DETAILED BUDGET BREAKDOWN?
B9: 1000 - Personnel Services | C9: Non Set-Aside | H9: =SUMIF($K$61:$N$86,"",$P$61:$Q$86) -> 804334
C10: Set-Aside | H10: =SUMIF($K$61:$N$86,"Div*",$P$61:$Q$86)+SUMIF($K$61:$N$86,"Early*",$P$61:$Q$86)+SUMIF($K$61:$N$86,"Fost*",$P$61:$Q$86)+SUMIF($K$61:$N$86,"Home*",$P$61:$Q$86)+SUMIF($K$61:$N$86,"Negl*",$P$61:$Q$86)+SUMIF($K$61:$N$86,"Sala*",$P$61:$Q$86)+SUMIF($K$61:$N$86,"CSI*",$P$61:$Q$86) -> 410698
C11: Parent and Family Engagement Set-Aside | H11: =SUMIF($K$61:$N$86,"PFE*",$P$61:$Q$86) -> 0
C12: Private School Set-Aside | H12: =SUMIF($K$61:$N$86,"Priv*",$P$61:$Q$86) -> 12047.61
C13: Total Personal Services | H13: =SUM(H9:N12) -> 1227079.61 | O13: =IF(SUM(P87)=SUM(H13),"Yes", "No - Please review your entries.") -> Yes
B14: 2000 - Employee Benefits | C14: Non Set-Aside | H14: =SUMIF($M$97:$O$135,"",$P$97:$Q$135) -> 302580
C15: Set-Aside | H15: =SUMIF($M$97:$O$135,"Div*",$P$97:$Q$135)+SUMIF($M$97:$O$135,"Early*",$P$97:$Q$135)+SUMIF($M$97:$O$135,"Fost*",$P$97:$Q$135)+SUMIF($M$97:$O$135,"Home*",$P$97:$Q$135)+SUMIF($M$97:$O$135,"Negl*",$P$97:$Q$135)+SUMIF($M$97:$O$135,"Emp*",$P$97:$Q$135)+SUMIF($M$97:$O$135,"CSI*",$P$97:$Q$135) -> 164636.67
C16: Parent and Family Engagement Set-Aside | H16: =SUMIF($M$97:$O$135,"PFE*",$P$97:$Q$135) -> 0
C17: Private School Set-Aside | H17: =SUMIF($M$97:$O$135,"Priv*",$P$97:$Q$135) -> 921.64
C18: Total Employee Benefits | H18: =SUM(H14:N17) -> 468138.31 | O18: =IF(SUM(P136)=SUM(H18),"Yes","No - Please review your entries.") -> Yes
B19: 3000 - Purchased/ Contracted Services | C19: Non Set-Aside | H19: =SUMIF($M$145:$O$182,"",$P$145:$Q$182) -> 0
C20: Set-Aside | H20: =SUMIF($M$145:$O$182,"Div*",$P$145:$Q$182)+SUMIF($M$145:$O$182,"Early*",$P$145:$Q$182)+SUMIF($M$145:$O$182,"Fost*",$P$145:$Q$182)+SUMIF($M$145:$O$182,"Home*",$P$145:$Q$182)+SUMIF($M$145:$O$182,"Negl*",$P$145:$Q$182) -> 0
C21: Parent and Family Engagement Set-Aside | H21: =SUMIF($M$145:$O$182,"PFE*",$P$145:$Q$182) -> 7828.23
C22: Private School Set-Aside | H22: =SUMIF($M$145:$O$182,"Priv*",$P$145:$Q$182) -> 0
C23: Total Purchased/Contracted Services | H23: =SUM(H19:N22) -> 7828.23 | O23: =IF(SUM(P183)=SUM(H23),"Yes","No - Please review your entries.") -> Yes
B24: 4000 - Internal Services | C24: Non Set-Aside | H24: =SUMIF($M$193:$O$230,"",$P$193:$Q$230) -> 0
C25: Set-Aside | H25: =SUMIF($M$193:$O$230,"Div*",$P$193:$Q$230)+SUMIF($M$193:$O$230,"Early*",$P$193:$Q$230)+SUMIF($M$193:$O$230,"Fost*",$P$193:$Q$230)+SUMIF($M$193:$O$230,"Home*",$P$193:$Q$230)+SUMIF($M$193:$O$230,"Negl*",$P$193:$Q$230) -> 0
C26: Parent and Family Engagement Set-Aside | H26: =SUMIF($M$193:$O$230,"PFE*",$P$193:$Q$230) -> 0
C27: Private School Set-Aside | H27: =SUMIF($M$193:$O$230,"Priv*",$P$193:$Q$230) -> 0
C28: Total Internal Services | H28: =SUM(H24:N27) -> 0 | O28: =IF(SUM(P231)=SUM(H28),"Yes","No - Please review your entries.") -> Yes
B29: 5000 - Other Charges | C29: Non Set-Aside | H29: =SUMIF($M$240:$O$276,"",$P$240:$Q$276) -> 0
C30: Set-Aside | H30: =SUMIF($M$240:$O$276,"Div*",$P$240:$Q$276)+SUMIF($M$240:$O$276,"Early*",$P$240:$Q$276)+SUMIF($M$240:$O$276,"Fost*",$P$240:$Q$276)+SUMIF($M$240:$O$276,"Home*",$P$240:$Q$276)+SUMIF($M$240:$O$276,"Negl*",$P$240:$Q$276) -> 0
C31: Parent and Family Engagement Set-Aside | H31: =SUMIF($M$240:$O$276,"PFE*",$P$240:$Q$276) -> 0
C32: Private School Set-Aside | H32: =SUMIF($M$240:$O$276,"Priv*",$P$240:$Q$276) -> 0
C33: Total Other Charges | H33: =SUM(H29:N32) -> 0 | O33: =IF(SUM(P277)=SUM(H33),"Yes","No - Please review your entries.") -> Yes
B34: 6000 - Materials and Supplies | C34: Non Set-Aside | H34: =SUMIF($K$286:$N$320,"",$P$286:$Q$320) -> 0
C35: Set-Aside | H35: =SUMIF($K$286:$N$320,"Div*",$P$286:$Q$320)+SUMIF($K$286:$N$320,"Early*",$P$286:$Q$320)+SUMIF($K$286:$N$320,"Fost*",$P$286:$Q$320)+SUMIF($K$286:$N$320,"Home*",$P$286:$Q$320)+SUMIF($K$286:$N$320,"Negl*",$P$286:$Q$320) -> 0
C36: Parent and Family Engagement Set-Aside | H36: =SUMIF($K$286:$N$320,"PFE*",$P$286:$Q$320) -> 10509.63
C37: Private School Set-Aside | H37: =SUMIF($K$286:$N$320,"Priv*",$P$286:$Q$320) -> 131
C38: Total Materials and Supplies | H38: =SUM(H34:N37) -> 10640.63 | O38: =IF(SUM(P321)=SUM(H38),"Yes","No - Please review your entries.") -> Yes
B39: 8000 - Capital Outlay | C39: Non Set-Aside | H39: =SUMIF($K$330:$N$363,"",$P$330:$Q$363) -> 0
C40: Set-Aside | H40: =SUMIF($K$330:$N$363,"Div*",$P$330:$Q$363)+SUMIF($K$330:$N$363,"Early*",$P$330:$Q$363)+SUMIF($K$330:$N$363,"Fost*",$P$330:$Q$363)+SUMIF($K$330:$N$363,"Home*",$P$330:$Q$363)+SUMIF($K$330:$N$363,"Negl*",$P$330:$Q$363) -> 0
C41: Parent and Family Engagement Set-Aside | H41: =SUMIF($K$330:$N$363,"PFE*",$P$330:$Q$363) -> 0
C42: Private School Set-Aside | H42: =SUMIF($K$330:$N$363,"Priv*",$P$330:$Q$363) -> 0
C43: Total Capital Outlay | H43: =SUM(H39:N42) -> 0 | O43: =IF(SUM(P364)=SUM(H43),"Yes","No - Please review your entries.") -> Yes
C44: TOTAL BUDGET | H44: =SUM(H43,H38,H33,H28,H23,H18,H13) -> 1713686.78
C45: TOTAL PARENT AND FAMILY ENGAGEMENT SET-ASIDE | H45: =SUM(H11,H16,H21,H26,H31,H36,H41) -> 18337.86
C46: TOTAL PRIVATE SCHOOL SET-ASIDE | H46: =SUM(H12,H17,H22,H27,H32,H37,H42) -> 13100.25
C47: DOES THE BUDGET SUMMARY MATCH THE TOTAL ALLOCATION? | H47: =IF(SUM(H44)=SUM(N7),"Yes","No - Please review your entries.") -> Yes | O47: Difference | P47: =H44-N7 -> 0
B49: Page 12
B50: ='Main Page'!$G$9 -> 2024-2025 | D50: School Division: | E50: ='Main Page'!$F$13 -> Albemarle County Public Schools | I50: Division Number: | J50: ='Main Page'!$F$14 -> 2 | K50: ='Main Page'!$B$6 -> Title I, Part A, Improving Basic Programs
B51: F. DETAILED BUDGET BREAKDOWN
B52: Prepare a detailed breakdown of the budget categories for Object Codes 1000-6000 and 8000.
B53: Does the Detailed Budget Breakdown Match the Total Allocation? | I53: =IF(SUM(H44)=SUM(P87,P136,P183, P231, P277, P321, P364),"Yes","No - Please review your entries.") -> Yes
B55: DETAILED BUDGET DESCRIPTION OF OBJECT CODE 1000
B56: Provide a description of the positions supported with funds from this program. Indicate if any positions are newly funded under this program. Explain the supplementary nature of any new positions. Please include any teachers or paraprofessionals paid for using prior year (2023-2024) funds in your narrative and indicate how much prior year funding is being used for those positions. Required if staff positions are to be funded by federal funds.
B57: The majority of our Title I funding will be allocated to Reading Specialists at our six Title I schools. At this time in the coming school year, no positions will be funded through carryover due to increase in salaries last year and additional pay increases. With the implementation of VLA our school board is funding Reading Specialists at all of our elementary schools. In response to our local needs assessment Woodbrook and Greer are funding math interventionists. Greer is also funding an additional school counselor based on the needs of the population. The current projection is that most if not all funds will be used from last year. A Title I Coordinator will be funded and will provide administrative and technical support to both teachers and principals in all identified schools. The Coordinator is also responsible for compliance as well as the oversight of the program. The Management Analyst submits the grant and monitors the amendment and reimbursement process in the VDOE OMEGA system. Additional duties include working with Reading Specialists. The Management Analyst also prepares and submits reports as needed. The Homeless Liaison coordinates a systematic program to identify and serve all eligible Homeless students. The Homeless Liaison collaborates with the Title I staff, provides tutoring and consultation, and arranges transportation for students when needed. Homeless tutors provide instructional services to identified Homeless students. The Federal Support Team Lead is an additional position which will serve as a support for the homeless families at the Title I schools. Those schools are experiencing their highest homelessness levels since we have recorded the data.
B58: JumpStart teachers will provide summer instruction to rising kindergarten students, to help prepare them for kindergarten. Interpreters are provided for Title I events and parent conferences. It is planned for the participating private schools to use hourly tutoring for eligible students.
B60: Types of Staff Positions Administrative, Teacher, Paraprofessional, Reading Specialist, Home School Coordinator, Other | I60: Measurable Objective | K60: Set Aside Category | O60: FTEs | P60: Total Cost
B61: Coordinator | I61: 1,2,3,4,5 | K61: Division | O61: 0.8 | P61: 78704
B62: Management Analyst | K62: Division | O62: 0.5 | P62: 34461
B63: Homeless Liaison | I63: 1,2 | K63: Homeless | O63: 0.6 | P63: 54027
B64: Teachers (Agnor-Hurt & Red Hill) | I64: 4 | K64: Early Childhood | O64: 2 | P64: 142222
B65: Teaching Assistants (Agnor-Hurt & Red Hill) | I65: 4 | K65: Early Childhood | O65: 1.5 | P65: 45014
B66: Reading Specialist (.5 RES, .5 SES, 2.5 MVES, 1.3 GES, 2.3 WES, 2.0 AHES) | I66: 1,2,3,5 | O66: 9.1 | P66: 647111
B67: Hourly Pay for Summer JumpStart Teachers and Interpreters | P67: 15000
B68: Reading/Math Interventionists (Greer) | I68: 1,3 | O68: 0.5 | P68: 35556
B69: Homeless Tutors | I69: 1,2 | K69: Homeless | P69: 5000
B70: School Counselor (Greer) | I70: 6 | O70: 1 | P70: 71111
B71: Tutor(s) for private school | K71: Private School | P71: 12047.61
B72: Math Interventionists (Woodbrook) | I72: 1,3 | O72: 0.5 | P72: 35556
B73: Federal Support Team Lead | I73: 1,2 | K73: Homeless | O73: 1 | P73: 51270
K87: Total for Object Code: | O87: =SUM(O61:O86) -> 17.5 | P87: =SUM(P61:Q86) -> 1227079.61
B89: Page 13
B90: ='Main Page'!$G$9 -> 2024-2025 | D90: School Division: | E90: ='Main Page'!$F$13 -> Albemarle County Public Schools | I90: Division Number: | J90: ='Main Page'!$F$14 -> 2 | K90: ='Main Page'!$B$6 -> Title I, Part A, Improving Basic Programs
B91: DETAILED BUDGET DESCRIPTION OF OBJECT CODE 2000
B92: Indicate the fixed charge categories (such as FICA, health, etc.) and specify the amount of each.
B93: Employee benefits are paid on FTE positions and include FICA, VSRS, Group Life Insurance, Health Insurance, and Dental Insurance. Part-time life insurance and part-time annuity are paid on behalf of non-fulltime employees. Only FICA is paid on hourly salaries, such as Homeless tutors and interpreters.
B96: Item Description | J96: Measurable Objective | M96: Set Aside Category | P96: Total Cost
B97: Benefits for Division Staff | J97: 1,2,3,4,5, | M97: Division | P97: 33482
B98: Benefits for Homeless Coordinator, tutors, and Federal Support Team Lead | J98: 1,2 | M98: Homeless | P98: 41005.67
B99: Benefits for Early Childhood Teachers and Teaching Assistants | J99: 4 | M99: Early Childhood | P99: 90149
B100: Benefits for Reading Specialist, Teachers, Interpreters, Interventionists, and Counselor | J100: 1,2,3,5 | P100: 302580
B101: FICA for Tutor(s) | M101: Private School | P101: 921.64
M136: Total for Object Code: | P136: =SUM(P97:Q135) -> 468138.31
B137: Page 14
B138: ='Main Page'!$G$9 -> 2024-2025 | D138: School Division: | E138: ='Main Page'!$F$13 -> Albemarle County Public Schools | I138: Division Number: | J138: ='Main Page'!$F$14 -> 2 | K138: ='Main Page'!$B$6 -> Title I, Part A, Improving Basic Programs
B139: DETAILED BUDGET DESCRIPTION OF OBJECT CODE 3000
B140: Please indicate how these funds will support any services and activities that are described in this application. If program funds are expended for professional development, justify such expenditures by demonstrating a relationship between the proposed expenditure for professional development and the program services and activities described in the application.
B141: Parent Involvement: meals and services provided by outside contractors and restaurants will be included for Title I students and their families during family engagement events, which may include family literacy nights, special programs, and family field trips. Meals for division-level Parent Advisory Meetings will be provided.
B144: Item Description | J144: Measurable Objective | M144: Set Aside Category | P144: Total Cost
B145: Contracted Services for Family Engagement events and activities, such as restaurants | J145: 1,2,5 | M145: PFE (School Level) | P145: 5994.44
B146: Contracted Services for Parent Advisory Meeting, such as restaurants | J146: 1,2,5 | M146: PFE (Division) | P146: 1833.79
M183: Total for Object Code: | P183: =SUM(P145:Q182) -> 7828.23
B185: Page 15
B186: ='Main Page'!$G$9 -> 2024-2025 | D186: School Division: | E186: ='Main Page'!$F$13 -> Albemarle County Public Schools | I186: Division Number: | J186: ='Main Page'!$F$14 -> 2 | K186: ='Main Page'!$B$6 -> Title I, Part A, Improving Basic Programs
B187: DETAILED BUDGET DESCRIPTION OF OBJECT CODE 4000
B188: Provide a description of charges from an Internal Service Fund to other functions/activities/elements of the local government for the use of intergovernmental services.
B192: Item Description | J192: Measurable Objective | M192: Set Aside Category | P192: Total Cost
M231: Total for Object Code: | P231: =SUM(P193:Q230) -> 0
B232: Page 16
B233: ='Main Page'!$G$9 -> 2024-2025 | D233: School Division: | E233: ='Main Page'!$F$13 -> Albemarle County Public Schools | I233: Division Number: | J233: ='Main Page'!$F$14 -> 2 | K233: ='Main Page'!$B$6 -> Title I, Part A, Improving Basic Programs
B234: DETAILED BUDGET DESCRIPTION OF OBJECT CODE 5000
B235: Provide a description of the expenditures that support the program, including utilities (maintenance and operation of plant), staff/administrative/consultant travel, office phone charges, wireless phone charges, training, leases/rental, indirect cost, and other. Indirect costs cannot be claimed against capital outlay and equipment.
B239: Item Description | J239: Measurable Objective | M239: Set Aside Category | P239: Total Cost
M277: Total for Object Code: | P277: =SUM(P240:Q276) -> 0
B278: Page 17
B279: ='Main Page'!$G$9 -> 2024-2025 | D279: School Division: | E279: ='Main Page'!$F$13 -> Albemarle County Public Schools | I279: Division Number: | J279: ='Main Page'!$F$14 -> 2 | K279: ='Main Page'!$B$6 -> Title I, Part A, Improving Basic Programs
B280: DETAILED BUDGET DESCRIPTION OF OBJECT CODE 6000
B281: Provide a description for expenses related to object code 6000 Materials and Supplies. Include items that are consumed or materially altered when used and minor equipment that is not capitalized. Equipment under $5,000, including computer equipment, should be reported under this object code unless the LEA has set a lower capitalization threshold. Indicate the quantity for each item.
B282: For Parent and Family Engagement meetings and activities, ACPS Title I teachers and staff will purchase books, project supplies, and literacy games, that empower families to support their children's academic progress at home. Snacks (to include beverages) and student-made foods may be planned for family events. The purchase of paper products and utensils may be purchased in order to support our PFE meetings and activities.
B285: Item Description | I285: Measurable Objective | K285: Set Aside Category | O285: Quantity | P285: Total Cost
B286: Supplies, materials for Family Engagement Activities | K286: Private School | P286: 131
B287: Supplies, materials, books for Family Engagement Activities | I287: 1,2,5 | K287: PFE (School Level) | P287: 10509.63
N321: Total for Object Code: | P321: =SUM(P286:Q320) -> 10640.63
B322: Page 18
B323: ='Main Page'!$G$9 -> 2024-2025 | D323: School Division: | E323: ='Main Page'!$F$13 -> Albemarle County Public Schools | I323: Division Number: | J323: ='Main Page'!$F$14 -> 2 | K323: ='Main Page'!$B$6 -> Title I, Part A, Improving Basic Programs
B324: DETAILED BUDGET DESCRIPTION OF OBJECT CODE 8000
B325: Provide a description for expenses related to object code 8000. All capital outlay expenditures over $5,000 per unit must be approved by the Virginia Department of Education through the application submission and approval process. If the local school division has established a threshold of a lesser amount, items equal to that amount or greater must be itemized in Object Code 8000. Specify equipment quantities.
B329: Item Description | I329: Measurable Objective | K329: Set Aside Category | O329: Quantity | P329: Total Cost
N364: Total for Object Code: | P364: =SUM(P330:Q363) -> 0
B365: Page 19

Sheet Transferability
B1: ='Main Page'!$G$9 -> 2024-2025 | D1: School Division: | E1: ='Main Page'!$F$13 -> Albemarle County Public Schools | I1: Division Number: | J1: ='Main Page'!$F$14 -> 2 | K1: ='Main Page'!$B$6 -> Title I, Part A, Improving Basic Programs
B2: G. TRANSFERABILITY
B4: Section 5103(b)(2) of ESSA allows divisions to transfer all or a portion of the funds received from Title II, Part A, or Title IV, Part A, into: Title I, Part A; Title I, Part C; Title I, Part D; Title II, Part A; Title III, Part A; Title IV, Part A; or Title V, Part B.
B6: Complete the tab below if funds will be transferred under Section 5103(b)(2). Please note that prior approval is required to transfer funds. The transfer request form is provided at
B7: Transfer Request Form
H8: Title II, Part A, Transferability Award S367A240044 Project Coe APE61481 | L8: Title IV, Part A, Transferability Award S424A240048 Project Code APE60019
H9: =Narrative!O61 -> 0 | L9: =Narrative!O64 -> 120097.83
B10: OBJECT CODE | C10: EXPENDITURE | H10: AMOUNT TRANSFERRED INTO PROGRAM | O10: DOES THE BUDGET SUMMARY MATCH THE DETAILED BUDGET BREAKDOWN?
B11: 1000 - Personnel Services | C11: Non Set-Aside | H11: =SUMIFS($P$63:$Q$88, $I$63:$J$88,"", $L$63:$M$88, "Title II*") -> 0 | L11: =SUMIFS($P$63:$Q$88, $I$63:$J$88,"", $L$63:$M$88, "Title IV*") -> 86318.74
C12: Set-Aside | H12: =SUMIFS($P$63:$Q$88, $I$63:$J$88,"Div*", $L$63:$M$88, "Title II*")+SUMIFS($P$63:$Q$88, $I$63:$J$88,"Early*", $L$63:$M$88, "Title II*")+SUMIFS($P$63:$Q$88, $I$63:$J$88,"Fost*", $L$63:$M$88, "Title II*")+SUMIFS($P$63:$Q$88, $I$63:$J$88,"Home*", $L$63:$M$88, "Title II*")+SUMIFS($P$63:$Q$88, $I$63:$J$88,"Negl*", $L$63:$M$88, "Title II*")+SUMIFS($P$63:$Q$88, $I$63:$J$88,"Sala*", $L$63:$M$88, "Title II*")+SUMIFS($P$63:$Q$88, $I$63:$J$88,"CSI*", $L$63:$M$88, "Title II*") -> 0 | L12: =SUMIFS($P$63:$Q$88, $I$63:$J$88,"Div*", $L$63:$M$88, "Title IV*")+SUMIFS($P$63:$Q$88, $I$63:$J$88,"Early*", $L$63:$M$88, "Title IV*")+SUMIFS($P$63:$Q$88, $I$63:$J$88,"Fost*", $L$63:$M$88, "Title IV*")+SUMIFS($P$63:$Q$88, $I$63:$J$88,"Home*", $L$63:$M$88, "Title IV*")+SUMIFS($P$63:$Q$88, $I$63:$J$88,"Negl*", $L$63:$M$88, "Title IV*")+SUMIFS($P$63:$Q$88, $I$63:$J$88,"Sala*", $L$63:$M$88, "Title IV*")+SUMIFS($P$63:$Q$88, $I$63:$J$88,"CSI*", $L$63:$M$88, "Title IV*") -> 0
C13: Parent and Family Engagement Set-Aside | H13: =SUMIFS($P$63:$Q$88, $I$63:$J$88,"PFE*", $L$63:$M$88, "Title II*") -> 0 | L13: =SUMIFS($P$63:$Q$88, $I$63:$J$88,"PFE*", $L$63:$M$88, "Title IV*") -> 0
C14: Private School Set-Aside | H14: =SUMIFS($P$63:$Q$88, $I$63:$J$88,"Priv*", $L$63:$M$88, "Title II*") -> 0 | L14: =SUMIFS($P$63:$Q$88, $I$63:$J$88,"Priv*", $L$63:$M$88, "Title IV*") -> 0
C15: Total Personal Services | H15: =SUM(H11:J14) -> 0 | L15: =SUM(L11:N14) -> 86318.74 | O15: =IF(SUM(P89)=SUM(H15,L15),"Yes", "No - Please review your entries.") -> Yes
B16: 2000 - Employee Benefits | C16: Non Set-Aside | H16: =SUMIFS($P$99:$Q$137, $J$99:$K$137,"", $N$99:$O$137, "Title II*") -> 0 | L16: =SUMIFS($P$99:$Q$137, $J$99:$K$137,"", $N$99:$O$137, "Title IV*") -> 32861
C17: Set-Aside | H17: =SUMIFS($P$99:$Q$137, $J$99:$K$137,"Div*", $N$99:$O$137, "Title II*")+SUMIFS($P$99:$Q$137, $J$99:$K$137,"Early*", $N$99:$O$137, "Title II*")+SUMIFS($P$99:$Q$137, $J$99:$K$137,"Fost*", $N$99:$O$137, "Title II*")+SUMIFS($P$99:$Q$137, $J$99:$K$137,"Home*", $N$99:$O$137, "Title II*")+SUMIFS($P$99:$Q$137, $J$99:$K$137,"Negl*", $N$99:$O$137, "Title II*")+SUMIFS($P$99:$Q$137, $J$99:$K$137,"Emp*", $N$99:$O$137, "Title II*")+SUMIFS($P$99:$Q$137, $J$99:$K$137,"CSI*", $N$99:$O$137, "Title II*") -> 0 | L17: =SUMIFS($P$99:$Q$137, $J$99:$K$137,"Div*", $N$99:$O$137, "Title IV*")+SUMIFS($P$99:$Q$137, $J$99:$K$137,"Early*", $N$99:$O$137, "Title IV*")+SUMIFS($P$99:$Q$137, $J$99:$K$137,"Fost*", $N$99:$O$137, "Title IV*")+SUMIFS($P$99:$Q$137, $J$99:$K$137,"Home*", $N$99:$O$137, "Title IV*")+SUMIFS($P$99:$Q$137, $J$99:$K$137,"Negl*", $N$99:$O$137, "Title IV*")+SUMIFS($P$99:$Q$137, $J$99:$K$137,"Emp*", $N$99:$O$137, "Title IV*")+SUMIFS($P$99:$Q$137, $J$99:$K$137,"CSI*", $N$99:$O$137, "Title IV*") -> 0
C18: Parent and Family Engagement Set-Aside | H18: =SUMIFS($P$99:$Q$137, $J$99:$K$137, "PFE*", $N$99:$O$137, "Title II*") -> 0 | L18: =SUMIFS($P$99:$Q$137, $J$99:$K$137, "PFE*", $N$99:$O$137, "Title IV*") -> 0
C19: Private School Set-Aside | H19: =SUMIFS($P$99:$Q$137, $J$99:$K$137,"Priv*", $N$99:$O$137, "Title II*") -> 0 | L19: =SUMIFS($P$99:$Q$137, $J$99:$K$137,"Priv*", $N$99:$O$137, "Title IV*") -> 0
C20: Total Employee Benefits | H20: =SUM(H16:J19) -> 0 | L20: =SUM(L16:N19) -> 32861 | O20: =IF(SUM(P138)=SUM(H20,L20),"Yes","No - Please review your entries.") -> Yes
B21: 3000 - Purchased/ Contracted Services | C21: Non Set-Aside | H21: =SUMIFS($P$147:$Q$184, $J$147:$K$184,"", $N$147:$O$184, "Title II*") -> 0 | L21: =SUMIFS($P$147:$Q$184, $J$147:$K$184,"", $N$147:$O$184, "Title IV*") -> 0
C22: Set-Aside | H22: =SUMIFS($P$147:$Q$184, $J$147:$K$184,"Div*", $N$147:$O$184, "Title II*")+SUMIFS($P$147:$Q$184, $J$147:$K$184,"Early*", $N$147:$O$184, "Title II*")+SUMIFS($P$147:$Q$184, $J$147:$K$184,"Fost*", $N$147:$O$184, "Title II*")+SUMIFS($P$147:$Q$184, $J$147:$K$184, "Home*", $N$147:$O$184, "Title II*")+SUMIFS($P$147:$Q$184, $J$147:$K$184,"Negl*", $N$147:$O$184, "Title II*")+SUMIFS($P$147:$Q$184, $J$147:$K$184,"Sala*", $N$147:$O$184, "Title II*")+SUMIFS($P$147:$Q$184, $J$147:$K$184,"CSI*", $N$147:$O$184, "Title II*") -> 0 | L22: =SUMIFS($P$147:$Q$184, $J$147:$K$184,"Div*", $N$147:$O$184, "Title IV*")+SUMIFS($P$147:$Q$184, $J$147:$K$184,"Early*", $N$147:$O$184, "Title IV*")+SUMIFS($P$147:$Q$184, $J$147:$K$184,"Fost*", $N$147:$O$184, "Title IV*")+SUMIFS($P$147:$Q$184, $J$147:$K$184, "Home*", $N$147:$O$184, "Title IV*")+SUMIFS($P$147:$Q$184, $J$147:$K$184,"Negl*", $N$147:$O$184, "Title IV*")+SUMIFS($P$147:$Q$184, $J$147:$K$184,"Sala*", $N$147:$O$184, "Title IV*")+SUMIFS($P$147:$Q$184, $J$147:$K$184,"CSI*", $N$147:$O$184, "Title IV*") -> 0
C23: Parent and Family Engagement Set-Aside | H23: =SUMIFS($P$147:$Q$184, $J$147:$K$184, "PFE*", $N$147:$O$184, "Title II*") -> 0 | L23: =SUMIFS($P$147:$Q$184, $J$147:$K$184, "PFE*", $N$147:$O$184, "Title IV*") -> 0
C24: Private School Set-Aside | H24: =SUMIFS($P$147:$Q$184, $J$147:$K$184,"Priv*", $N$147:$O$184, "Title II*") -> 0 | L24: =SUMIFS($P$147:$Q$184, $J$147:$K$184,"Priv*", $N$147:$O$184, "Title IV*") -> 0
C25: Total Purchased/Contracted Services | H25: =SUM(H21:J24) -> 0 | L25: =SUM(L21:N24) -> 0 | O25: =IF(SUM(P185)=SUM(H25,L25),"Yes","No - Please review your entries.") -> Yes
B26: 4000 - Internal Services | C26: Non Set-Aside | H26: =SUMIFS($P$195:$Q$232, $J$195:$K$232,"", $N$195:$O$232, "Title II*") -> 0 | L26: =SUMIFS($P$195:$Q$232, $J$195:$K$232,"", $N$195:$O$232, "Title IV*") -> 0
C27: Set-Aside | H27: =SUMIFS($P$195:$Q$232, $J$195:$K$232,"Div*", $N$195:$O$232, "Title II*")+SUMIFS($P$195:$Q$232, $J$195:$K$232,"Early*", $N$195:$O$232, "Title II*")+SUMIFS($P$195:$Q$232, $J$195:$K$232,"Fost*", $N$195:$O$232, "Title II*")+SUMIFS($P$195:$Q$232, $J$195:$K$232,"Home*", $N$195:$O$232, "Title II*")+SUMIFS($P$195:$Q$232, $J$195:$K$232,"Negl*", $N$195:$O$232, "Title II*")+SUMIFS($P$195:$Q$232, $J$195:$K$232,"Sala*", $N$195:$O$232, "Title II*")+SUMIFS($P$195:$Q$232, $J$195:$K$232,"CSI*", $N$195:$O$232, "Title II*") -> 0 | L27: =SUMIFS($P$195:$Q$232, $J$195:$K$232,"Div*", $N$195:$O$232, "Title IV*")+SUMIFS($P$195:$Q$232, $J$195:$K$232,"Early*", $N$195:$O$232, "Title IV*")+SUMIFS($P$195:$Q$232, $J$195:$K$232,"Fost*", $N$195:$O$232, "Title IV*")+SUMIFS($P$195:$Q$232, $J$195:$K$232,"Home*", $N$195:$O$232, "Title IV*")+SUMIFS($P$195:$Q$232, $J$195:$K$232,"Negl*", $N$195:$O$232, "Title IV*")+SUMIFS($P$195:$Q$232, $J$195:$K$232,"Sala*", $N$195:$O$232, "Title IV*")+SUMIFS($P$195:$Q$232, $J$195:$K$232,"CSI*", $N$195:$O$232, "Title IV*") -> 0
C28: Parent and Family Engagement Set-Aside | H28: =SUMIFS($P$195:$Q$232, $J$195:$K$232, "PFE*", $N$195:$O$232, "Title II*") -> 0 | L28: =SUMIFS($P$195:$Q$232, $J$195:$K$232, "PFE*", $N$195:$O$232, "Title IV*") -> 0
C29: Private School Set-Aside | H29: =SUMIFS($P$195:$Q$232, $J$195:$K$232,"Priv*", $N$195:$O$232, "Title II*") -> 0 | L29: =SUMIFS($P$195:$Q$232, $J$195:$K$232,"Priv*", $N$195:$O$232, "Title IV*") -> 0
C30: Total Internal Services | H30: =SUM(H26:J29) -> 0 | L30: =SUM(L26:N29) -> 0 | O30: =IF(SUM(P233)=SUM(H30,L30),"Yes","No - Please review your entries.") -> Yes
B31: 5000 - Other Charges | C31: Non Set-Aside | H31: =SUMIFS($P$242:$Q$278, $J$242:$K$278,"", $N$242:$O$278, "Title II*") -> 0 | L31: =SUMIFS($P$242:$Q$278, $J$242:$K$278,"", $N$242:$O$278, "Title IV*") -> 0
C32: Set-Aside | H32: =SUMIFS($P$242:$Q$278, $J$242:$K$278,"Div*", $N$242:$O$278, "Title II*")+SUMIFS($P$242:$Q$278, $J$242:$K$278,"Early*", $N$242:$O$278, "Title II*")+SUMIFS($P$242:$Q$278, $J$242:$K$278,"Fost*", $N$242:$O$278, "Title II*")+SUMIFS($P$242:$Q$278, $J$242:$K$278,"Home*", $N$242:$O$278, "Title II*")+SUMIFS($P$242:$Q$278, $J$242:$K$278,"Negl*", $N$242:$O$278, "Title II*")+SUMIFS($P$242:$Q$278, $J$242:$K$278,"Sala*", $N$242:$O$278, "Title II*")+SUMIFS($P$242:$Q$278, $J$242:$K$278,"CSI*", $N$242:$O$278, "Title II*") -> 0 | L32: =SUMIFS($P$242:$Q$278, $J$242:$K$278,"Div*", $N$242:$O$278, "Title IV*")+SUMIFS($P$242:$Q$278, $J$242:$K$278,"Early*", $N$242:$O$278, "Title IV*")+SUMIFS($P$242:$Q$278, $J$242:$K$278,"Fost*", $N$242:$O$278, "Title IV*")+SUMIFS($P$242:$Q$278, $J$242:$K$278,"Home*", $N$242:$O$278, "Title IV*")+SUMIFS($P$242:$Q$278, $J$242:$K$278,"Negl*", $N$242:$O$278, "Title IV*")+SUMIFS($P$242:$Q$278, $J$242:$K$278,"Sala*", $N$242:$O$278, "Title IV*")+SUMIFS($P$242:$Q$278, $J$242:$K$278,"CSI*", $N$242:$O$278, "Title IV*") -> 0
C33: Parent and Family Engagement Set-Aside | H33: =SUMIFS($P$242:$Q$278, $J$242:$K$278, "PFE*", $N$242:$O$278, "Title II*") -> 0 | L33: =SUMIFS($P$242:$Q$278, $J$242:$K$278, "PFE*", $N$242:$O$278, "Title IV*") -> 0
C34: Private School Set-Aside | H34: =SUMIFS($P$242:$Q$278, $J$242:$K$278,"Priv*", $N$242:$O$278, "Title II*") -> 0 | L34: =SUMIFS($P$242:$Q$278, $J$242:$K$278,"Priv*", $N$242:$O$278, "Title IV*") -> 0
C35: Total Other Charges | H35: =SUM(H31:J34) -> 0 | L35: =SUM(L31:N34) -> 0 | O35: =IF(SUM(P279)=SUM(H35,L35),"Yes","No - Please review your entries.") -> Yes
B36: 6000 - Materials and Supplies | C36: Non Set-Aside | H36: =SUMIFS($P$288:$Q$322, $I$288:$J$322,"", $L$288:$M$322, "Title II*") -> 0 | L36: =SUMIFS($P$288:$Q$322, $I$288:$J$322,"", $L$288:$M$322, "Title IV*") -> 0
C37: Set-Aside | H37: =SUMIFS($P$288:$Q$322, $I$288:$J$322,"Div*", $L$288:$M$322, "Title II*")+SUMIFS($P$288:$Q$322, $I$288:$J$322,"Early*", $L$288:$M$322, "Title II*")+SUMIFS($P$288:$Q$322, $I$288:$J$322,"Fost*", $L$288:$M$322, "Title II*")+SUMIFS($P$288:$Q$322, $I$288:$J$322,"Home*", $L$288:$M$322, "Title II*")+SUMIFS($P$288:$Q$322, $I$288:$J$322,"Negl*", $L$288:$M$322, "Title II*")+SUMIFS($P$288:$Q$322, $I$288:$J$322,"Sala*", $L$288:$M$322, "Title II*")+SUMIFS($P$288:$Q$322, $I$288:$J$322,"CSI*", $L$288:$M$322, "Title II*") -> 0 | L37: =SUMIFS($P$288:$Q$322, $I$288:$J$322,"Div*", $L$288:$M$322, "Title IV*")+SUMIFS($P$288:$Q$322, $I$288:$J$322,"Early*", $L$288:$M$322, "Title IV*")+SUMIFS($P$288:$Q$322, $I$288:$J$322,"Fost*", $L$288:$M$322, "Title IV*")+SUMIFS($P$288:$Q$322, $I$288:$J$322,"Home*", $L$288:$M$322, "Title IV*")+SUMIFS($P$288:$Q$322, $I$288:$J$322,"Negl*", $L$288:$M$322, "Title IV*")+SUMIFS($P$288:$Q$322, $I$288:$J$322,"Sala*", $L$288:$M$322, "Title IV*")+SUMIFS($P$288:$Q$322, $I$288:$J$322,"CSI*", $L$288:$M$322, "Title IV*") -> 0
C38: Parent and Family Engagement Set-Aside | H38: =SUMIFS($P$288:$Q$322, $I$288:$J$322,"PFE*", $L$288:$M$322, "Title II*") -> 0 | L38: =SUMIFS($P$288:$Q$322, $I$288:$J$322,"PFE*", $L$288:$M$322, "Title IV*") -> 0
C39: Private School Set-Aside | H39: =SUMIFS($P$288:$Q$322, $I$288:$J$322,"Priv*", $L$288:$M$322, "Title II*") -> 0 | L39: =SUMIFS($P$288:$Q$322, $I$288:$J$322,"Priv*", $L$288:$M$322, "Title IV*") -> 918.09
C40: Total Materials and Supplies | H40: =SUM(H36:J39) -> 0 | L40: =SUM(L36:N39) -> 918.09 | O40: =IF(SUM(P323)=SUM(H40,L40),"Yes","No - Please review your entries.") -> Yes
B41: 8000 - Capital Outlay | C41: Non Set-Aside | H41: =SUMIFS($P$332:$Q$365, $I$332:$J$365,"", $L$332:$M$365, "Title II*") -> 0 | L41: =SUMIFS($P$332:$Q$365, $I$332:$J$365,"", $L$332:$M$365, "Title IV*") -> 0
C42: Set-Aside | H42: =SUMIFS($P$332:$Q$365, $I$332:$J$365,"Div*", $L$332:$M$365, "Title II*")+SUMIFS($P$332:$Q$365, $I$332:$J$365,"Early*", $L$332:$M$365, "Title II*")+SUMIFS($P$332:$Q$365, $I$332:$J$365,"Fost*", $L$332:$M$365, "Title II*")+SUMIFS($P$332:$Q$365, $I$332:$J$365,"Home*", $L$332:$M$365, "Title II*")+SUMIFS($P$332:$Q$365, $I$332:$J$365,"Negl*", $L$332:$M$365, "Title II*")+SUMIFS($P$332:$Q$365, $I$332:$J$365,"Sala*", $L$332:$M$365, "Title II*")+SUMIFS($P$332:$Q$365, $I$332:$J$365,"CSI*", $L$332:$M$365, "Title II*") -> 0 | L42: =SUMIFS($P$332:$Q$365, $I$332:$J$365,"Div*", $L$332:$M$365, "Title IV*")+SUMIFS($P$332:$Q$365, $I$332:$J$365,"Early*", $L$332:$M$365, "Title IV*")+SUMIFS($P$332:$Q$365, $I$332:$J$365,"Fost*", $L$332:$M$365, "Title IV*")+SUMIFS($P$332:$Q$365, $I$332:$J$365,"Home*", $L$332:$M$365, "Title IV*")+SUMIFS($P$332:$Q$365, $I$332:$J$365,"Negl*", $L$332:$M$365, "Title IV*")+SUMIFS($P$332:$Q$365, $I$332:$J$365,"Sala*", $L$332:$M$365, "Title IV*")+SUMIFS($P$332:$Q$365, $I$332:$J$365,"CSI*", $L$332:$M$365, "Title IV*") -> 0
C43: Parent and Family Engagement Set-Aside | H43: =SUMIFS($P$332:$Q$365, $I$332:$J$365,"PFE*", $L$332:$M$365, "Title II*") -> 0 | L43: =SUMIFS($P$332:$Q$365, $I$332:$J$365,"PFE*", $L$332:$M$365, "Title IV*") -> 0
C44: Private School Set-Aside | H44: =SUMIFS($P$332:$Q$365, $I$332:$J$365,"Priv*", $L$332:$M$365, "Title II*") -> 0 | L44: =SUMIFS($P$332:$Q$365, $I$332:$J$365,"Priv*", $L$332:$M$365, "Title IV*") -> 0
C45: Total Capital Outlay | H45: =SUM(H41:J44) -> 0 | L45: =SUM(L41:N44) -> 0 | O45: =IF(SUM(P366)=SUM(H45,L45),"Yes","No - Please review your entries.") -> Yes
C46: TOTAL BUDGET | H46: =SUM(H45,H40,H35,H30,H25,H20,H15) -> 0 | L46: =SUM(L15,L20,L25,L30,L35,L40,L45) -> 120097.83
C47: TOTAL PARENT AND FAMILY ENGAGEMENT SET-ASIDE | H47: =SUM(H13,H18,H23,H28,H33,H38,H43) -> 0 | L47: =SUM(L13,L18,L23,L28,L33,L38,L43) -> 0
C48: TOTAL PRIVATE SCHOOL SET-ASIDE | H48: =SUM(H14,H19,H24,H29,H34,H39,H44) -> 0 | L48: =SUM(L14,L19,L24,L29,L34,L39,L44) -> 918.09
C49: DOES THE TRANSFERABILITY BUDGET SUMMARY MATCH THE TRANSFERABILITY ALLOCATION? | H49: =IF(SUM(H46,L46)=SUM(H9,L9),"Yes","No - Please review your entries.") -> Yes | O49: Difference | P49: =SUM(H46+L46)-SUM(H9+L9) -> 0
B51: Page 20
B52: ='Main Page'!$G$9 -> 2024-2025 | D52: School Division: | E52: ='Main Page'!$F$13 -> Albemarle County Public Schools | I52: Division Number: | J52: ='Main Page'!$F$14 -> 2 | K52: ='Main Page'!$B$6 -> Title I, Part A, Improving Basic Programs
B53: H. DETAILED BUDGET BREAKDOWN
B54: Prepare a detailed breakdown of the budget categories for Object Codes 1000-6000 and 8000. Choose the appropriate category for each expense in the dropdown list under "Funding Source."
B55: Does the Transferability Detailed Budget Breakdown Match the Transferability Allocation? | J55: =IF(SUM(H46,L46)=SUM(P89,P138,P185, P233, P279, P323, P366),"Yes","No - Please review your entries.") -> Yes
B57: DETAILED BUDGET DESCRIPTION OF OBJECT CODE 1000
B58: Provide a description of the positions supported with funds from this program. Indicate if any positions are newly funded under this program. Explain the supplementary nature of any new positions. Please include any teachers or paraprofessionals paid for using prior year (2023-2024) funds in your narrative and indicate how much prior year funding is being used for those positions. Required if staff positions are to be funded by federal funds.
B59: Title I Reading Specialists positions for Title I schools will be supported through these transfer funds. These are not new positions. Use of transfer funding enables the school division to sustain the overall Reading Specialists FTE funding needed for all six Title I schools.
B62: Types of Staff Positions Administrative, Teacher, Paraprofessional, Reading Specialist, Home School Coordinator, Other | G62: Measurable Objective | I62: Set Aside Category | L62: Funding Source | O62: FTEs | P62: Total Cost
B63: Reading Specialists | G63: 1,2,3,5 | L63: Title IV, Part A, Transferability | O63: 1.2 | P63: 86318.74
L89: Total for Object Code: | O89: =SUM(O63:O88) -> 1.2 | P89: =SUM(P63:Q88) -> 86318.74
B91: Page 21
B92: ='Main Page'!$G$9 -> 2024-2025 | D92: School Division: | E92: ='Main Page'!$F$13 -> Albemarle County Public Schools | I92: Division Number: | J92: ='Main Page'!$F$14 -> 2 | K92: ='Main Page'!$B$6 -> Title I, Part A, Improving Basic Programs
B93: DETAILED BUDGET DESCRIPTION OF OBJECT CODE 2000
B94: Indicate the fixed charge categories (such as FICA, health, etc.) and specify the amount of each.
B95: Teacher benefits include FICA, health insurance, dental insurance, life insurance and VSRS.
B98: Item Description | H98: Measurable Objective | J98: Set Aside Category | N98: Funding Source | P98: Total Cost
B99: FICA | N99: Title IV, Part A, Transferability | P99: 6583
B100: Health Insurance | N100: Title IV, Part A, Transferability | P100: 10751
B101: Dental Insurance | N101: Title IV, Part A, Transferability | P101: 253
B102: Life Insurance | N102: Title IV, Part A, Transferability | P102: 1016
B103: VSRS | N103: Title IV, Part A, Transferability | P103: 14258
N138: Total for Object Code: | P138: =SUM(P99:Q137) -> 32861
B139: Page 22
B140: ='Main Page'!$G$9 -> 2024-2025 | D140: School Division: | E140: ='Main Page'!$F$13 -> Albemarle County Public Schools | I140: Division Number: | J140: ='Main Page'!$F$14 -> 2 | K140: ='Main Page'!$B$6 -> Title I, Part A, Improving Basic Programs
B141: DETAILED BUDGET DESCRIPTION OF OBJECT CODE 3000
B142: Please indicate how these funds will support any services and activities that are described in this application. If program funds are expended for professional development, justify such expenditures by demonstrating a relationship between the proposed expenditure for professional development and the program services and activities described in the application.
B146: Item Description | H146: Measurable Objective | J146: Set Aside Category | N146: Funding Source | P146: Total Cost
N185: Total for Object Code: | P185: =SUM(P147:Q184) -> 0
B187: Page 23
B188: ='Main Page'!$G$9 -> 2024-2025 | D188: School Division: | E188: ='Main Page'!$F$13 -> Albemarle County Public Schools | I188: Division Number: | J188: ='Main Page'!$F$14 -> 2 | K188: ='Main Page'!$B$6 -> Title I, Part A, Improving Basic Programs
B189: DETAILED BUDGET DESCRIPTION OF OBJECT CODE 4000
B190: Provide a description of charges from an Internal Service Fund to other functions/activities/elements of the local government for the use of intergovernmental services.
B194: Item Description | H194: Measurable Objective | J194: Set Aside Category | N194: Funding Source | P194: Total Cost
N233: Total for Object Code: | P233: =SUM(P195:Q232) -> 0
B234: Page 24
B235: ='Main Page'!$G$9 -> 2024-2025 | D235: School Division: | E235: ='Main Page'!$F$13 -> Albemarle County Public Schools | I235: Division Number: | J235: ='Main Page'!$F$14 -> 2 | K235: ='Main Page'!$B$6 -> Title I, Part A, Improving Basic Programs
B236: DETAILED BUDGET DESCRIPTION OF OBJECT CODE 5000
B237: Provide a description of the expenditures that support the program, including utilities (maintenance and operation of plant), staff/administrative/consultant travel, office phone charges, wireless phone charges, training, leases/rental, indirect cost, and other. Indirect costs cannot be claimed against capital outlay and equipment.
B241: Item Description | H241: Measurable Objective | J241: Set Aside Category | N241: Funding Source | P241: Total Cost
N279: Total for Object Code: | P279: =SUM(P242:Q278) -> 0
B280: Page 25
B281: ='Main Page'!$G$9 -> 2024-2025 | D281: School Division: | E281: ='Main Page'!$F$13 -> Albemarle County Public Schools | I281: Division Number: | J281: ='Main Page'!$F$14 -> 2 | K281: ='Main Page'!$B$6 -> Title I, Part A, Improving Basic Programs
B282: DETAILED BUDGET DESCRIPTION OF OBJECT CODE 6000
B283: Provide a description for expenses related to object code 6000 Materials and Supplies. Include items that are consumed or materially altered when used and minor equipment that is not capitalized. Equipment under $5,000, including computer equipment, should be reported under this object code unless the LEA has set a lower capitalization threshold. Indicate the quantity for each item.
B287: Item Description | G287: Measurable Objective | I287: Set Aside Category | L287: Funding Source | O287: Quantity | P287: Total Cost
B288: Supplies, mat'l for private school Title I student instruction | I288: Private School | L288: Title IV, Part A, Transferability | P288: 908.91
B289: Supplies for Parent Family Engagement | I289: Private School | L289: Title IV, Part A, Transferability | P289: 9.18
L323: Total for Object Code: | P323: =SUM(P288:Q322) -> 918.09
B324: Page 26
B325: ='Main Page'!$G$9 -> 2024-2025 | D325: School Division: | E325: ='Main Page'!$F$13 -> Albemarle County Public Schools | I325: Division Number: | J325: ='Main Page'!$F$14 -> 2 | K325: ='Main Page'!$B$6 -> Title I, Part A, Improving Basic Programs
B326: DETAILED BUDGET DESCRIPTION OF OBJECT CODE 8000
B327: Provide a description for expenses related to object code 8000. All capital outlay expenditures over $5,000 per unit must be approved by the Virginia Department of Education through the application submission and approval process. If the local school division has established a threshold of a lesser amount, items equal to that amount or greater must be itemized in Object Code 8000. Specify equipment quantities.
B331: Item Description | G331: Measurable Objective | I331: Set Aside Category | L331: Funding Source | O331: Quantity | P331: Total Cost
L366: Total for Object Code: | P366: =SUM(P332:Q365) -> 0
B367: Page 27

Sheet GEPA
B1: ='Main Page'!$G$9 -> 2024-2025 | D1: School Division: | E1: ='Main Page'!$F$13 -> Albemarle County Public Schools | I1: Division Number: | J1: ='Main Page'!$F$14 -> 2 | K1: ='Main Page'!$B$6 -> Title I, Part A, Improving Basic Programs
B2: I. GENERAL EDUCATION PROVISIONS ACT (GEPA) SECTION 427
B4: Section 427 of the General Education Provisions Act (GEPA) requires applicants for federal funds to include in their applications a description of the steps the applicant will take to ensure equitable access to, and participation in, federally-assisted programs for students, teachers, and other program beneficiaries with special needs. The provision allows applicants discretion in developing the required description. The statute highlights six types of barriers that can impede equitable access or participation: gender, race, national origin, color, disability, or age. Based on local circumstances, the applicant should determine whether these or other barriers may prevent students, teachers, etc., from such access or participation in the federally-funded project or activity. The description in the application of steps to be taken to overcome these barriers need not be lengthy; the application may provide a clear and succinct description of how the applicant plans to address those barriers that are applicable to their circumstances.
B6: Describe the steps the division will take to ensure equitable access to, and participation in, grant-funded programs for students, teachers, and other program beneficiaries with special needs as required by the General Education Provisions Act (GEPA) 427, OMB Control No. 1894-00045, Section 427.
B7: Albemarle County is committed to providing equitable access for students, teachers, and families in all grant-funded programs and opportunities as required by GEPA 427: 1. We ensure that events are held in handicapped-accessible facilities in geographically convenient locations. Events are held during the day, evening, and on weekends to accommodate family school/work schedules in order to maximize participation. 2. Materials provided are accessible for literate and non-readers as well as in electronic and paper copy formats to inform families that may not have access to social media and email. This includes translation of documents into Spanish and other languages as needed. The EL Office annually vets, hires, and trains additional interpreters and translators to ensure a high level of quality with a personalized experience for families. Simultaneous interpretation equipment is used in large-group settings, and InterpreTalk Language Line services are used when necessary. 3. Albemarle County conducts a variety of outreach programs to address gender and/or race inequalities. Some of these include teacher summer reading projects, Girls in STEM initiatives, Summer Immersion Excursion programs for newcomers, CoderDojo, World Peace Game, and Saturday family engagement experiences at STEM fairs and other local attractions.
B8: 4. Efforts to involve diverse stakeholders in program planning and implementation are robust and include seventeen diverse teams. Advisory groups include Parent Council, Student Advisory, Special Education, Talent Development, Title I, and Diversity and Equity. Additionally, the Title I, Title III, Migrant, and Homeless Coordinators all meet monthly with the Director of Federal Programs to collaborate and ensure our students have equitable access to all division opportunities. 5. Lastly, as set forth on our Human Resources website "hiring for Albemarle County shall be accomplished without regard to race, color, religion, national origin, gender, pregnancy, childbirth or related medical conditions, age, marital status or disability unless otherwise permitted by County policy or applicable law".
B9: Page 28

Sheet Program Requirements
B1: ='Main Page'!$G$9 -> 2024-2025 | D1: School Division: | E1: ='Main Page'!$F$13 -> Albemarle County Public Schools | I1: Division Number: | J1: ='Main Page'!$F$14 -> 2 | K1: ='Main Page'!$B$6 -> Title I, Part A, Improving Basic Programs
B2: J. EFFECTIVE TRANSITIONS
B4: Describe how the local educational agency will implement strategies to facilitate effective transitions for students from middle grades to high school and from high school to postsecondary education including, if applicable-
C5: a. | D5: through coordination with institutions of higher education, employers, and other local partners; and
C6: b. | D6: through increased student access to early college high school or dual or concurrent enrollment opportunities, or career counseling to identify student interests and skills.
B7: Albemarle County School Division provides opportunities and builds programmatic structures that facilitate these transitions. Our four high schools host visitation events in both the spring and summer for rising 9th grade students, that include individual in-person tours for families. These are designed to help new students understand academic choices and to increase comfort with the transition to high school. Freshman Seminars afford an advisory period focused on relationship building and meeting the social-emotional and career development needs of students. All entering high school students in Albemarle County are assigned a teacher mentor, through Seminar, who provides guidance for the student until graduation, including through check-and-connect phone calls. High schools also offer work-based learning opportunities in the community, career counseling, CTE classes that include credentialing, and numerous college and career exploration experiences designed to give students ample opportunity to learn about career choices and postsecondary school choices and programs. Dual enrollment at PVCC (Piedmont Virginia Community College) is another available opportunity for academic advancement for students.
B10: K. REDUCTION OF EXCLUSIONARY DISCIPLINE PRACTICES
B12: Describe how the local educational agency will support efforts to reduce the overuse of discipline practices that remove students from the classroom, which may include identifying and supporting schools with high rates of discipline, disaggregated by each of the subgroups of students, as defined in section 1111(c)(2).
B13: Albemarle County Schools use multiple approaches that support efforts to reduce the overuse of practices that remove students from classrooms when discipline issues occur. All schools in the division use Responsive Classroom methods, and teachers receive professional development in this program. Schools implemented the Short-Term Education Program (STEP). The STEP cuts down on out-of-school suspension by keeping kids in school, with specialized emotional and academic support. This program decreases the disproportionate suspension of minority students, as well as decreasing overall out-of-school suspension rates. Division-level approval is required before the suspension of any primary-grade student may occur. Within middle and high schools, the STEP program is used in place of out-of-school suspension, where appropriate, by allowing students to receive instruction within the STEP program setting. Staff development on trauma-informed care through mental health first aid will also help address increasing the capacity of staff to look at behavior as a form of communication. Relationship building with children, problem-solving, positive behavioral supports, and restorative justice will be implemented to replace more “traditional” disciplinary (punitive) responses to challenging behavior. On an annual basis, district-level staff review school-based discipline practices and statistics, with the goal of reducing punitive measures.
B15: Page 29
B16: ='Main Page'!$G$9 -> 2024-2025 | D16: School Division: | E16: ='Main Page'!$F$13 -> Albemarle County Public Schools | I16: Division Number: | J16: ='Main Page'!$F$14 -> 2 | K16: ='Main Page'!$B$6 -> Title I, Part A, Improving Basic Programs
B17: L. STUDENT ELIGIBILITY CRITERIA FOR TITLE I TARGETED ASSISTANCE SCHOOLS
B19: Describe the targeted assistance program in Title I schools. Include the approximate number of students served, who provides services, and how often services are provided.
B22: Describe the eligibility criteria by subject area that will be used to select students for participation in the Title I program in Targeted Assistance schools. Eligible children are children identified by the school as failing, or most at risk of failing, to meet the state’s challenging student academic achievement standards on the basis of multiple, educationally related, objective criteria established by the school divisions with input from the schools. Children from Early Childhood through grade 2 shall be selected solely on the basis of such criteria as teacher judgment, interviews with parents, and developmentally appropriate measures. [ESEA, Title I, Part A, Section 1115]
B24: ="M. TITLE I, PART A, NEW SCHOOLWIDE SCHOOL PROGRAMS FOR " & 'Main Page'!G9 -> M. TITLE I, PART A, NEW SCHOOLWIDE SCHOOL PROGRAMS FOR 2024-2025
B25: Plans for any new schoolwide programs must be submitted in advance of the application. Contact your Title I specialist in the Office of ESEA Programs for due date and additional information. For those schools that are already schoolwide, remember that you must do an annual review including a needs assessment. Funds should be targeted in accordance with the academic needs of the students.
B26: ="Name of School(s) Implementing New Schoolwide Programs for "&'Main Page'!G9&". Were new schoolwide schools identified on the Identification of Title I Schools Form submitted in the spring? Have schoolwide plans for new schoolwide schools been reviewed by a Title I specialist?" -> Name of School(s) Implementing New Schoolwide Programs for 2024-2025. Were new schoolwide schools identified on the Identification of Title I Schools Form submitted in the spring? Have schoolwide plans for new schoolwide schools been reviewed by a Title I specialist?
B27: Plans will be submitted on June 13, 2024. Schools implementing Schoolwide Programs for 2024-2025 will be Agnor-Hurt, Greer, Woodbrook, Red Hill, Scottsville, and Mountain View. The VDOE Title I Specialist will review plans once all plans are submitted.
B29: Name of schools below 40% poverty for which the division applied for a schoolwide waiver:
B31: Was the waiver granted by the SEA? | H31: Yes | J31: No
B32: Page 30
B33: ='Main Page'!$G$9 -> 2024-2025 | D33: School Division: | E33: ='Main Page'!$F$13 -> Albemarle County Public Schools | I33: Division Number: | J33: ='Main Page'!$F$14 -> 2 | K33: ='Main Page'!$B$6 -> Title I, Part A, Improving Basic Programs
B34: N. TARGETED ASSISTANCE PROGRAMS
B36: Provide the number of full-time equivalent (FTE) staff funded through Title I, Part A, participating in targeted assistance programs by job category. For administrators and supervisors who serve both targeted assistance and schoolwide programs, report the FTE attributable to the targeted assistance duties only. See guidelines for full description of staff categories. Staffing information in this section must be identical to the information listed on the 35% and Above or Below 35% Low-Income tab (whichever is applicable), in the TITLE I, PART A, ALLOCATION TO ELIGIBLE SCHOOLS section in Columns 6-7 for Targeted Assistance Program.
C38: =" Please include staff FTE and percentage qualified for " & B33 & " school year." -> Please include staff FTE and percentage qualified for 2024-2025 school year.
C39: Staff Category | K39: ="Staff FTE " & B33 -> Staff FTE 2024-2025 | M39: ="Percentage Qualified "& B33 &" " -> Percentage Qualified 2024-2025
C40: Teachers
C41: Paraprofessionals
C42: Other Paraprofessionals (paraprofessionals that do not provide instructional support)
C43: Clerical support staff
C44: Administrators (nonclerical)
B46: O. SCHOOLWIDE PROGRAMS
C48: Provide the number of FTE paraprofessionals who serve in schoolwide program schools and the percentage of these paraprofessionals who are qualified in accordance with Section 1119 (c) and (d) of ESEA. This number includes ALL paraprofessionals, not only Title I funded paraprofessionals.
K49: ="Paraprofessionals FTE " & B33 -> Paraprofessionals FTE 2024-2025 | M49: ="Percentage Qualified " & B33 -> Percentage Qualified 2024-2025
C50: Paraprofessionals
B52: P. RECRUITMENT AND RETENTION OF PROPERLY LICENSED AND ENDORSED TEACHERS
B54: Describe how the local educational agency will identify and address, as required under State plans as described in section 1111(g)(1)(B), any disparities that result in low-income students and minority students being taught at higher rates than other students by ineffective, inexperienced, or out-of-field teachers.
B55: ACPS has designed an intensive instructional coaching model, which is the foundation for developing the skills and instructional capabilities of new teachers. Instructional coaches serve as instructional resources in content areas, teaching methods, classroom management, and assessment. Instructional coaches are assigned to specifically assist new teachers in using data to plan and target instruction to student needs and also are available to provide support to experienced teachers when needed. ACPS has a structured induction program that includes a four-day New Teacher Academy prior to the start of school, where new teachers are instructed in the school division's vision, mission, priorities, and strategic practices. Ongoing, planned professional learning activities occur throughout the first year, though instructional coaches work with teachers for two years, through job-embedded, real-time activities resulting in a highly collaborative approach to new teacher development. Our Human Resources Department works to ensure that provisionally licensed teachers become fully licensed and also meets with principals regarding teachers who are teaching outside their content/endorsement areas to guide them toward taking and passing appropriate Praxis tests. The IPAL report and HR reports guide the identification of disparity issues among teachers and schools. ACPS is committed to ensuring that the needs of all learners are met and offers micro-credentialing and certification in Culturally Responsive Teaching methods to enhance this capability.
B59: Page 31
B60: ='Main Page'!$G$9 -> 2024-2025 | D60: School Division: | E60: ='Main Page'!$F$13 -> Albemarle County Public Schools | I60: Division Number: | J60: ='Main Page'!$F$14 -> 2 | K60: ='Main Page'!$B$6 -> Title I, Part A, Improving Basic Programs
B61: Q. IMPROVEMENT PLAN REQUIREMENTS
B63: X | D63: The LEA understands that schools designated as comprehensive support and targeted support and improvement schools will be required to use an improvement planning tool as determined by the Office of School Quality.
B65: R. TITLE I, PART A, MAINTENANCE OF EFFORT
B67: Average Per Pupil Expenditure from Non-Federal Funds:
B68: ="(A) For FY Ending June 30, " & YEAR('Main Page'!G8)-2 -> (A) For FY Ending June 30, 2022 | F68: 17117 | I68: ="(B) For FY Ending June 30, " & YEAR('Main Page'!G8)-1 -> (B) For FY Ending June 30, 2023 | M68: 17760
B70: S. ELIGIBLE ATTENDANCE AREAS
B72: SOURCES OF DATA FOR DETERMINING UNDUPLICATED NUMBER OF CHILDREN, AGES 5-17, FROM LOW-INCOME FAMILIES (Indicate ALL Sources with an “X”)
J74: X | K74: CEP
C75: Free/Reduced Lunch/Household Applications | K75: Children Eligible for Medicaid
C76: Temporary Assistance for Needy Families (TANF) | K76: Most Recent U. S. Census Bureau Information
B77: ELIGIBLE ATTENDANCE AREAS (Indicate with an “X”)
B79: Rank by:
B80: X | C80: Grade-Span Ranking - select the Grade Span(s) you are serving below | K80: Rank Order | M80: X | N80: Division Average
B82: Grade Span(s) Served:
B83: First Grade Span | D83: PK - 05 | G83: Second Grade Span (if applicable) | L83: Third Grade Span (if applicable)
B85: PRIVATE SCHOOL MEMBERSHIP
B86: Is your school division in the Bypass for Private Schools? | K86: Yes | M86: X | N86: No
B87: If your division is in the Bypass, do not enter the private school membership numbers.
B88: If your school division is not in the bypass for private schools, does the division maintain documented efforts to obtain private school membership and the signed affirmation of consultation with private school officials?
E89: X | F89: Yes | I89: No | K89: No Private Schools
B91: Page 32
B92: ='Main Page'!$G$9 -> 2024-2025 | D92: School Division: | E92: ='Main Page'!$F$13 -> Albemarle County Public Schools | I92: Division Number: | J92: ='Main Page'!$F$14 -> 2 | K92: ='Main Page'!$B$6 -> Title I, Part A, Improving Basic Programs
B94: ELIGIBLE ATTENDANCE AREAS (Indicate requested information in columns.) After completing the ELIGIBLE ATTENDANCE AREAS section, continue to the bottom of the sheet. | S94: Cells effected by SORT & Names of Public Schools is in cell (S99)
B96: Provide information about the data that was used to identify low-income students, include the type of data, month, and year.
B97: We used the CEP report from January 2024 from Child Nutrition. We used the 1.6 multipliers for all schools to determine eligibility for schoolwide programs. | S97: In this column "S99" is the lines that will be sorted. If you add or remove lines you must change the range in cells (S99)
B99: Do Not Copy & Paste Information into this Section | S99: B103:N312
G100: Total Number of Children Residing in Attendance Areas | P100: *For more information on the Community Eligibility Provision (CEP), refer to the Eligible Attendance Areas section of the Application Guidelines, Instructions, and Assurances.
B101: Name of Public School | E101: Grade Span of School | G101: Total School Membership | H101: Low-Income Private School Membership | I101: Low-Income Public School Membership | J101: Total Low-Income | K101: CEP School* (Yes/No) | L101: CEP Multiplier Applied* (Yes/No) | M101: Low-Income Count used to Allocate Title I Funds | N101: Percentage of Low-Income
B102: 1 | E102: 2 | G102: 3 | H102: 4 | I102: 5 | J102: 6 | K102: 7 | L102: 8 | M102: 9 | N102: 10
B103: Woodbrook Elementary | E103: PK - 05 | G103: 591 | H103: 9 | I103: 303 | J103: =SUM(H103:I103) -> 312 | K103: Yes | L103: Yes | M103: =IF(R103>=G103,G103,IF(R103<G103,R103)) -> 484.8 | N103: =IF(G103 >0,IF(L103="Yes",M103/G103, I103/G103),0) -> 0.8203045685 | R103: =IF(L103="Yes",I103*1.6,I103) -> 484.8
B104: Mary Carr Greer Elementary | E104: PK - 05 | G104: 521 | H104: 1 | I104: 257 | J104: 258 | K104: Yes | L104: Yes | M104: 411.2 | N104: 0.7892514395 | R104: =IF(L104="Yes",I104*1.6,I104) -> 411.2
B105: Journey Middle | E105: 06 - 08 | G105: 628 | I105: 280 | J105: 280 | K105: Yes | L105: Yes | M105: 448 | N105: 0.7133757962 | R105: 448
B106: Red Hill Elementary | E106: PK - 05 | G106: 192 | H106: 1 | I106: 81 | J106: 82 | K106: Yes | L106: Yes | M106: 129.6 | N106: 0.675 | R106: 129.6
B107: Agnor-Hurt Elementary | E107: PK - 05 | G107: 453 | H107: 1 | I107: 184 | J107: 185 | K107: Yes | L107: Yes | M107: 294.4 | N107: 0.6498896247 | R107: 294.4
B108: Mountain View Elementary | E108: PK - 05 | G108: 749 | H108: 1 | I108: 302 | J108: 303 | K108: Yes | L108: Yes | M108: 483.2 | N108: 0.6451268358 | R108: 483.2
B109: Scottsville Elementary | E109: PK - 05 | G109: 227 | H109: 2 | I109: 90 | J109: 92 | K109: No | L109: Yes | M109: 144 | N109: 0.6343612335 | R109: 144
B110: Jackson P. Burley Middle | E110: 06 - 08 | G110: 602 | I110: 224 | J110: 224 | K110: No | L110: Yes | M110: 358.4 | N110: 0.5953488372 | R110: 358.4
B111: Leslie H. Walton Middle | E111: 06 - 08 | G111: 338 | I111: 114 | J111: 114 | K111: No | L111: Yes | M111: 182.4 | N111: 0.5396449704 | R111: 182.4
B112: Monticello High | E112: 09 - 12 | G112: 1216 | I112: 397 | J112: 397 | K112: No | L112: Yes | M112: 635.2 | N112: 0.5223684211 | R112: 635.2
B113: Albemarle High | E113: 09 - 12 | G113: 1963 | I113: 566 | J113: 566 | K113: No | L113: Yes | M113: 905.6 | N113: 0.4613346918 | R113: 905.6
B114: Stone Robinson Elementary | E114: PK - 05 | G114: 477 | I114: 134 | J114: 134 | K114: No | L114: Yes | M114: 214.4 | N114: 0.449475891 | R114: 214.4
B115: Stony Point Elementary | E115: KG - 05 | G115: 193 | I115: 46 | J115: 46 | K115: No | L115: Yes | M115: 73.6 | N115: 0.3813471503 | R115: 73.6
B116: Baker-Butler Elementary | E116: PK - 05 | G116: 754 | I116: 172 | J116: 172 | K116: No | L116: Yes | M116: 275.2 | N116: 0.3649867374 | R116: 275.2
B117: Lakeside Middle | E117: 06 - 08 | G117: 513 | I117: 99 | J117: 99 | K117: No | L117: Yes | M117: 158.4 | N117: 0.3087719298 | R117: 158.4
B118: Broadus Wood Elementary | E118: PK - 05 | G118: 281 | I118: 45 | J118: 45 | K118: No | L118: Yes | M118: 72 | N118: 0.256227758 | R118: 72
B119: Hollymead Elementary | E119: PK - 05 | G119: 365 | I119: 58 | J119: 58 | K119: No | L119: Yes | M119: 92.8 | N119: 0.2542465753 | R119: 92.8
B120: Crozet Elementary | E120: KG - 05 | G120: 541 | I120: 83 | J120: 83 | K120: No | L120: Yes | M120: 132.8 | N120: 0.2454713494 | R120: 132.8
B121: Brownsville Elementary | E121: PK - 05 | G121: 590 | I121: 88 | J121: 88 | K121: No | L121: Yes | M121: 140.8 | N121: 0.2386440678 | R121: 140.8
B122: Joseph T. Henley Middle | E122: 06 - 08 | G122: 803 | I122: 100 | J122: 100 | K122: No | L122: Yes | M122: 160 | N122: 0.199252802 | R122: 160
B123: Western Albemarle High | E123: 09 - 12 | G123: 1145 | I123: 135 | J123: 135 | K123: No | L123: Yes | M123: 216 | N123: 0.1886462882 | R123: 216
B124: Virginia L. Murray Elementary | E124: PK - 05 | G124: 288 | I124: 18 | J124: 18 | K124: No | L124: Yes | M124: 28.8 | N124: 0.1 | R124: 28.8
B125: Ivy Elementary | E125: KG - 05 | G125: 338 | I125: 21 | J125: 21 | K125: No | L125: Yes | M125: 33.6 | N125: 0.09940828402 | R125: 33.6
B126: Community Lab School | E126: 06 - 08 | G126: 191 | I126: 5 | J126: 5 | K126: No | L126: Yes | M126: 8 | N126: 0.04188481675 | R126: 8
J127: 0 | M127: 0 | N127: 0 | R127: 0
J128: 0 | M128: 0 | N128: 0 | R128: 0
J129: 0 | M129: 0 | N129: 0 | R129: 0
J130: 0 | M130: 0 | N130: 0 | R130: 0
J131: 0 | M131: 0 | N131: 0 | R131: 0
J132: 0 | M132: 0 | N132: 0 | R132: 0
J133: 0 | M133: 0 | N133: 0 | R133: 0
J134: 0 | M134: 0 | N134: 0 | R134: 0
J135: 0 | M135: 0 | N135: 0 | R135: 0
J136: 0 | M136: 0 | N136: 0 | R136: 0
J137: 0 | M137: 0 | N137: 0 | R137: 0
J138: 0 | M138: 0 | N138: 0 | R138: 0
J139: 0 | M139: 0 | N139: 0 | R139: 0
J140: 0 | M140: 0 | N140: 0 | R140: 0
J141: 0 | M141: 0 | N141: 0 | R141: 0
J142: 0 | M142: 0 | N142: 0 | R142: 0
J143: 0 | M143: 0 | N143: 0 | R143: 0
J144: 0 | M144: 0 | N144: 0 | R144: 0
J145: 0 | M145: 0 | N145: 0 | R145: 0
J146: 0 | M146: 0 | N146: 0 | R146: 0
J147: 0 | M147: 0 | N147: 0 | R147: 0
J148: 0 | M148: 0 | N148: 0 | R148: 0
J149: 0 | M149: 0 | N149: 0 | R149: 0
J150: 0 | M150: 0 | N150: 0 | R150: 0
J151: 0 | M151: 0 | N151: 0 | R151: 0
J152: 0 | M152: 0 | N152: 0 | R152: 0
J153: 0 | M153: 0 | N153: 0 | R153: 0
J154: 0 | M154: 0 | N154: 0 | R154: 0
J155: 0 | M155: 0 | N155: 0 | R155: 0
J156: 0 | M156: 0 | N156: 0 | R156: 0
J157: 0 | M157: 0 | N157: 0 | R157: 0
J158: 0 | M158: 0 | N158: 0 | R158: 0
J159: 0 | M159: 0 | N159: 0 | R159: 0
J160: 0 | M160: 0 | N160: 0 | R160: 0
J161: 0 | M161: 0 | N161: 0 | R161: 0
J162: 0 | M162: 0 | N162: 0 | R162: 0
J163: 0 | M163: 0 | N163: 0 | R163: 0
J164: 0 | M164: 0 | N164: 0 | R164: 0
J165: 0 | M165: 0 | N165: 0 | R165: 0
J166: 0 | M166: 0 | N166: 0 | R166: 0
J167: =SUM(H167:I167) -> 0 | M167: =IF(R167>=G167,G167,IF(R167<G167,R167)) -> 0 | N167: =IF(G167 >0,IF(L167="Yes",M167/G167, I167/G167),0) -> 0 | R167: 0
J168: 0 | M168: 0 | N168: 0 | R168: =IF(L168="Yes",I168*1.6,I168) -> 0
J169: 0 | M169: 0 | N169: 0 | R169: 0
J170: 0 | M170: 0 | N170: 0 | R170: 0
J171: 0 | M171: 0 | N171: 0 | R171: 0
J172: 0 | M172: 0 | N172: 0 | R172: 0
J173: 0 | M173: 0 | N173: 0 | R173: 0
J174: 0 | M174: 0 | N174: 0 | R174: 0
J175: 0 | M175: 0 | N175: 0 | R175: 0
J176: 0 | M176: 0 | N176: 0 | R176: 0
J177: 0 | M177: 0 | N177: 0 | R177: 0
J178: 0 | M178: 0 | N178: 0 | R178: 0
J179: 0 | M179: 0 | N179: 0 | R179: 0
J180: 0 | M180: 0 | N180: 0 | R180: 0
J181: 0 | M181: 0 | N181: 0 | R181: 0
J182: 0 | M182: 0 | N182: 0 | R182: 0
J183: 0 | M183: 0 | N183: 0 | R183: 0
J184: 0 | M184: 0 | N184: 0 | R184: 0
J185: 0 | M185: 0 | N185: 0 | R185: 0
J186: 0 | M186: 0 | N186: 0 | R186: 0
J187: 0 | M187: 0 | N187: 0 | R187: 0
J188: 0 | M188: 0 | N188: 0 | R188: 0
J189: 0 | M189: 0 | N189: 0 | R189: 0
J190: 0 | M190: 0 | N190: 0 | R190: 0
J191: 0 | M191: 0 | N191: 0 | R191: 0
J192: 0 | M192: 0 | N192: 0 | R192: 0
J193: 0 | M193: 0 | N193: 0 | R193: 0
J194: 0 | M194: 0 | N194: 0 | R194: 0
J195: 0 | M195: 0 | N195: 0 | R195: 0
J196: 0 | M196: 0 | N196: 0 | R196: 0
J197: 0 | M197: 0 | N197: 0 | R197: 0
J198: 0 | M198: 0 | N198: 0 | R198: 0
J199: 0 | M199: 0 | N199: 0 | R199: 0
J200: 0 | M200: 0 | N200: 0 | R200: 0
J201: 0 | M201: 0 | N201: 0 | R201: 0
J202: 0 | M202: 0 | N202: 0 | R202: 0
J203: 0 | M203: 0 | N203: 0 | R203: 0
J204: 0 | M204: 0 | N204: 0 | R204: 0
J205: 0 | M205: 0 | N205: 0 | R205: 0
J206: 0 | M206: 0 | N206: 0 | R206: 0
J207: 0 | M207: 0 | N207: 0 | R207: 0
J208: 0 | M208: 0 | N208: 0 | R208: 0
J209: 0 | M209: 0 | N209: 0 | R209: 0
J210: 0 | M210: 0 | N210: 0 | R210: 0
J211: 0 | M211: 0 | N211: 0 | R211: 0
J212: 0 | M212: 0 | N212: 0 | R212: 0
J213: 0 | M213: 0 | N213: 0 | R213: 0
J214: 0 | M214: 0 | N214: 0 | R214: 0
J215: 0 | M215: 0 | N215: 0 | R215: 0
J216: 0 | M216: 0 | N216: 0 | R216: 0
J217: 0 | M217: 0 | N217: 0 | R217: 0
J218: 0 | M218: 0 | N218: 0 | R218: 0
J219: 0 | M219: 0 | N219: 0 | R219: 0
J220: 0 | M220: 0 | N220: 0 | R220: 0
J221: 0 | M221: 0 | N221: 0 | R221: 0
J222: 0 | M222: 0 | N222: 0 | R222: 0
J223: 0 | M223: 0 | N223: 0 | R223: 0
J224: 0 | M224: 0 | N224: 0 | R224: 0
J225: 0 | M225: 0 | N225: 0 | R225: 0
J226: 0 | M226: 0 | N226: 0 | R226: 0
J227: 0 | M227: 0 | N227: 0 | R227: 0
J228: 0 | M228: 0 | N228: 0 | R228: 0
J229: 0 | M229: 0 | N229: 0 | R229: 0
J230: 0 | M230: 0 | N230: 0 | R230: 0
J231: =SUM(H231:I231) -> 0 | M231: =IF(R231>=G231,G231,IF(R231<G231,R231)) -> 0 | N231: =IF(G231 >0,IF(L231="Yes",M231/G231, I231/G231),0) -> 0 | R231: 0
J232: 0 | M232: 0 | N232: 0 | R232: =IF(L232="Yes",I232*1.6,I232) -> 0
J233: 0 | M233: 0 | N233: 0 | R233: 0
... 141 more rows

Sheet 35% and Above Low-Income
B1: ='Main Page'!$G$9 -> 2024-2025 | D1: School Division: | E1: ='Main Page'!$F$13 -> Albemarle County Public Schools | I1: Division Number: | J1: ='Main Page'!$F$14 -> 2 | K1: ='Main Page'!$B$6 -> Title I, Part A, Improving Basic Programs
B2: T. REQUIRED AND ALLOWABLE SET-ASIDES FOR DIVISIONS OPERATING TITLE I, PART A, BASIC PROGRAMS
B4: DIVISION LEVEL: IMPROVEMENT ACTIVITIES (Optional for Divisions with Comprehensive Support and Improvement and Targeted Support and Improvement) | M4: A | P4: B
B5: Up to 5 percent may be set aside for divisions to provide financial incentives and rewards to teachers who serve in schools identified for comprehensive support and improvement or targeted support and improvement activities for the purposes of attracting and retaining qualified and effective teachers.
B6: Five percent of the total allocation representing the maximum allowable set-aside for Comprehensive Support and Improvement and Targeted Support and Improvement | P6: =SUM((Narrative!O53)*0.05) -> 91689.2305
B7: Indicate amount of set-aside for each category, if applicable:
C8: Set-Aside for Teacher Incentives and Rewards Comprehensive | M8: 0
C9: Set-Aside for Teacher Incentives and Rewards Targeted | M9: 0
M10: 0
C11: Total Amount Set-Aside for Comprehensive Support and Improvement and Targeted Support and Improvement | P11: =SUMIF(Budget!K61:N86,"CSI*",Budget!P61:Q86)+SUMIF(Budget!M97:O135,"CSI*",Budget!P97:Q135)+SUMIF(Budget!M145:O182,"CSI*",Budget!P145:Q182)+SUMIF(Budget!M193:O230,"CSI*",Budget!P193:Q230)+SUMIF(Budget!M240:O276,"CSI*",Budget!P240:Q276)+SUMIF(Budget!K286:N320,"CSI*",Budget!P286:Q320)+SUMIF(Budget!K330:N363,"CSI*",Budget!P330:Q363)+SUMIF(Transferability!I63:K88,"CSI*",Transferability!P63:Q88)+SUMIF(Transferability!J99:M137,"CSI*",Transferability!P99:Q137)+SUMIF(Transferability!J147:M184,"CSI*",Transferability!P147:Q184)+SUMIF(Transferability!J195:M232,"CSI*",Transferability!P195:Q232)+SUMIF(Transferability!J242:M278,"CSI*",Transferability!P242:Q278)+SUMIF(Transferability!I288:K322,"CSI*",Transferability!P288:Q322)+SUMIF(Transferability!I332:K365,"CSI*",Transferability!P332:Q365) -> 0
B12: DIVISION LEVEL: PROGRAM ADMINISTRATION
C13: (1000) Personnel Services | P13: =SUMIF(Budget!K61:N86,"Div*",Budget!P61:Q86)+SUMIF(Transferability!I63:K88,"Div*",Transferability!P63:Q88) -> 113165
C14: (1000) Personnel Services - Salary Differential | P14: =SUMIF(Budget!K61:N86,"Sal*",Budget!P61:Q86)+SUMIF(Transferability!I63:K88,"Sal*",Transferability!P63:Q88) -> 0
C15: (2000) Employee Benefits | P15: =SUMIF(Budget!M97:O135,"Div*",Budget!P97:Q135)+SUMIF(Transferability!J99:M137,"Div*",Transferability!P99:Q137) -> 33482
C16: (2000) Employee Benefits - Differential | P16: =SUMIF(Budget!M97:O135,"Emp*",Budget!P97:Q135)+SUMIF(Transferability!J99:M137,"Emp*",Transferability!P99:Q137) -> 0
C17: (3000) Purchased/Contracted Services | P17: =SUMIF(Budget!M145:O182,"Div*",Budget!P145:Q182)+SUMIF(Transferability!J147:M184,"Div*",Transferability!P147:Q184) -> 0
C18: (4000) Internal Services | P18: =SUMIF(Budget!M193:O230,"Div*",Budget!P193:Q230)+SUMIF(Transferability!J195:M232,"Div*",Transferability!P195:Q232) -> 0
C19: (5000) Other Charges | P19: =SUMIF(Budget!M240:O276,"Div*",Budget!P240:Q276)+SUMIF(Transferability!J242:M278,"Div*",Transferability!P242:Q278) -> 0
C20: (6000) Materials and Supplies | P20: =SUMIF(Budget!K286:N320,"Div*",Budget!P286:Q320)+SUMIF(Transferability!I288:K322,"Div*",Transferability!P288:Q322) -> 0
C21: (8000) Capital Outlay | P21: =SUMIF(Budget!K330:N363,"Div*",Budget!P330:Q363)+SUMIF(Transferability!I332:K365,"Div*",Transferability!P332:Q365) -> 0
B22: Initiatives
C23: Title I Early Childhood Budget (Personnel and Program) | P23: =SUMIF(Budget!K61:N86,"Early*",Budget!P61:Q86)+SUMIF(Budget!M97:O135,"Early*",Budget!P97:Q135)+SUMIF(Budget!M145:O182,"Early*",Budget!P145:Q182)+SUMIF(Budget!M193:O230,"Early*",Budget!P193:Q230)+SUMIF(Budget!M240:O276,"Early*",Budget!P240:Q276)+SUMIF(Budget!K286:N320,"Early*",Budget!P286:Q320)+SUMIF(Budget!K330:N363,"Early*",Budget!P330:Q363)+SUMIF(Transferability!I63:K88,"Early*",Transferability!P63:Q88)+SUMIF(Transferability!J99:M137,"Early*",Transferability!P99:Q137)+SUMIF(Transferability!J147:M184,"Early*",Transferability!P147:Q184)+SUMIF(Transferability!J195:M232,"Early*",Transferability!P195:Q232)+SUMIF(Transferability!J242:M278,"Early*",Transferability!P242:Q278)+SUMIF(Transferability!I288:K322,"Early*",Transferability!P288:Q322)+SUMIF(Transferability!I332:K365,"Early*",Transferability!P332:Q365) -> 277385
C24: Private School Services (as necessary; not applicable for bypass divisions) These funds are in addition to school-level allocations for private school services. | P24: =ROUND(T53*SUM(M27),2) -> 14018.33
C25: Additional Private School Funds | P25: =(SUMIF(Budget!K61:N86,"Priv*",Budget!P61:Q86)+SUMIF(Budget!M97:O135,"Priv*",Budget!P97:Q135)+SUMIF(Budget!M145:O182,"Priv*",Budget!P145:Q182)+SUMIF(Budget!M193:O230,"Priv*",Budget!P193:Q230)+SUMIF(Budget!M240:O276,"Priv*",Budget!P240:Q276)+SUMIF(Budget!K286:N320,"Priv*",Budget!P286:Q320)+SUMIF(Budget!K330:N363,"Priv*",Budget!P330:Q363)+SUMIF(Transferability!I63:K88,"Priv*",Transferability!P63:Q88)+SUMIF(Transferability!J99:M137,"Priv*",Transferability!P99:Q137)+SUMIF(Transferability!J147:M184,"Priv*",Transferability!P147:Q184)+SUMIF(Transferability!J195:M232,"Priv*",Transferability!P195:Q232)+SUMIF(Transferability!J242:M278,"Priv*",Transferability!P242:Q278)+SUMIF(Transferability!I288:K322,"Priv*",Transferability!P288:Q322)+SUMIF(Transferability!I332:K365,"Priv*",Transferability!P332:Q365))-P24 -> 0.01
B26: Parent and Family Engagement (Required if allocation is $500,000 or more)
C27: Amount of school division allocation ESEA funds (from Page 2): | M27: =SUM(Narrative!O53) -> 1833784.61
C28: 1 percent of allocation (This amount is calculated if school division receives $500,000 or more from Title I, Part A.) | M28: =ROUND(IF(M27>499999.99,0.01*M27,0),2) -> 18337.85 | P28: =M28 -> 18337.85
C29: 90 percent of 1 percent must be used at the school level | M29: =ROUND(0.9*SUM(M28),2) -> 16504.07
C30: 10 percent of 1 percent is set aside by the school division for parent and family engagement initiatives | M30: =ROUND(0.1*SUM($M$28),2) -> 1833.79
C31: Additional Parent and Family Engagement Funds | M31: =(SUMIF(Budget!K61:N86,"PFE*",Budget!P61:Q86)+SUMIF(Budget!M97:O135,"PFE*",Budget!P97:Q135)+SUMIF(Budget!M145:O182,"PFE*",Budget!P145:Q182)+SUMIF(Budget!M193:O230,"PFE*",Budget!P193:Q230)+SUMIF(Budget!M240:O276,"PFE*",Budget!P240:Q276)+SUMIF(Budget!K286:N320,"PFE*",Budget!P286:Q320)+SUMIF(Budget!K330:N363,"PFE*",Budget!P330:Q363)+SUMIF(Transferability!I63:K88,"PFE*",Transferability!P63:Q88)+SUMIF(Transferability!J99:M137,"PFE*",Transferability!P99:Q137)+SUMIF(Transferability!J147:M184,"PFE*",Transferability!P147:Q184)+SUMIF(Transferability!J195:M232,"PFE*",Transferability!P195:Q232)+SUMIF(Transferability!J242:M278,"PFE*",Transferability!P242:Q278)+SUMIF(Transferability!I288:K322,"PFE*",Transferability!P288:Q322)+SUMIF(Transferability!I332:K365,"PFE*",Transferability!P332:Q365))-M28 -> 0.01
C32: Has the required parent and family engagement set aside been met? | M32: =IF(SUM(Budget!H45)+(Transferability!H47+Transferability!L47)>=SUM(M28),"Yes","No - please review your entries.") -> Yes
B33: Homeless (as necessary based on needs identified on homeless tab, question 2) | P33: =SUMIF(Budget!K61:N86,"Home*",Budget!P61:Q86)+SUMIF(Budget!M97:O135,"Home*",Budget!P97:Q135)+SUMIF(Budget!M145:O182,"Home*",Budget!P145:Q182)+SUMIF(Budget!M193:O230,"Home*",Budget!P193:Q230)+SUMIF(Budget!M240:O276,"Home*",Budget!P240:Q276)+SUMIF(Budget!K286:N320,"Home*",Budget!P286:Q320)+SUMIF(Budget!K330:N363,"Home*",Budget!P330:Q363)+SUMIF(Transferability!I63:K88,"Home*",Transferability!P63:Q88)+SUMIF(Transferability!J99:M137,"Home*",Transferability!P99:Q137)+SUMIF(Transferability!J147:M184,"Home*",Transferability!P147:Q184)+SUMIF(Transferability!J195:M232,"Home*",Transferability!P195:Q232)+SUMIF(Transferability!J242:M278,"Home*",Transferability!P242:Q278)+SUMIF(Transferability!I288:K322,"Home*",Transferability!P288:Q322)+SUMIF(Transferability!I332:K365,"Home*",Transferability!P332:Q365) -> 151302.67
B34: Foster Care (as necessary) | P34: =SUMIF(Budget!K61:N86,"Fost*",Budget!P61:Q86)+SUMIF(Budget!M97:O135,"Fost*",Budget!P97:Q135)+SUMIF(Budget!M145:O182,"Fost*",Budget!P145:Q182)+SUMIF(Budget!M193:O230,"Fost*",Budget!P193:Q230)+SUMIF(Budget!M240:O276,"Fost*",Budget!P240:Q276)+SUMIF(Budget!K286:N320,"Fost*",Budget!P286:Q320)+SUMIF(Budget!K330:N363,"Fost*",Budget!P330:Q363)+SUMIF(Transferability!I63:K88,"Fost*",Transferability!P63:Q88)+SUMIF(Transferability!J99:M137,"Fost*",Transferability!P99:Q137)+SUMIF(Transferability!J147:M184,"Fost*",Transferability!P147:Q184)+SUMIF(Transferability!J195:M232,"Fost*",Transferability!P195:Q232)+SUMIF(Transferability!J242:M278,"Fost*",Transferability!P242:Q278)+SUMIF(Transferability!I288:K322,"Fost*",Transferability!P288:Q322)+SUMIF(Transferability!I332:K365,"Fost*",Transferability!P332:Q365) -> 0
B35: Neglected/Delinquent (as necessary) | P35: =SUMIF(Budget!K61:N86,"Neg*",Budget!P61:Q86)+SUMIF(Budget!M97:O135,"Neg*",Budget!P97:Q135)+SUMIF(Budget!M145:O182,"Neg*",Budget!P145:Q182)+SUMIF(Budget!M193:O230,"Neg*",Budget!P193:Q230)+SUMIF(Budget!M240:O276,"Neg*",Budget!P240:Q276)+SUMIF(Budget!K286:N320,"Neg*",Budget!P286:Q320)+SUMIF(Budget!K330:N363,"Neg*",Budget!P330:Q363)+SUMIF(Transferability!I63:K88,"Neg*",Transferability!P63:Q88)+SUMIF(Transferability!J99:M137,"Neg*",Transferability!P99:Q137)+SUMIF(Transferability!J147:M184,"Neg*",Transferability!P147:Q184)+SUMIF(Transferability!J195:M232,"Neg*",Transferability!P195:Q232)+SUMIF(Transferability!J242:M278,"Neg*",Transferability!P242:Q278)+SUMIF(Transferability!I288:K322,"Neg*",Transferability!P288:Q322)+SUMIF(Transferability!I332:K365,"Neg*",Transferability!P332:Q365) -> 0
B36: School Division Set-Asides TOTAL (Feeds Box A on Allocation to Eligible Schools Page) | P36: =SUM(M31,P11:R35) -> 607690.87
B37: Page 37
B38: ='Main Page'!$G$9 -> 2024-2025 | D38: School Division: | E38: ='Main Page'!$F$13 -> Albemarle County Public Schools | I38: Division Number: | J38: ='Main Page'!$F$14 -> 2 | K38: ='Main Page'!$B$6 -> Title I, Part A, Improving Basic Programs
B39: TITLE I, PART A, ALLOCATION TO ELIGIBLE SCHOOLS
I40: Low-Income Factor
I41: 35 percent and Above
B42: A. | I42: B.
B43: Division’s Title I Allocation : | G43: =SUM(Narrative!O53) -> 1833784.61 | I43: *PER PUPIL EXPENDITURE CALCULATION
I44: Step 1:
B45: Minus Set-Asides (if applicable): | G45: =$P$36 -> 607690.87 | I45: =$G$47 -> 1226093.74 | L45: =SUM(L53) -> 1947.2 | N45: = | O45: =IF(ISERROR(I45/L45),0,I45/L45) -> 629.6701623
I46: Amount for Distribution to Schools | L46: Low-Income Pupils in Public Schools Served | O46: Per Pupil Expenditure (PPE)
B47: Amount for Distribution to Schools: | G47: =SUM(G43)-SUM(G45) -> 1226093.74
B49: Divisionwide Average From Low-Income Families | G49: ='Program Requirements'!N315 -> 0.4357905294
B51: (1) | E51: (2) | F51: (3) | G51: (4) | H51: (5) | I51: (6) | J51: (7) | K51: (8) | L51: (9) | M51: (10) | N51: (11) | O51: (12) | P51: (13) | Q51: (14) | R51: (15)
B52: List of schools from highest poverty to lowest | E52: Is School Served? Yes or No | F52: Grade Span of School | G52: Targeted Assistance School? Yes or No | H52: Schoolwide Program School? Yes or No | I52: ="Number of Title I, Part A School Level FTE Personnel Funded with " & 'Main Page'!G9 & " Funds" -> Number of Title I, Part A School Level FTE Personnel Funded with 2024-2025 Funds | J52: ="Number of Title I, Part A School Level FTE Paraprofessionals Funded with " &'Main Page'!G9 & " Funds" -> Number of Title I, Part A School Level FTE Paraprofessionals Funded with 2024-2025 Funds | K52: Low-Income Private School Membership | L52: Low-Income Public School Membership | M52: Percent Low-Income | N52: Minimum School Allocation | O52: ="Distribution Balance: "&+SUM(G47) &" from Box A" -> Distribution Balance: 1226093.74 from Box A | P52: School Reallocation Amount | Q52: School Allocation Total | R52: Adjusted PPE
B53: TOTALS | I53: =SUM(I58:I256) -> 11.1 | J53: =SUM(J58:J256) -> 0 | K53: =SUM(K58:K256) -> 15 | L53: =SUM(L58:L256) -> 1947.2 | N53: =SUM(N58:N256) -> 1226093.74 | O53: =G47 -> 1226093.74 | P53: =SUM(P58:P256) -> 0 | Q53: =SUM(Q58:Q256) -> 1226093.74 | T53: =IF((K53+L53)=0,0,K53/(K53+L53)) -> 0.007644480685
B54: The totals in columns 6 & 7 applies to all school level personnel funded with Title I except for early childhood personnel included on line 23 above, and parent and family engagement personnel included on lines 28 and 31 above. | O54: Balance to Reallocate | Q54: =SUM(G47-Q53) -> 0
B57: 1 | C57: 2 | D57: 3 | E57: 4 | F57: 5 | G57: 6 | H57: 7 | I57: 8 | J57: 9 | K57: 10 | L57: 11 | M57: 12 | N57: 13 | O57: 14 | P57: 15 | Q57: 16 | R57: 17
B58: =IF(ISBLANK('Program Requirements'!B103),"",('Program Requirements'!B103)) -> Woodbrook Elementary | E58: Yes | F58: =IF(ISBLANK('Program Requirements'!E103),"",'Program Requirements'!E103) -> PK - 05 | G58: No | H58: Yes | I58: 2.8 | K58: =IF(E58="Yes",('Program Requirements'!H103),"") -> 9 | L58: =IF(E58="Yes",('Program Requirements'!M103),"") -> 484.8 | M58: =IF(ISBLANK('Program Requirements'!N103),"",'Program Requirements'!N103) -> 0.8203045685 | N58: =IF(E58="Yes",(L58)*$O$45,0) -> 305264.0947 | O58: =G47-N58 -> 920829.6453 | Q58: =IF(SUM(P58)=0,SUM(N58),IF(SUM(N58,P58)=P58,"ERROR",SUM(N58,P58))) -> 305264.0947 | R58: =IF(E58="Yes",SUM(Q58)/SUM(L58),"") -> 629.6701623
B59: =IF(ISBLANK('Program Requirements'!B104),"",('Program Requirements'!B104)) -> Mary Carr Greer Elementary | E59: Yes | F59: =IF(ISBLANK('Program Requirements'!E104),"",'Program Requirements'!E104) -> PK - 05 | G59: No | H59: Yes | I59: 2.8 | K59: =IF(E59="Yes",('Program Requirements'!H104),"") -> 1 | L59: =IF(E59="Yes",('Program Requirements'!M104),"") -> 411.2 | M59: =IF(ISBLANK('Program Requirements'!N104),"",'Program Requirements'!N104) -> 0.7892514395 | N59: =IF(E59="Yes",(L59)*$O$45,0) -> 258920.3707 | O59: =O58-N59 -> 661909.2746 | Q59: =IF(SUM(P59)=0,SUM(N59),IF(SUM(N59,P59)=P59,"ERROR",SUM(N59,P59))) -> 258920.3707 | R59: =IF(E59="Yes",SUM(Q59)/SUM(L59),"") -> 629.6701623
B60: =IF(ISBLANK('Program Requirements'!B105),"",('Program Requirements'!B105)) -> Journey Middle | E60: No | F60: =IF(ISBLANK('Program Requirements'!E105),"",'Program Requirements'!E105) -> 06 - 08 | G60: No | H60: No | K60: =IF(E60="Yes",('Program Requirements'!H105),"") ->  | L60: =IF(E60="Yes",('Program Requirements'!M105),"") ->  | M60: =IF(ISBLANK('Program Requirements'!N105),"",'Program Requirements'!N105) -> 0.7133757962 | N60: 0 | O60: 661909.2746 | Q60: 0
B61: =IF(ISBLANK('Program Requirements'!B106),"",('Program Requirements'!B106)) -> Red Hill Elementary | E61: Yes | F61: =IF(ISBLANK('Program Requirements'!E106),"",'Program Requirements'!E106) -> PK - 05 | G61: No | H61: Yes | I61: 0.5 | K61: =IF(E61="Yes",('Program Requirements'!H106),"") -> 1 | L61: =IF(E61="Yes",('Program Requirements'!M106),"") -> 129.6 | M61: =IF(ISBLANK('Program Requirements'!N106),"",'Program Requirements'!N106) -> 0.675 | N61: 81605.25303 | O61: 580304.0216 | Q61: 81605.25303 | R61: 629.6701623
B62: =IF(ISBLANK('Program Requirements'!B107),"",('Program Requirements'!B107)) -> Agnor-Hurt Elementary | E62: Yes | F62: =IF(ISBLANK('Program Requirements'!E107),"",'Program Requirements'!E107) -> PK - 05 | G62: No | H62: Yes | I62: 2 | K62: =IF(E62="Yes",('Program Requirements'!H107),"") -> 1 | L62: =IF(E62="Yes",('Program Requirements'!M107),"") -> 294.4 | M62: =IF(ISBLANK('Program Requirements'!N107),"",'Program Requirements'!N107) -> 0.6498896247 | N62: 185374.8958 | O62: 394929.1258 | Q62: 185374.8958 | R62: 629.6701623
B63: =IF(ISBLANK('Program Requirements'!B108),"",('Program Requirements'!B108)) -> Mountain View Elementary | E63: Yes | F63: =IF(ISBLANK('Program Requirements'!E108),"",'Program Requirements'!E108) -> PK - 05 | G63: No | H63: Yes | I63: 2.5 | K63: =IF(E63="Yes",('Program Requirements'!H108),"") -> 1 | L63: =IF(E63="Yes",('Program Requirements'!M108),"") -> 483.2 | M63: =IF(ISBLANK('Program Requirements'!N108),"",'Program Requirements'!N108) -> 0.6451268358 | N63: 304256.6224 | O63: 90672.50337 | Q63: 304256.6224 | R63: 629.6701623
B64: =IF(ISBLANK('Program Requirements'!B109),"",('Program Requirements'!B109)) -> Scottsville Elementary | E64: Yes | F64: =IF(ISBLANK('Program Requirements'!E109),"",'Program Requirements'!E109) -> PK - 05 | G64: No | H64: Yes | I64: 0.5 | K64: =IF(E64="Yes",('Program Requirements'!H109),"") -> 2 | L64: =IF(E64="Yes",('Program Requirements'!M109),"") -> 144 | M64: =IF(ISBLANK('Program Requirements'!N109),"",'Program Requirements'!N109) -> 0.6343612335 | N64: 90672.50337 | O64: 0 | Q64: 90672.50337 | R64: 629.6701623
B65: =IF(ISBLANK('Program Requirements'!B110),"",('Program Requirements'!B110)) -> Jackson P. Burley Middle | E65: No | F65: =IF(ISBLANK('Program Requirements'!E110),"",'Program Requirements'!E110) -> 06 - 08 | G65: No | H65: No | K65: =IF(E65="Yes",('Program Requirements'!H110),"") ->  | L65: =IF(E65="Yes",('Program Requirements'!M110),"") ->  | M65: =IF(ISBLANK('Program Requirements'!N110),"",'Program Requirements'!N110) -> 0.5953488372 | N65: 0 | O65: 0 | Q65: 0
B66: =IF(ISBLANK('Program Requirements'!B111),"",('Program Requirements'!B111)) -> Leslie H. Walton Middle | E66: No | F66: =IF(ISBLANK('Program Requirements'!E111),"",'Program Requirements'!E111) -> 06 - 08 | G66: No | H66: No | K66: =IF(E66="Yes",('Program Requirements'!H111),"") ->  | L66: =IF(E66="Yes",('Program Requirements'!M111),"") ->  | M66: =IF(ISBLANK('Program Requirements'!N111),"",'Program Requirements'!N111) -> 0.5396449704 | N66: 0 | O66: 0 | Q66: 0
B67: =IF(ISBLANK('Program Requirements'!B112),"",('Program Requirements'!B112)) -> Monticello High | E67: No | F67: =IF(ISBLANK('Program Requirements'!E112),"",'Program Requirements'!E112) -> 09 - 12 | G67: No | H67: No | K67: =IF(E67="Yes",('Program Requirements'!H112),"") ->  | L67: =IF(E67="Yes",('Program Requirements'!M112),"") ->  | M67: =IF(ISBLANK('Program Requirements'!N112),"",'Program Requirements'!N112) -> 0.5223684211 | N67: 0 | O67: 0 | Q67: 0
B68: =IF(ISBLANK('Program Requirements'!B113),"",('Program Requirements'!B113)) -> Albemarle High | E68: No | F68: =IF(ISBLANK('Program Requirements'!E113),"",'Program Requirements'!E113) -> 09 - 12 | G68: No | H68: No | K68: =IF(E68="Yes",('Program Requirements'!H113),"") ->  | L68: =IF(E68="Yes",('Program Requirements'!M113),"") ->  | M68: =IF(ISBLANK('Program Requirements'!N113),"",'Program Requirements'!N113) -> 0.4613346918 | N68: 0 | O68: 0 | Q68: 0
B69: =IF(ISBLANK('Program Requirements'!B114),"",('Program Requirements'!B114)) -> Stone Robinson Elementary | E69: No | F69: =IF(ISBLANK('Program Requirements'!E114),"",'Program Requirements'!E114) -> PK - 05 | G69: No | H69: No | K69: =IF(E69="Yes",('Program Requirements'!H114),"") ->  | L69: =IF(E69="Yes",('Program Requirements'!M114),"") ->  | M69: =IF(ISBLANK('Program Requirements'!N114),"",'Program Requirements'!N114) -> 0.449475891 | N69: 0 | O69: 0 | Q69: 0
B70: =IF(ISBLANK('Program Requirements'!B115),"",('Program Requirements'!B115)) -> Stony Point Elementary | E70: No | F70: =IF(ISBLANK('Program Requirements'!E115),"",'Program Requirements'!E115) -> KG - 05 | G70: No | H70: No | K70: =IF(E70="Yes",('Program Requirements'!H115),"") ->  | L70: =IF(E70="Yes",('Program Requirements'!M115),"") ->  | M70: =IF(ISBLANK('Program Requirements'!N115),"",'Program Requirements'!N115) -> 0.3813471503 | N70: 0 | O70: 0 | Q70: 0
B71: =IF(ISBLANK('Program Requirements'!B116),"",('Program Requirements'!B116)) -> Baker-Butler Elementary | E71: No | F71: =IF(ISBLANK('Program Requirements'!E116),"",'Program Requirements'!E116) -> PK - 05 | G71: No | H71: No | K71: =IF(E71="Yes",('Program Requirements'!H116),"") ->  | L71: =IF(E71="Yes",('Program Requirements'!M116),"") ->  | M71: =IF(ISBLANK('Program Requirements'!N116),"",'Program Requirements'!N116) -> 0.3649867374 | N71: 0 | O71: 0 | Q71: 0
B72: =IF(ISBLANK('Program Requirements'!B117),"",('Program Requirements'!B117)) -> Lakeside Middle | E72: No | F72: =IF(ISBLANK('Program Requirements'!E117),"",'Program Requirements'!E117) -> 06 - 08 | G72: No | H72: No | K72: =IF(E72="Yes",('Program Requirements'!H117),"") ->  | L72: =IF(E72="Yes",('Program Requirements'!M117),"") ->  | M72: =IF(ISBLANK('Program Requirements'!N117),"",'Program Requirements'!N117) -> 0.3087719298 | N72: 0 | O72: 0 | Q72: 0
B73: =IF(ISBLANK('Program Requirements'!B118),"",('Program Requirements'!B118)) -> Broadus Wood Elementary | E73: No | F73: =IF(ISBLANK('Program Requirements'!E118),"",'Program Requirements'!E118) -> PK - 05 | G73: No | H73: No | K73: =IF(E73="Yes",('Program Requirements'!H118),"") ->  | L73: =IF(E73="Yes",('Program Requirements'!M118),"") ->  | M73: =IF(ISBLANK('Program Requirements'!N118),"",'Program Requirements'!N118) -> 0.256227758 | N73: 0 | O73: 0 | Q73: 0
B74: =IF(ISBLANK('Program Requirements'!B119),"",('Program Requirements'!B119)) -> Hollymead Elementary | E74: No | F74: =IF(ISBLANK('Program Requirements'!E119),"",'Program Requirements'!E119) -> PK - 05 | G74: No | H74: No | K74: =IF(E74="Yes",('Program Requirements'!H119),"") ->  | L74: =IF(E74="Yes",('Program Requirements'!M119),"") ->  | M74: =IF(ISBLANK('Program Requirements'!N119),"",'Program Requirements'!N119) -> 0.2542465753 | N74: 0 | O74: 0 | Q74: 0
B75: =IF(ISBLANK('Program Requirements'!B120),"",('Program Requirements'!B120)) -> Crozet Elementary | E75: No | F75: =IF(ISBLANK('Program Requirements'!E120),"",'Program Requirements'!E120) -> KG - 05 | G75: No | H75: No | K75: =IF(E75="Yes",('Program Requirements'!H120),"") ->  | L75: =IF(E75="Yes",('Program Requirements'!M120),"") ->  | M75: =IF(ISBLANK('Program Requirements'!N120),"",'Program Requirements'!N120) -> 0.2454713494 | N75: 0 | O75: 0 | Q75: 0
B76: =IF(ISBLANK('Program Requirements'!B121),"",('Program Requirements'!B121)) -> Brownsville Elementary | E76: No | F76: =IF(ISBLANK('Program Requirements'!E121),"",'Program Requirements'!E121) -> PK - 05 | G76: No | H76: No | K76: =IF(E76="Yes",('Program Requirements'!H121),"") ->  | L76: =IF(E76="Yes",('Program Requirements'!M121),"") ->  | M76: =IF(ISBLANK('Program Requirements'!N121),"",'Program Requirements'!N121) -> 0.2386440678 | N76: 0 | O76: 0 | Q76: 0
B77: =IF(ISBLANK('Program Requirements'!B122),"",('Program Requirements'!B122)) -> Joseph T. Henley Middle | E77: No | F77: =IF(ISBLANK('Program Requirements'!E122),"",'Program Requirements'!E122) -> 06 - 08 | G77: No | H77: No | K77: =IF(E77="Yes",('Program Requirements'!H122),"") ->  | L77: =IF(E77="Yes",('Program Requirements'!M122),"") ->  | M77: =IF(ISBLANK('Program Requirements'!N122),"",'Program Requirements'!N122) -> 0.199252802 | N77: 0 | O77: 0 | Q77: 0
B78: =IF(ISBLANK('Program Requirements'!B123),"",('Program Requirements'!B123)) -> Western Albemarle High | E78: No | F78: =IF(ISBLANK('Program Requirements'!E123),"",'Program Requirements'!E123) -> 09 - 12 | G78: No | H78: No | K78: =IF(E78="Yes",('Program Requirements'!H123),"") ->  | L78: =IF(E78="Yes",('Program Requirements'!M123),"") ->  | M78: =IF(ISBLANK('Program Requirements'!N123),"",'Program Requirements'!N123) -> 0.1886462882 | N78: 0 | O78: 0 | Q78: 0
B79: =IF(ISBLANK('Program Requirements'!B124),"",('Program Requirements'!B124)) -> Virginia L. Murray Elementary | E79: No | F79: =IF(ISBLANK('Program Requirements'!E124),"",'Program Requirements'!E124) -> PK - 05 | G79: No | H79: No | K79: =IF(E79="Yes",('Program Requirements'!H124),"") ->  | L79: =IF(E79="Yes",('Program Requirements'!M124),"") ->  | M79: =IF(ISBLANK('Program Requirements'!N124),"",'Program Requirements'!N124) -> 0.1 | N79: 0 | O79: 0 | Q79: 0
B80: =IF(ISBLANK('Program Requirements'!B125),"",('Program Requirements'!B125)) -> Ivy Elementary | E80: No | F80: =IF(ISBLANK('Program Requirements'!E125),"",'Program Requirements'!E125) -> KG - 05 | G80: No | H80: No | K80: =IF(E80="Yes",('Program Requirements'!H125),"") ->  | L80: =IF(E80="Yes",('Program Requirements'!M125),"") ->  | M80: =IF(ISBLANK('Program Requirements'!N125),"",'Program Requirements'!N125) -> 0.09940828402 | N80: 0 | O80: 0 | Q80: 0
B81: =IF(ISBLANK('Program Requirements'!B126),"",('Program Requirements'!B126)) -> Community Lab School | E81: No | F81: =IF(ISBLANK('Program Requirements'!E126),"",'Program Requirements'!E126) -> 06 - 08 | G81: No | H81: No | K81: =IF(E81="Yes",('Program Requirements'!H126),"") ->  | L81: =IF(E81="Yes",('Program Requirements'!M126),"") ->  | M81: =IF(ISBLANK('Program Requirements'!N126),"",'Program Requirements'!N126) -> 0.04188481675 | N81: 0 | O81: 0 | Q81: 0
B82: =IF(ISBLANK('Program Requirements'!B127),"",('Program Requirements'!B127)) ->  | F82: =IF(ISBLANK('Program Requirements'!E127),"",'Program Requirements'!E127) ->  | K82: =IF(E82="Yes",('Program Requirements'!H127),"") ->  | L82: =IF(E82="Yes",('Program Requirements'!M127),"") ->  | M82: =IF(ISBLANK('Program Requirements'!N127),"",'Program Requirements'!N127) -> 0 | N82: 0 | O82: 0 | Q82: 0
B83: =IF(ISBLANK('Program Requirements'!B128),"",('Program Requirements'!B128)) ->  | F83: =IF(ISBLANK('Program Requirements'!E128),"",'Program Requirements'!E128) ->  | K83: =IF(E83="Yes",('Program Requirements'!H128),"") ->  | L83: =IF(E83="Yes",('Program Requirements'!M128),"") ->  | M83: =IF(ISBLANK('Program Requirements'!N128),"",'Program Requirements'!N128) -> 0 | N83: 0 | O83: 0 | Q83: 0
B84: =IF(ISBLANK('Program Requirements'!B129),"",('Program Requirements'!B129)) ->  | F84: =IF(ISBLANK('Program Requirements'!E129),"",'Program Requirements'!E129) ->  | K84: =IF(E84="Yes",('Program Requirements'!H129),"") ->  | L84: =IF(E84="Yes",('Program Requirements'!M129),"") ->  | M84: =IF(ISBLANK('Program Requirements'!N129),"",'Program Requirements'!N129) -> 0 | N84: 0 | O84: 0 | Q84: 0
B85: =IF(ISBLANK('Program Requirements'!B130),"",('Program Requirements'!B130)) ->  | F85: =IF(ISBLANK('Program Requirements'!E130),"",'Program Requirements'!E130) ->  | K85: =IF(E85="Yes",('Program Requirements'!H130),"") ->  | L85: =IF(E85="Yes",('Program Requirements'!M130),"") ->  | M85: =IF(ISBLANK('Program Requirements'!N130),"",'Program Requirements'!N130) -> 0 | N85: 0 | O85: 0 | Q85: 0
B86: =IF(ISBLANK('Program Requirements'!B131),"",('Program Requirements'!B131)) ->  | F86: =IF(ISBLANK('Program Requirements'!E131),"",'Program Requirements'!E131) ->  | K86: =IF(E86="Yes",('Program Requirements'!H131),"") ->  | L86: =IF(E86="Yes",('Program Requirements'!M131),"") ->  | M86: =IF(ISBLANK('Program Requirements'!N131),"",'Program Requirements'!N131) -> 0 | N86: 0 | O86: 0 | Q86: 0
B87: =IF(ISBLANK('Program Requirements'!B132),"",('Program Requirements'!B132)) ->  | F87: =IF(ISBLANK('Program Requirements'!E132),"",'Program Requirements'!E132) ->  | K87: =IF(E87="Yes",('Program Requirements'!H132),"") ->  | L87: =IF(E87="Yes",('Program Requirements'!M132),"") ->  | M87: =IF(ISBLANK('Program Requirements'!N132),"",'Program Requirements'!N132) -> 0 | N87: 0 | O87: 0 | Q87: 0
B88: =IF(ISBLANK('Program Requirements'!B133),"",('Program Requirements'!B133)) ->  | F88: =IF(ISBLANK('Program Requirements'!E133),"",'Program Requirements'!E133) ->  | K88: =IF(E88="Yes",('Program Requirements'!H133),"") ->  | L88: =IF(E88="Yes",('Program Requirements'!M133),"") ->  | M88: =IF(ISBLANK('Program Requirements'!N133),"",'Program Requirements'!N133) -> 0 | N88: 0 | O88: 0 | Q88: 0
B89: =IF(ISBLANK('Program Requirements'!B134),"",('Program Requirements'!B134)) ->  | F89: =IF(ISBLANK('Program Requirements'!E134),"",'Program Requirements'!E134) ->  | K89: =IF(E89="Yes",('Program Requirements'!H134),"") ->  | L89: =IF(E89="Yes",('Program Requirements'!M134),"") ->  | M89: =IF(ISBLANK('Program Requirements'!N134),"",'Program Requirements'!N134) -> 0 | N89: 0 | O89: 0 | Q89: 0
B90: =IF(ISBLANK('Program Requirements'!B135),"",('Program Requirements'!B135)) ->  | F90: =IF(ISBLANK('Program Requirements'!E135),"",'Program Requirements'!E135) ->  | K90: =IF(E90="Yes",('Program Requirements'!H135),"") ->  | L90: =IF(E90="Yes",('Program Requirements'!M135),"") ->  | M90: =IF(ISBLANK('Program Requirements'!N135),"",'Program Requirements'!N135) -> 0 | N90: 0 | O90: 0 | Q90: 0 | R90: =IF(E90="Yes",SUM(Q90)/SUM(L90),"") -> 
B91: =IF(ISBLANK('Program Requirements'!B136),"",('Program Requirements'!B136)) ->  | F91: =IF(ISBLANK('Program Requirements'!E136),"",'Program Requirements'!E136) ->  | K91: =IF(E91="Yes",('Program Requirements'!H136),"") ->  | L91: =IF(E91="Yes",('Program Requirements'!M136),"") ->  | M91: =IF(ISBLANK('Program Requirements'!N136),"",'Program Requirements'!N136) -> 0 | N91: 0 | O91: 0 | Q91: 0
B92: =IF(ISBLANK('Program Requirements'!B137),"",('Program Requirements'!B137)) ->  | F92: =IF(ISBLANK('Program Requirements'!E137),"",'Program Requirements'!E137) ->  | K92: =IF(E92="Yes",('Program Requirements'!H137),"") ->  | L92: =IF(E92="Yes",('Program Requirements'!M137),"") ->  | M92: =IF(ISBLANK('Program Requirements'!N137),"",'Program Requirements'!N137) -> 0 | N92: 0 | O92: 0 | Q92: 0
B93: =IF(ISBLANK('Program Requirements'!B138),"",('Program Requirements'!B138)) ->  | F93: =IF(ISBLANK('Program Requirements'!E138),"",'Program Requirements'!E138) ->  | K93: =IF(E93="Yes",('Program Requirements'!H138),"") ->  | L93: =IF(E93="Yes",('Program Requirements'!M138),"") ->  | M93: =IF(ISBLANK('Program Requirements'!N138),"",'Program Requirements'!N138) -> 0 | N93: 0 | O93: 0 | Q93: 0
B94: =IF(ISBLANK('Program Requirements'!B139),"",('Program Requirements'!B139)) ->  | F94: =IF(ISBLANK('Program Requirements'!E139),"",'Program Requirements'!E139) ->  | K94: =IF(E94="Yes",('Program Requirements'!H139),"") ->  | L94: =IF(E94="Yes",('Program Requirements'!M139),"") ->  | M94: =IF(ISBLANK('Program Requirements'!N139),"",'Program Requirements'!N139) -> 0 | N94: 0 | O94: 0 | Q94: 0
B95: =IF(ISBLANK('Program Requirements'!B140),"",('Program Requirements'!B140)) ->  | F95: =IF(ISBLANK('Program Requirements'!E140),"",'Program Requirements'!E140) ->  | K95: =IF(E95="Yes",('Program Requirements'!H140),"") ->  | L95: =IF(E95="Yes",('Program Requirements'!M140),"") ->  | M95: =IF(ISBLANK('Program Requirements'!N140),"",'Program Requirements'!N140) -> 0 | N95: 0 | O95: 0 | Q95: 0
B96: =IF(ISBLANK('Program Requirements'!B141),"",('Program Requirements'!B141)) ->  | F96: =IF(ISBLANK('Program Requirements'!E141),"",'Program Requirements'!E141) ->  | K96: =IF(E96="Yes",('Program Requirements'!H141),"") ->  | L96: =IF(E96="Yes",('Program Requirements'!M141),"") ->  | M96: =IF(ISBLANK('Program Requirements'!N141),"",'Program Requirements'!N141) -> 0 | N96: 0 | O96: 0 | Q96: 0
B97: =IF(ISBLANK('Program Requirements'!B142),"",('Program Requirements'!B142)) ->  | F97: =IF(ISBLANK('Program Requirements'!E142),"",'Program Requirements'!E142) ->  | K97: =IF(E97="Yes",('Program Requirements'!H142),"") ->  | L97: =IF(E97="Yes",('Program Requirements'!M142),"") ->  | M97: =IF(ISBLANK('Program Requirements'!N142),"",'Program Requirements'!N142) -> 0 | N97: 0 | O97: 0 | Q97: 0
B98: =IF(ISBLANK('Program Requirements'!B143),"",('Program Requirements'!B143)) ->  | F98: =IF(ISBLANK('Program Requirements'!E143),"",'Program Requirements'!E143) ->  | K98: =IF(E98="Yes",('Program Requirements'!H143),"") ->  | L98: =IF(E98="Yes",('Program Requirements'!M143),"") ->  | M98: =IF(ISBLANK('Program Requirements'!N143),"",'Program Requirements'!N143) -> 0 | N98: 0 | O98: 0 | Q98: 0
B99: =IF(ISBLANK('Program Requirements'!B144),"",('Program Requirements'!B144)) ->  | F99: =IF(ISBLANK('Program Requirements'!E144),"",'Program Requirements'!E144) ->  | K99: =IF(E99="Yes",('Program Requirements'!H144),"") ->  | L99: =IF(E99="Yes",('Program Requirements'!M144),"") ->  | M99: =IF(ISBLANK('Program Requirements'!N144),"",'Program Requirements'!N144) -> 0 | N99: 0 | O99: 0 | Q99: 0
B100: =IF(ISBLANK('Program Requirements'!B145),"",('Program Requirements'!B145)) ->  | F100: =IF(ISBLANK('Program Requirements'!E145),"",'Program Requirements'!E145) ->  | K100: =IF(E100="Yes",('Program Requirements'!H145),"") ->  | L100: =IF(E100="Yes",('Program Requirements'!M145),"") ->  | M100: =IF(ISBLANK('Program Requirements'!N145),"",'Program Requirements'!N145) -> 0 | N100: 0 | O100: 0 | Q100: 0
B101: =IF(ISBLANK('Program Requirements'!B146),"",('Program Requirements'!B146)) ->  | F101: =IF(ISBLANK('Program Requirements'!E146),"",'Program Requirements'!E146) ->  | K101: =IF(E101="Yes",('Program Requirements'!H146),"") ->  | L101: =IF(E101="Yes",('Program Requirements'!M146),"") ->  | M101: =IF(ISBLANK('Program Requirements'!N146),"",'Program Requirements'!N146) -> 0 | N101: 0 | O101: 0 | Q101: 0
B102: =IF(ISBLANK('Program Requirements'!B147),"",('Program Requirements'!B147)) ->  | F102: =IF(ISBLANK('Program Requirements'!E147),"",'Program Requirements'!E147) ->  | K102: =IF(E102="Yes",('Program Requirements'!H147),"") ->  | L102: =IF(E102="Yes",('Program Requirements'!M147),"") ->  | M102: =IF(ISBLANK('Program Requirements'!N147),"",'Program Requirements'!N147) -> 0 | N102: 0 | O102: 0 | Q102: 0
B103: =IF(ISBLANK('Program Requirements'!B148),"",('Program Requirements'!B148)) ->  | F103: =IF(ISBLANK('Program Requirements'!E148),"",'Program Requirements'!E148) ->  | K103: =IF(E103="Yes",('Program Requirements'!H148),"") ->  | L103: =IF(E103="Yes",('Program Requirements'!M148),"") ->  | M103: =IF(ISBLANK('Program Requirements'!N148),"",'Program Requirements'!N148) -> 0 | N103: 0 | O103: 0 | Q103: 0
B104: =IF(ISBLANK('Program Requirements'!B149),"",('Program Requirements'!B149)) ->  | F104: =IF(ISBLANK('Program Requirements'!E149),"",'Program Requirements'!E149) ->  | K104: =IF(E104="Yes",('Program Requirements'!H149),"") ->  | L104: =IF(E104="Yes",('Program Requirements'!M149),"") ->  | M104: =IF(ISBLANK('Program Requirements'!N149),"",'Program Requirements'!N149) -> 0 | N104: 0 | O104: 0 | Q104: 0
B105: =IF(ISBLANK('Program Requirements'!B150),"",('Program Requirements'!B150)) ->  | F105: =IF(ISBLANK('Program Requirements'!E150),"",'Program Requirements'!E150) ->  | K105: =IF(E105="Yes",('Program Requirements'!H150),"") ->  | L105: =IF(E105="Yes",('Program Requirements'!M150),"") ->  | M105: =IF(ISBLANK('Program Requirements'!N150),"",'Program Requirements'!N150) -> 0 | N105: 0 | O105: 0 | Q105: 0
B106: =IF(ISBLANK('Program Requirements'!B151),"",('Program Requirements'!B151)) ->  | F106: =IF(ISBLANK('Program Requirements'!E151),"",'Program Requirements'!E151) ->  | K106: =IF(E106="Yes",('Program Requirements'!H151),"") ->  | L106: =IF(E106="Yes",('Program Requirements'!M151),"") ->  | M106: =IF(ISBLANK('Program Requirements'!N151),"",'Program Requirements'!N151) -> 0 | N106: 0 | O106: 0 | Q106: 0
B107: =IF(ISBLANK('Program Requirements'!B152),"",('Program Requirements'!B152)) ->  | F107: =IF(ISBLANK('Program Requirements'!E152),"",'Program Requirements'!E152) ->  | K107: =IF(E107="Yes",('Program Requirements'!H152),"") ->  | L107: =IF(E107="Yes",('Program Requirements'!M152),"") ->  | M107: =IF(ISBLANK('Program Requirements'!N152),"",'Program Requirements'!N152) -> 0 | N107: 0 | O107: 0 | Q107: 0
B108: =IF(ISBLANK('Program Requirements'!B153),"",('Program Requirements'!B153)) ->  | F108: =IF(ISBLANK('Program Requirements'!E153),"",'Program Requirements'!E153) ->  | K108: =IF(E108="Yes",('Program Requirements'!H153),"") ->  | L108: =IF(E108="Yes",('Program Requirements'!M153),"") ->  | M108: =IF(ISBLANK('Program Requirements'!N153),"",'Program Requirements'!N153) -> 0 | N108: 0 | O108: 0 | Q108: 0
B109: =IF(ISBLANK('Program Requirements'!B154),"",('Program Requirements'!B154)) ->  | F109: =IF(ISBLANK('Program Requirements'!E154),"",'Program Requirements'!E154) ->  | K109: =IF(E109="Yes",('Program Requirements'!H154),"") ->  | L109: =IF(E109="Yes",('Program Requirements'!M154),"") ->  | M109: =IF(ISBLANK('Program Requirements'!N154),"",'Program Requirements'!N154) -> 0 | N109: 0 | O109: 0 | Q109: 0
B110: =IF(ISBLANK('Program Requirements'!B155),"",('Program Requirements'!B155)) ->  | F110: =IF(ISBLANK('Program Requirements'!E155),"",'Program Requirements'!E155) ->  | K110: =IF(E110="Yes",('Program Requirements'!H155),"") ->  | L110: =IF(E110="Yes",('Program Requirements'!M155),"") ->  | M110: =IF(ISBLANK('Program Requirements'!N155),"",'Program Requirements'!N155) -> 0 | N110: 0 | O110: 0 | Q110: 0
B111: =IF(ISBLANK('Program Requirements'!B156),"",('Program Requirements'!B156)) ->  | F111: =IF(ISBLANK('Program Requirements'!E156),"",'Program Requirements'!E156) ->  | K111: =IF(E111="Yes",('Program Requirements'!H156),"") ->  | L111: =IF(E111="Yes",('Program Requirements'!M156),"") ->  | M111: =IF(ISBLANK('Program Requirements'!N156),"",'Program Requirements'!N156) -> 0 | N111: 0 | O111: 0 | Q111: 0
B112: =IF(ISBLANK('Program Requirements'!B157),"",('Program Requirements'!B157)) ->  | F112: =IF(ISBLANK('Program Requirements'!E157),"",'Program Requirements'!E157) ->  | K112: =IF(E112="Yes",('Program Requirements'!H157),"") ->  | L112: =IF(E112="Yes",('Program Requirements'!M157),"") ->  | M112: =IF(ISBLANK('Program Requirements'!N157),"",'Program Requirements'!N157) -> 0 | N112: 0 | O112: 0 | Q112: 0
B113: =IF(ISBLANK('Program Requirements'!B158),"",('Program Requirements'!B158)) ->  | F113: =IF(ISBLANK('Program Requirements'!E158),"",'Program Requirements'!E158) ->  | K113: =IF(E113="Yes",('Program Requirements'!H158),"") ->  | L113: =IF(E113="Yes",('Program Requirements'!M158),"") ->  | M113: =IF(ISBLANK('Program Requirements'!N158),"",'Program Requirements'!N158) -> 0 | N113: 0 | O113: 0 | Q113: 0
B114: =IF(ISBLANK('Program Requirements'!B159),"",('Program Requirements'!B159)) ->  | F114: =IF(ISBLANK('Program Requirements'!E159),"",'Program Requirements'!E159) ->  | K114: =IF(E114="Yes",('Program Requirements'!H159),"") ->  | L114: =IF(E114="Yes",('Program Requirements'!M159),"") ->  | M114: =IF(ISBLANK('Program Requirements'!N159),"",'Program Requirements'!N159) -> 0 | N114: 0 | O114: 0 | Q114: 0
B115: =IF(ISBLANK('Program Requirements'!B160),"",('Program Requirements'!B160)) ->  | F115: =IF(ISBLANK('Program Requirements'!E160),"",'Program Requirements'!E160) ->  | K115: =IF(E115="Yes",('Program Requirements'!H160),"") ->  | L115: =IF(E115="Yes",('Program Requirements'!M160),"") ->  | M115: =IF(ISBLANK('Program Requirements'!N160),"",'Program Requirements'!N160) -> 0 | N115: 0 | O115: 0 | Q115: 0
B116: =IF(ISBLANK('Program Requirements'!B161),"",('Program Requirements'!B161)) ->  | F116: =IF(ISBLANK('Program Requirements'!E161),"",'Program Requirements'!E161) ->  | K116: =IF(E116="Yes",('Program Requirements'!H161),"") ->  | L116: =IF(E116="Yes",('Program Requirements'!M161),"") ->  | M116: =IF(ISBLANK('Program Requirements'!N161),"",'Program Requirements'!N161) -> 0 | N116: 0 | O116: 0 | Q116: 0
B117: =IF(ISBLANK('Program Requirements'!B162),"",('Program Requirements'!B162)) ->  | F117: =IF(ISBLANK('Program Requirements'!E162),"",'Program Requirements'!E162) ->  | K117: =IF(E117="Yes",('Program Requirements'!H162),"") ->  | L117: =IF(E117="Yes",('Program Requirements'!M162),"") ->  | M117: =IF(ISBLANK('Program Requirements'!N162),"",'Program Requirements'!N162) -> 0 | N117: 0 | O117: 0 | Q117: 0
B118: =IF(ISBLANK('Program Requirements'!B163),"",('Program Requirements'!B163)) ->  | F118: =IF(ISBLANK('Program Requirements'!E163),"",'Program Requirements'!E163) ->  | K118: =IF(E118="Yes",('Program Requirements'!H163),"") ->  | L118: =IF(E118="Yes",('Program Requirements'!M163),"") ->  | M118: =IF(ISBLANK('Program Requirements'!N163),"",'Program Requirements'!N163) -> 0 | N118: 0 | O118: 0 | Q118: 0
B119: =IF(ISBLANK('Program Requirements'!B164),"",('Program Requirements'!B164)) ->  | F119: =IF(ISBLANK('Program Requirements'!E164),"",'Program Requirements'!E164) ->  | K119: =IF(E119="Yes",('Program Requirements'!H164),"") ->  | L119: =IF(E119="Yes",('Program Requirements'!M164),"") ->  | M119: =IF(ISBLANK('Program Requirements'!N164),"",'Program Requirements'!N164) -> 0 | N119: 0 | O119: 0 | Q119: 0
B120: =IF(ISBLANK('Program Requirements'!B165),"",('Program Requirements'!B165)) ->  | F120: =IF(ISBLANK('Program Requirements'!E165),"",'Program Requirements'!E165) ->  | K120: =IF(E120="Yes",('Program Requirements'!H165),"") ->  | L120: =IF(E120="Yes",('Program Requirements'!M165),"") ->  | M120: =IF(ISBLANK('Program Requirements'!N165),"",'Program Requirements'!N165) -> 0 | N120: 0 | O120: 0 | Q120: 0
B121: =IF(ISBLANK('Program Requirements'!B166),"",('Program Requirements'!B166)) ->  | F121: =IF(ISBLANK('Program Requirements'!E166),"",'Program Requirements'!E166) ->  | K121: =IF(E121="Yes",('Program Requirements'!H166),"") ->  | L121: =IF(E121="Yes",('Program Requirements'!M166),"") ->  | M121: =IF(ISBLANK('Program Requirements'!N166),"",'Program Requirements'!N166) -> 0 | N121: 0 | O121: 0 | Q121: 0
B122: =IF(ISBLANK('Program Requirements'!B167),"",('Program Requirements'!B167)) ->  | F122: =IF(ISBLANK('Program Requirements'!E167),"",'Program Requirements'!E167) ->  | K122: =IF(E122="Yes",('Program Requirements'!H167),"") ->  | L122: =IF(E122="Yes",('Program Requirements'!M167),"") ->  | M122: =IF(ISBLANK('Program Requirements'!N167),"",'Program Requirements'!N167) -> 0 | N122: 0 | O122: 0 | Q122: 0
B123: =IF(ISBLANK('Program Requirements'!B168),"",('Program Requirements'!B168)) ->  | F123: =IF(ISBLANK('Program Requirements'!E168),"",'Program Requirements'!E168) ->  | K123: =IF(E123="Yes",('Program Requirements'!H168),"") ->  | L123: =IF(E123="Yes",('Program Requirements'!M168),"") ->  | M123: =IF(ISBLANK('Program Requirements'!N168),"",'Program Requirements'!N168) -> 0 | N123: =IF(E123="Yes",(L123)*$O$45,0) -> 0 | O123: =O122-N123 -> 0 | Q123: =IF(SUM(P123)=0,SUM(N123),IF(SUM(N123,P123)=P123,"ERROR",SUM(N123,P123))) -> 0
B124: =IF(ISBLANK('Program Requirements'!B169),"",('Program Requirements'!B169)) ->  | F124: =IF(ISBLANK('Program Requirements'!E169),"",'Program Requirements'!E169) ->  | K124: =IF(E124="Yes",('Program Requirements'!H169),"") ->  | L124: =IF(E124="Yes",('Program Requirements'!M169),"") ->  | M124: =IF(ISBLANK('Program Requirements'!N169),"",'Program Requirements'!N169) -> 0 | N124: 0 | O124: 0 | Q124: 0
B125: =IF(ISBLANK('Program Requirements'!B170),"",('Program Requirements'!B170)) ->  | F125: =IF(ISBLANK('Program Requirements'!E170),"",'Program Requirements'!E170) ->  | K125: =IF(E125="Yes",('Program Requirements'!H170),"") ->  | L125: =IF(E125="Yes",('Program Requirements'!M170),"") ->  | M125: =IF(ISBLANK('Program Requirements'!N170),"",'Program Requirements'!N170) -> 0 | N125: 0 | O125: 0 | Q125: 0
B126: =IF(ISBLANK('Program Requirements'!B171),"",('Program Requirements'!B171)) ->  | F126: =IF(ISBLANK('Program Requirements'!E171),"",'Program Requirements'!E171) ->  | K126: =IF(E126="Yes",('Program Requirements'!H171),"") ->  | L126: =IF(E126="Yes",('Program Requirements'!M171),"") ->  | M126: =IF(ISBLANK('Program Requirements'!N171),"",'Program Requirements'!N171) -> 0 | N126: 0 | O126: 0 | Q126: 0
B127: =IF(ISBLANK('Program Requirements'!B172),"",('Program Requirements'!B172)) ->  | F127: =IF(ISBLANK('Program Requirements'!E172),"",'Program Requirements'!E172) ->  | K127: =IF(E127="Yes",('Program Requirements'!H172),"") ->  | L127: =IF(E127="Yes",('Program Requirements'!M172),"") ->  | M127: =IF(ISBLANK('Program Requirements'!N172),"",'Program Requirements'!N172) -> 0 | N127: 0 | O127: 0 | Q127: 0
B128: =IF(ISBLANK('Program Requirements'!B173),"",('Program Requirements'!B173)) ->  | F128: =IF(ISBLANK('Program Requirements'!E173),"",'Program Requirements'!E173) ->  | K128: =IF(E128="Yes",('Program Requirements'!H173),"") ->  | L128: =IF(E128="Yes",('Program Requirements'!M173),"") ->  | M128: =IF(ISBLANK('Program Requirements'!N173),"",'Program Requirements'!N173) -> 0 | N128: 0 | O128: 0 | Q128: 0
B129: =IF(ISBLANK('Program Requirements'!B174),"",('Program Requirements'!B174)) ->  | F129: =IF(ISBLANK('Program Requirements'!E174),"",'Program Requirements'!E174) ->  | K129: =IF(E129="Yes",('Program Requirements'!H174),"") ->  | L129: =IF(E129="Yes",('Program Requirements'!M174),"") ->  | M129: =IF(ISBLANK('Program Requirements'!N174),"",'Program Requirements'!N174) -> 0 | N129: 0 | O129: 0 | Q129: 0
B130: =IF(ISBLANK('Program Requirements'!B175),"",('Program Requirements'!B175)) ->  | F130: =IF(ISBLANK('Program Requirements'!E175),"",'Program Requirements'!E175) ->  | K130: =IF(E130="Yes",('Program Requirements'!H175),"") ->  | L130: =IF(E130="Yes",('Program Requirements'!M175),"") ->  | M130: =IF(ISBLANK('Program Requirements'!N175),"",'Program Requirements'!N175) -> 0 | N130: 0 | O130: 0 | Q130: 0
B131: =IF(ISBLANK('Program Requirements'!B176),"",('Program Requirements'!B176)) ->  | F131: =IF(ISBLANK('Program Requirements'!E176),"",'Program Requirements'!E176) ->  | K131: =IF(E131="Yes",('Program Requirements'!H176),"") ->  | L131: =IF(E131="Yes",('Program Requirements'!M176),"") ->  | M131: =IF(ISBLANK('Program Requirements'!N176),"",'Program Requirements'!N176) -> 0 | N131: 0 | O131: 0 | Q131: 0
B132: =IF(ISBLANK('Program Requirements'!B177),"",('Program Requirements'!B177)) ->  | F132: =IF(ISBLANK('Program Requirements'!E177),"",'Program Requirements'!E177) ->  | K132: =IF(E132="Yes",('Program Requirements'!H177),"") ->  | L132: =IF(E132="Yes",('Program Requirements'!M177),"") ->  | M132: =IF(ISBLANK('Program Requirements'!N177),"",'Program Requirements'!N177) -> 0 | N132: 0 | O132: 0 | Q132: 0
B133: =IF(ISBLANK('Program Requirements'!B178),"",('Program Requirements'!B178)) ->  | F133: =IF(ISBLANK('Program Requirements'!E178),"",'Program Requirements'!E178) ->  | K133: =IF(E133="Yes",('Program Requirements'!H178),"") ->  | L133: =IF(E133="Yes",('Program Requirements'!M178),"") ->  | M133: =IF(ISBLANK('Program Requirements'!N178),"",'Program Requirements'!N178) -> 0 | N133: 0 | O133: 0 | Q133: 0
B134: =IF(ISBLANK('Program Requirements'!B179),"",('Program Requirements'!B179)) ->  | F134: =IF(ISBLANK('Program Requirements'!E179),"",'Program Requirements'!E179) ->  | K134: =IF(E134="Yes",('Program Requirements'!H179),"") ->  | L134: =IF(E134="Yes",('Program Requirements'!M179),"") ->  | M134: =IF(ISBLANK('Program Requirements'!N179),"",'Program Requirements'!N179) -> 0 | N134: 0 | O134: 0 | Q134: 0
B135: =IF(ISBLANK('Program Requirements'!B180),"",('Program Requirements'!B180)) ->  | F135: =IF(ISBLANK('Program Requirements'!E180),"",'Program Requirements'!E180) ->  | K135: =IF(E135="Yes",('Program Requirements'!H180),"") ->  | L135: =IF(E135="Yes",('Program Requirements'!M180),"") ->  | M135: =IF(ISBLANK('Program Requirements'!N180),"",'Program Requirements'!N180) -> 0 | N135: 0 | O135: 0 | Q135: 0
B136: =IF(ISBLANK('Program Requirements'!B181),"",('Program Requirements'!B181)) ->  | F136: =IF(ISBLANK('Program Requirements'!E181),"",'Program Requirements'!E181) ->  | K136: =IF(E136="Yes",('Program Requirements'!H181),"") ->  | L136: =IF(E136="Yes",('Program Requirements'!M181),"") ->  | M136: =IF(ISBLANK('Program Requirements'!N181),"",'Program Requirements'!N181) -> 0 | N136: 0 | O136: 0 | Q136: 0
B137: =IF(ISBLANK('Program Requirements'!B182),"",('Program Requirements'!B182)) ->  | F137: =IF(ISBLANK('Program Requirements'!E182),"",'Program Requirements'!E182) ->  | K137: =IF(E137="Yes",('Program Requirements'!H182),"") ->  | L137: =IF(E137="Yes",('Program Requirements'!M182),"") ->  | M137: =IF(ISBLANK('Program Requirements'!N182),"",'Program Requirements'!N182) -> 0 | N137: 0 | O137: 0 | Q137: 0
B138: =IF(ISBLANK('Program Requirements'!B183),"",('Program Requirements'!B183)) ->  | F138: =IF(ISBLANK('Program Requirements'!E183),"",'Program Requirements'!E183) ->  | K138: =IF(E138="Yes",('Program Requirements'!H183),"") ->  | L138: =IF(E138="Yes",('Program Requirements'!M183),"") ->  | M138: =IF(ISBLANK('Program Requirements'!N183),"",'Program Requirements'!N183) -> 0 | N138: 0 | O138: 0 | Q138: 0
B139: =IF(ISBLANK('Program Requirements'!B184),"",('Program Requirements'!B184)) ->  | F139: =IF(ISBLANK('Program Requirements'!E184),"",'Program Requirements'!E184) ->  | K139: =IF(E139="Yes",('Program Requirements'!H184),"") ->  | L139: =IF(E139="Yes",('Program Requirements'!M184),"") ->  | M139: =IF(ISBLANK('Program Requirements'!N184),"",'Program Requirements'!N184) -> 0 | N139: 0 | O139: 0 | Q139: 0
B140: =IF(ISBLANK('Program Requirements'!B185),"",('Program Requirements'!B185)) ->  | F140: =IF(ISBLANK('Program Requirements'!E185),"",'Program Requirements'!E185) ->  | K140: =IF(E140="Yes",('Program Requirements'!H185),"") ->  | L140: =IF(E140="Yes",('Program Requirements'!M185),"") ->  | M140: =IF(ISBLANK('Program Requirements'!N185),"",'Program Requirements'!N185) -> 0 | N140: 0 | O140: 0 | Q140: 0
B141: =IF(ISBLANK('Program Requirements'!B186),"",('Program Requirements'!B186)) ->  | F141: =IF(ISBLANK('Program Requirements'!E186),"",'Program Requirements'!E186) ->  | K141: =IF(E141="Yes",('Program Requirements'!H186),"") ->  | L141: =IF(E141="Yes",('Program Requirements'!M186),"") ->  | M141: =IF(ISBLANK('Program Requirements'!N186),"",'Program Requirements'!N186) -> 0 | N141: 0 | O141: 0 | Q141: 0
B142: =IF(ISBLANK('Program Requirements'!B187),"",('Program Requirements'!B187)) ->  | F142: =IF(ISBLANK('Program Requirements'!E187),"",'Program Requirements'!E187) ->  | K142: =IF(E142="Yes",('Program Requirements'!H187),"") ->  | L142: =IF(E142="Yes",('Program Requirements'!M187),"") ->  | M142: =IF(ISBLANK('Program Requirements'!N187),"",'Program Requirements'!N187) -> 0 | N142: 0 | O142: 0 | Q142: 0
B143: =IF(ISBLANK('Program Requirements'!B188),"",('Program Requirements'!B188)) ->  | F143: =IF(ISBLANK('Program Requirements'!E188),"",'Program Requirements'!E188) ->  | K143: =IF(E143="Yes",('Program Requirements'!H188),"") ->  | L143: =IF(E143="Yes",('Program Requirements'!M188),"") ->  | M143: =IF(ISBLANK('Program Requirements'!N188),"",'Program Requirements'!N188) -> 0 | N143: 0 | O143: 0 | Q143: 0
B144: =IF(ISBLANK('Program Requirements'!B189),"",('Program Requirements'!B189)) ->  | F144: =IF(ISBLANK('Program Requirements'!E189),"",'Program Requirements'!E189) ->  | K144: =IF(E144="Yes",('Program Requirements'!H189),"") ->  | L144: =IF(E144="Yes",('Program Requirements'!M189),"") ->  | M144: =IF(ISBLANK('Program Requirements'!N189),"",'Program Requirements'!N189) -> 0 | N144: 0 | O144: 0 | Q144: 0
B145: =IF(ISBLANK('Program Requirements'!B190),"",('Program Requirements'!B190)) ->  | F145: =IF(ISBLANK('Program Requirements'!E190),"",'Program Requirements'!E190) ->  | K145: =IF(E145="Yes",('Program Requirements'!H190),"") ->  | L145: =IF(E145="Yes",('Program Requirements'!M190),"") ->  | M145: =IF(ISBLANK('Program Requirements'!N190),"",'Program Requirements'!N190) -> 0 | N145: 0 | O145: 0 | Q145: 0
B146: =IF(ISBLANK('Program Requirements'!B191),"",('Program Requirements'!B191)) ->  | F146: =IF(ISBLANK('Program Requirements'!E191),"",'Program Requirements'!E191) ->  | K146: =IF(E146="Yes",('Program Requirements'!H191),"") ->  | L146: =IF(E146="Yes",('Program Requirements'!M191),"") ->  | M146: =IF(ISBLANK('Program Requirements'!N191),"",'Program Requirements'!N191) -> 0 | N146: 0 | O146: 0 | Q146: 0
B147: =IF(ISBLANK('Program Requirements'!B192),"",('Program Requirements'!B192)) ->  | F147: =IF(ISBLANK('Program Requirements'!E192),"",'Program Requirements'!E192) ->  | K147: =IF(E147="Yes",('Program Requirements'!H192),"") ->  | L147: =IF(E147="Yes",('Program Requirements'!M192),"") ->  | M147: =IF(ISBLANK('Program Requirements'!N192),"",'Program Requirements'!N192) -> 0 | N147: 0 | O147: 0 | Q147: 0
B148: =IF(ISBLANK('Program Requirements'!B193),"",('Program Requirements'!B193)) ->  | F148: =IF(ISBLANK('Program Requirements'!E193),"",'Program Requirements'!E193) ->  | K148: =IF(E148="Yes",('Program Requirements'!H193),"") ->  | L148: =IF(E148="Yes",('Program Requirements'!M193),"") ->  | M148: =IF(ISBLANK('Program Requirements'!N193),"",'Program Requirements'!N193) -> 0 | N148: 0 | O148: 0 | Q148: 0
B149: =IF(ISBLANK('Program Requirements'!B194),"",('Program Requirements'!B194)) ->  | F149: =IF(ISBLANK('Program Requirements'!E194),"",'Program Requirements'!E194) ->  | K149: =IF(E149="Yes",('Program Requirements'!H194),"") ->  | L149: =IF(E149="Yes",('Program Requirements'!M194),"") ->  | M149: =IF(ISBLANK('Program Requirements'!N194),"",'Program Requirements'!N194) -> 0 | N149: 0 | O149: 0 | Q149: 0
B150: =IF(ISBLANK('Program Requirements'!B195),"",('Program Requirements'!B195)) ->  | F150: =IF(ISBLANK('Program Requirements'!E195),"",'Program Requirements'!E195) ->  | K150: =IF(E150="Yes",('Program Requirements'!H195),"") ->  | L150: =IF(E150="Yes",('Program Requirements'!M195),"") ->  | M150: =IF(ISBLANK('Program Requirements'!N195),"",'Program Requirements'!N195) -> 0 | N150: 0 | O150: 0 | Q150: 0
B151: =IF(ISBLANK('Program Requirements'!B196),"",('Program Requirements'!B196)) ->  | F151: =IF(ISBLANK('Program Requirements'!E196),"",'Program Requirements'!E196) ->  | K151: =IF(E151="Yes",('Program Requirements'!H196),"") ->  | L151: =IF(E151="Yes",('Program Requirements'!M196),"") ->  | M151: =IF(ISBLANK('Program Requirements'!N196),"",'Program Requirements'!N196) -> 0 | N151: 0 | O151: 0 | Q151: 0
B152: =IF(ISBLANK('Program Requirements'!B197),"",('Program Requirements'!B197)) ->  | F152: =IF(ISBLANK('Program Requirements'!E197),"",'Program Requirements'!E197) ->  | K152: =IF(E152="Yes",('Program Requirements'!H197),"") ->  | L152: =IF(E152="Yes",('Program Requirements'!M197),"") ->  | M152: =IF(ISBLANK('Program Requirements'!N197),"",'Program Requirements'!N197) -> 0 | N152: 0 | O152: 0 | Q152: 0
B153: =IF(ISBLANK('Program Requirements'!B198),"",('Program Requirements'!B198)) ->  | F153: =IF(ISBLANK('Program Requirements'!E198),"",'Program Requirements'!E198) ->  | K153: =IF(E153="Yes",('Program Requirements'!H198),"") ->  | L153: =IF(E153="Yes",('Program Requirements'!M198),"") ->  | M153: =IF(ISBLANK('Program Requirements'!N198),"",'Program Requirements'!N198) -> 0 | N153: 0 | O153: 0 | Q153: 0
B154: =IF(ISBLANK('Program Requirements'!B199),"",('Program Requirements'!B199)) ->  | F154: =IF(ISBLANK('Program Requirements'!E199),"",'Program Requirements'!E199) ->  | K154: =IF(E154="Yes",('Program Requirements'!H199),"") ->  | L154: =IF(E154="Yes",('Program Requirements'!M199),"") ->  | M154: =IF(ISBLANK('Program Requirements'!N199),"",'Program Requirements'!N199) -> 0 | N154: 0 | O154: 0 | Q154: 0 | R154: =IF(E154="Yes",SUM(Q154)/SUM(L154),"") -> 
B155: =IF(ISBLANK('Program Requirements'!B200),"",('Program Requirements'!B200)) ->  | F155: =IF(ISBLANK('Program Requirements'!E200),"",'Program Requirements'!E200) ->  | K155: =IF(E155="Yes",('Program Requirements'!H200),"") ->  | L155: =IF(E155="Yes",('Program Requirements'!M200),"") ->  | M155: =IF(ISBLANK('Program Requirements'!N200),"",'Program Requirements'!N200) -> 0 | N155: 0 | O155: 0 | Q155: 0
B156: =IF(ISBLANK('Program Requirements'!B201),"",('Program Requirements'!B201)) ->  | F156: =IF(ISBLANK('Program Requirements'!E201),"",'Program Requirements'!E201) ->  | K156: =IF(E156="Yes",('Program Requirements'!H201),"") ->  | L156: =IF(E156="Yes",('Program Requirements'!M201),"") ->  | M156: =IF(ISBLANK('Program Requirements'!N201),"",'Program Requirements'!N201) -> 0 | N156: 0 | O156: 0 | Q156: 0
B157: =IF(ISBLANK('Program Requirements'!B202),"",('Program Requirements'!B202)) ->  | F157: =IF(ISBLANK('Program Requirements'!E202),"",'Program Requirements'!E202) ->  | K157: =IF(E157="Yes",('Program Requirements'!H202),"") ->  | L157: =IF(E157="Yes",('Program Requirements'!M202),"") ->  | M157: =IF(ISBLANK('Program Requirements'!N202),"",'Program Requirements'!N202) -> 0 | N157: 0 | O157: 0 | Q157: 0
B158: =IF(ISBLANK('Program Requirements'!B203),"",('Program Requirements'!B203)) ->  | F158: =IF(ISBLANK('Program Requirements'!E203),"",'Program Requirements'!E203) ->  | K158: =IF(E158="Yes",('Program Requirements'!H203),"") ->  | L158: =IF(E158="Yes",('Program Requirements'!M203),"") ->  | M158: =IF(ISBLANK('Program Requirements'!N203),"",'Program Requirements'!N203) -> 0 | N158: 0 | O158: 0 | Q158: 0
B159: =IF(ISBLANK('Program Requirements'!B204),"",('Program Requirements'!B204)) ->  | F159: =IF(ISBLANK('Program Requirements'!E204),"",'Program Requirements'!E204) ->  | K159: =IF(E159="Yes",('Program Requirements'!H204),"") ->  | L159: =IF(E159="Yes",('Program Requirements'!M204),"") ->  | M159: =IF(ISBLANK('Program Requirements'!N204),"",'Program Requirements'!N204) -> 0 | N159: 0 | O159: 0 | Q159: 0
B160: =IF(ISBLANK('Program Requirements'!B205),"",('Program Requirements'!B205)) ->  | F160: =IF(ISBLANK('Program Requirements'!E205),"",'Program Requirements'!E205) ->  | K160: =IF(E160="Yes",('Program Requirements'!H205),"") ->  | L160: =IF(E160="Yes",('Program Requirements'!M205),"") ->  | M160: =IF(ISBLANK('Program Requirements'!N205),"",'Program Requirements'!N205) -> 0 | N160: 0 | O160: 0 | Q160: 0
B161: =IF(ISBLANK('Program Requirements'!B206),"",('Program Requirements'!B206)) ->  | F161: =IF(ISBLANK('Program Requirements'!E206),"",'Program Requirements'!E206) ->  | K161: =IF(E161="Yes",('Program Requirements'!H206),"") ->  | L161: =IF(E161="Yes",('Program Requirements'!M206),"") ->  | M161: =IF(ISBLANK('Program Requirements'!N206),"",'Program Requirements'!N206) -> 0 | N161: 0 | O161: 0 | Q161: 0
B162: =IF(ISBLANK('Program Requirements'!B207),"",('Program Requirements'!B207)) ->  | F162: =IF(ISBLANK('Program Requirements'!E207),"",'Program Requirements'!E207) ->  | K162: =IF(E162="Yes",('Program Requirements'!H207),"") ->  | L162: =IF(E162="Yes",('Program Requirements'!M207),"") ->  | M162: =IF(ISBLANK('Program Requirements'!N207),"",'Program Requirements'!N207) -> 0 | N162: 0 | O162: 0 | Q162: 0
B163: =IF(ISBLANK('Program Requirements'!B208),"",('Program Requirements'!B208)) ->  | F163: =IF(ISBLANK('Program Requirements'!E208),"",'Program Requirements'!E208) ->  | K163: =IF(E163="Yes",('Program Requirements'!H208),"") ->  | L163: =IF(E163="Yes",('Program Requirements'!M208),"") ->  | M163: =IF(ISBLANK('Program Requirements'!N208),"",'Program Requirements'!N208) -> 0 | N163: 0 | O163: 0 | Q163: 0
B164: =IF(ISBLANK('Program Requirements'!B209),"",('Program Requirements'!B209)) ->  | F164: =IF(ISBLANK('Program Requirements'!E209),"",'Program Requirements'!E209) ->  | K164: =IF(E164="Yes",('Program Requirements'!H209),"") ->  | L164: =IF(E164="Yes",('Program Requirements'!M209),"") ->  | M164: =IF(ISBLANK('Program Requirements'!N209),"",'Program Requirements'!N209) -> 0 | N164: 0 | O164: 0 | Q164: 0
B165: =IF(ISBLANK('Program Requirements'!B210),"",('Program Requirements'!B210)) ->  | F165: =IF(ISBLANK('Program Requirements'!E210),"",'Program Requirements'!E210) ->  | K165: =IF(E165="Yes",('Program Requirements'!H210),"") ->  | L165: =IF(E165="Yes",('Program Requirements'!M210),"") ->  | M165: =IF(ISBLANK('Program Requirements'!N210),"",'Program Requirements'!N210) -> 0 | N165: 0 | O165: 0 | Q165: 0
B166: =IF(ISBLANK('Program Requirements'!B211),"",('Program Requirements'!B211)) ->  | F166: =IF(ISBLANK('Program Requirements'!E211),"",'Program Requirements'!E211) ->  | K166: =IF(E166="Yes",('Program Requirements'!H211),"") ->  | L166: =IF(E166="Yes",('Program Requirements'!M211),"") ->  | M166: =IF(ISBLANK('Program Requirements'!N211),"",'Program Requirements'!N211) -> 0 | N166: 0 | O166: 0 | Q166: 0
B167: =IF(ISBLANK('Program Requirements'!B212),"",('Program Requirements'!B212)) ->  | F167: =IF(ISBLANK('Program Requirements'!E212),"",'Program Requirements'!E212) ->  | K167: =IF(E167="Yes",('Program Requirements'!H212),"") ->  | L167: =IF(E167="Yes",('Program Requirements'!M212),"") ->  | M167: =IF(ISBLANK('Program Requirements'!N212),"",'Program Requirements'!N212) -> 0 | N167: 0 | O167: 0 | Q167: 0
B168: =IF(ISBLANK('Program Requirements'!B213),"",('Program Requirements'!B213)) ->  | F168: =IF(ISBLANK('Program Requirements'!E213),"",'Program Requirements'!E213) ->  | K168: =IF(E168="Yes",('Program Requirements'!H213),"") ->  | L168: =IF(E168="Yes",('Program Requirements'!M213),"") ->  | M168: =IF(ISBLANK('Program Requirements'!N213),"",'Program Requirements'!N213) -> 0 | N168: 0 | O168: 0 | Q168: 0
B169: =IF(ISBLANK('Program Requirements'!B214),"",('Program Requirements'!B214)) ->  | F169: =IF(ISBLANK('Program Requirements'!E214),"",'Program Requirements'!E214) ->  | K169: =IF(E169="Yes",('Program Requirements'!H214),"") ->  | L169: =IF(E169="Yes",('Program Requirements'!M214),"") ->  | M169: =IF(ISBLANK('Program Requirements'!N214),"",'Program Requirements'!N214) -> 0 | N169: 0 | O169: 0 | Q169: 0
B170: =IF(ISBLANK('Program Requirements'!B215),"",('Program Requirements'!B215)) ->  | F170: =IF(ISBLANK('Program Requirements'!E215),"",'Program Requirements'!E215) ->  | K170: =IF(E170="Yes",('Program Requirements'!H215),"") ->  | L170: =IF(E170="Yes",('Program Requirements'!M215),"") ->  | M170: =IF(ISBLANK('Program Requirements'!N215),"",'Program Requirements'!N215) -> 0 | N170: 0 | O170: 0 | Q170: 0
B171: =IF(ISBLANK('Program Requirements'!B216),"",('Program Requirements'!B216)) ->  | F171: =IF(ISBLANK('Program Requirements'!E216),"",'Program Requirements'!E216) ->  | K171: =IF(E171="Yes",('Program Requirements'!H216),"") ->  | L171: =IF(E171="Yes",('Program Requirements'!M216),"") ->  | M171: =IF(ISBLANK('Program Requirements'!N216),"",'Program Requirements'!N216) -> 0 | N171: 0 | O171: 0 | Q171: 0
B172: =IF(ISBLANK('Program Requirements'!B217),"",('Program Requirements'!B217)) ->  | F172: =IF(ISBLANK('Program Requirements'!E217),"",'Program Requirements'!E217) ->  | K172: =IF(E172="Yes",('Program Requirements'!H217),"") ->  | L172: =IF(E172="Yes",('Program Requirements'!M217),"") ->  | M172: =IF(ISBLANK('Program Requirements'!N217),"",'Program Requirements'!N217) -> 0 | N172: 0 | O172: 0 | Q172: 0
B173: =IF(ISBLANK('Program Requirements'!B218),"",('Program Requirements'!B218)) ->  | F173: =IF(ISBLANK('Program Requirements'!E218),"",'Program Requirements'!E218) ->  | K173: =IF(E173="Yes",('Program Requirements'!H218),"") ->  | L173: =IF(E173="Yes",('Program Requirements'!M218),"") ->  | M173: =IF(ISBLANK('Program Requirements'!N218),"",'Program Requirements'!N218) -> 0 | N173: 0 | O173: 0 | Q173: 0
B174: =IF(ISBLANK('Program Requirements'!B219),"",('Program Requirements'!B219)) ->  | F174: =IF(ISBLANK('Program Requirements'!E219),"",'Program Requirements'!E219) ->  | K174: =IF(E174="Yes",('Program Requirements'!H219),"") ->  | L174: =IF(E174="Yes",('Program Requirements'!M219),"") ->  | M174: =IF(ISBLANK('Program Requirements'!N219),"",'Program Requirements'!N219) -> 0 | N174: 0 | O174: 0 | Q174: 0
B175: =IF(ISBLANK('Program Requirements'!B220),"",('Program Requirements'!B220)) ->  | F175: =IF(ISBLANK('Program Requirements'!E220),"",'Program Requirements'!E220) ->  | K175: =IF(E175="Yes",('Program Requirements'!H220),"") ->  | L175: =IF(E175="Yes",('Program Requirements'!M220),"") ->  | M175: =IF(ISBLANK('Program Requirements'!N220),"",'Program Requirements'!N220) -> 0 | N175: 0 | O175: 0 | Q175: 0
B176: =IF(ISBLANK('Program Requirements'!B221),"",('Program Requirements'!B221)) ->  | F176: =IF(ISBLANK('Program Requirements'!E221),"",'Program Requirements'!E221) ->  | K176: =IF(E176="Yes",('Program Requirements'!H221),"") ->  | L176: =IF(E176="Yes",('Program Requirements'!M221),"") ->  | M176: =IF(ISBLANK('Program Requirements'!N221),"",'Program Requirements'!N221) -> 0 | N176: 0 | O176: 0 | Q176: 0
B177: =IF(ISBLANK('Program Requirements'!B222),"",('Program Requirements'!B222)) ->  | F177: =IF(ISBLANK('Program Requirements'!E222),"",'Program Requirements'!E222) ->  | K177: =IF(E177="Yes",('Program Requirements'!H222),"") ->  | L177: =IF(E177="Yes",('Program Requirements'!M222),"") ->  | M177: =IF(ISBLANK('Program Requirements'!N222),"",'Program Requirements'!N222) -> 0 | N177: 0 | O177: 0 | Q177: 0
B178: =IF(ISBLANK('Program Requirements'!B223),"",('Program Requirements'!B223)) ->  | F178: =IF(ISBLANK('Program Requirements'!E223),"",'Program Requirements'!E223) ->  | K178: =IF(E178="Yes",('Program Requirements'!H223),"") ->  | L178: =IF(E178="Yes",('Program Requirements'!M223),"") ->  | M178: =IF(ISBLANK('Program Requirements'!N223),"",'Program Requirements'!N223) -> 0 | N178: 0 | O178: 0 | Q178: 0
B179: =IF(ISBLANK('Program Requirements'!B224),"",('Program Requirements'!B224)) ->  | F179: =IF(ISBLANK('Program Requirements'!E224),"",'Program Requirements'!E224) ->  | K179: =IF(E179="Yes",('Program Requirements'!H224),"") ->  | L179: =IF(E179="Yes",('Program Requirements'!M224),"") ->  | M179: =IF(ISBLANK('Program Requirements'!N224),"",'Program Requirements'!N224) -> 0 | N179: 0 | O179: 0 | Q179: 0
B180: =IF(ISBLANK('Program Requirements'!B225),"",('Program Requirements'!B225)) ->  | F180: =IF(ISBLANK('Program Requirements'!E225),"",'Program Requirements'!E225) ->  | K180: =IF(E180="Yes",('Program Requirements'!H225),"") ->  | L180: =IF(E180="Yes",('Program Requirements'!M225),"") ->  | M180: =IF(ISBLANK('Program Requirements'!N225),"",'Program Requirements'!N225) -> 0 | N180: 0 | O180: 0 | Q180: 0
B181: =IF(ISBLANK('Program Requirements'!B226),"",('Program Requirements'!B226)) ->  | F181: =IF(ISBLANK('Program Requirements'!E226),"",'Program Requirements'!E226) ->  | K181: =IF(E181="Yes",('Program Requirements'!H226),"") ->  | L181: =IF(E181="Yes",('Program Requirements'!M226),"") ->  | M181: =IF(ISBLANK('Program Requirements'!N226),"",'Program Requirements'!N226) -> 0 | N181: 0 | O181: 0 | Q181: 0
B182: =IF(ISBLANK('Program Requirements'!B227),"",('Program Requirements'!B227)) ->  | F182: =IF(ISBLANK('Program Requirements'!E227),"",'Program Requirements'!E227) ->  | K182: =IF(E182="Yes",('Program Requirements'!H227),"") ->  | L182: =IF(E182="Yes",('Program Requirements'!M227),"") ->  | M182: =IF(ISBLANK('Program Requirements'!N227),"",'Program Requirements'!N227) -> 0 | N182: 0 | O182: 0 | Q182: 0
B183: =IF(ISBLANK('Program Requirements'!B228),"",('Program Requirements'!B228)) ->  | F183: =IF(ISBLANK('Program Requirements'!E228),"",'Program Requirements'!E228) ->  | K183: =IF(E183="Yes",('Program Requirements'!H228),"") ->  | L183: =IF(E183="Yes",('Program Requirements'!M228),"") ->  | M183: =IF(ISBLANK('Program Requirements'!N228),"",'Program Requirements'!N228) -> 0 | N183: 0 | O183: 0 | Q183: 0
B184: =IF(ISBLANK('Program Requirements'!B229),"",('Program Requirements'!B229)) ->  | F184: =IF(ISBLANK('Program Requirements'!E229),"",'Program Requirements'!E229) ->  | K184: =IF(E184="Yes",('Program Requirements'!H229),"") ->  | L184: =IF(E184="Yes",('Program Requirements'!M229),"") ->  | M184: =IF(ISBLANK('Program Requirements'!N229),"",'Program Requirements'!N229) -> 0 | N184: 0 | O184: 0 | Q184: 0
B185: =IF(ISBLANK('Program Requirements'!B230),"",('Program Requirements'!B230)) ->  | F185: =IF(ISBLANK('Program Requirements'!E230),"",'Program Requirements'!E230) ->  | K185: =IF(E185="Yes",('Program Requirements'!H230),"") ->  | L185: =IF(E185="Yes",('Program Requirements'!M230),"") ->  | M185: =IF(ISBLANK('Program Requirements'!N230),"",'Program Requirements'!N230) -> 0 | N185: 0 | O185: 0 | Q185: 0
B186: =IF(ISBLANK('Program Requirements'!B231),"",('Program Requirements'!B231)) ->  | F186: =IF(ISBLANK('Program Requirements'!E231),"",'Program Requirements'!E231) ->  | K186: =IF(E186="Yes",('Program Requirements'!H231),"") ->  | L186: =IF(E186="Yes",('Program Requirements'!M231),"") ->  | M186: =IF(ISBLANK('Program Requirements'!N231),"",'Program Requirements'!N231) -> 0 | N186: 0 | O186: 0 | Q186: 0
B187: =IF(ISBLANK('Program Requirements'!B232),"",('Program Requirements'!B232)) ->  | F187: =IF(ISBLANK('Program Requirements'!E232),"",'Program Requirements'!E232) ->  | K187: =IF(E187="Yes",('Program Requirements'!H232),"") ->  | L187: =IF(E187="Yes",('Program Requirements'!M232),"") ->  | M187: =IF(ISBLANK('Program Requirements'!N232),"",'Program Requirements'!N232) -> 0 | N187: =IF(E187="Yes",(L187)*$O$45,0) -> 0 | O187: =O186-N187 -> 0 | Q187: =IF(SUM(P187)=0,SUM(N187),IF(SUM(N187,P187)=P187,"ERROR",SUM(N187,P187))) -> 0
B188: =IF(ISBLANK('Program Requirements'!B233),"",('Program Requirements'!B233)) ->  | F188: =IF(ISBLANK('Program Requirements'!E233),"",'Program Requirements'!E233) ->  | K188: =IF(E188="Yes",('Program Requirements'!H233),"") ->  | L188: =IF(E188="Yes",('Program Requirements'!M233),"") ->  | M188: =IF(ISBLANK('Program Requirements'!N233),"",'Program Requirements'!N233) -> 0 | N188: 0 | O188: 0 | Q188: 0
B189: =IF(ISBLANK('Program Requirements'!B234),"",('Program Requirements'!B234)) ->  | F189: =IF(ISBLANK('Program Requirements'!E234),"",'Program Requirements'!E234) ->  | K189: =IF(E189="Yes",('Program Requirements'!H234),"") ->  | L189: =IF(E189="Yes",('Program Requirements'!M234),"") ->  | M189: =IF(ISBLANK('Program Requirements'!N234),"",'Program Requirements'!N234) -> 0 | N189: 0 | O189: 0 | Q189: 0
B190: =IF(ISBLANK('Program Requirements'!B235),"",('Program Requirements'!B235)) ->  | F190: =IF(ISBLANK('Program Requirements'!E235),"",'Program Requirements'!E235) ->  | K190: =IF(E190="Yes",('Program Requirements'!H235),"") ->  | L190: =IF(E190="Yes",('Program Requirements'!M235),"") ->  | M190: =IF(ISBLANK('Program Requirements'!N235),"",'Program Requirements'!N235) -> 0 | N190: 0 | O190: 0 | Q190: 0
B191: =IF(ISBLANK('Program Requirements'!B236),"",('Program Requirements'!B236)) ->  | F191: =IF(ISBLANK('Program Requirements'!E236),"",'Program Requirements'!E236) ->  | K191: =IF(E191="Yes",('Program Requirements'!H236),"") ->  | L191: =IF(E191="Yes",('Program Requirements'!M236),"") ->  | M191: =IF(ISBLANK('Program Requirements'!N236),"",'Program Requirements'!N236) -> 0 | N191: 0 | O191: 0 | Q191: 0
B192: =IF(ISBLANK('Program Requirements'!B237),"",('Program Requirements'!B237)) ->  | F192: =IF(ISBLANK('Program Requirements'!E237),"",'Program Requirements'!E237) ->  | K192: =IF(E192="Yes",('Program Requirements'!H237),"") ->  | L192: =IF(E192="Yes",('Program Requirements'!M237),"") ->  | M192: =IF(ISBLANK('Program Requirements'!N237),"",'Program Requirements'!N237) -> 0 | N192: 0 | O192: 0 | Q192: 0
B193: =IF(ISBLANK('Program Requirements'!B238),"",('Program Requirements'!B238)) ->  | F193: =IF(ISBLANK('Program Requirements'!E238),"",'Program Requirements'!E238) ->  | K193: =IF(E193="Yes",('Program Requirements'!H238),"") ->  | L193: =IF(E193="Yes",('Program Requirements'!M238),"") ->  | M193: =IF(ISBLANK('Program Requirements'!N238),"",'Program Requirements'!N238) -> 0 | N193: 0 | O193: 0 | Q193: 0
B194: =IF(ISBLANK('Program Requirements'!B239),"",('Program Requirements'!B239)) ->  | F194: =IF(ISBLANK('Program Requirements'!E239),"",'Program Requirements'!E239) ->  | K194: =IF(E194="Yes",('Program Requirements'!H239),"") ->  | L194: =IF(E194="Yes",('Program Requirements'!M239),"") ->  | M194: =IF(ISBLANK('Program Requirements'!N239),"",'Program Requirements'!N239) -> 0 | N194: 0 | O194: 0 | Q194: 0
B195: =IF(ISBLANK('Program Requirements'!B240),"",('Program Requirements'!B240)) ->  | F195: =IF(ISBLANK('Program Requirements'!E240),"",'Program Requirements'!E240) ->  | K195: =IF(E195="Yes",('Program Requirements'!H240),"") ->  | L195: =IF(E195="Yes",('Program Requirements'!M240),"") ->  | M195: =IF(ISBLANK('Program Requirements'!N240),"",'Program Requirements'!N240) -> 0 | N195: 0 | O195: 0 | Q195: 0
B196: =IF(ISBLANK('Program Requirements'!B241),"",('Program Requirements'!B241)) ->  | F196: =IF(ISBLANK('Program Requirements'!E241),"",'Program Requirements'!E241) ->  | K196: =IF(E196="Yes",('Program Requirements'!H241),"") ->  | L196: =IF(E196="Yes",('Program Requirements'!M241),"") ->  | M196: =IF(ISBLANK('Program Requirements'!N241),"",'Program Requirements'!N241) -> 0 | N196: 0 | O196: 0 | Q196: 0
B197: =IF(ISBLANK('Program Requirements'!B242),"",('Program Requirements'!B242)) ->  | F197: =IF(ISBLANK('Program Requirements'!E242),"",'Program Requirements'!E242) ->  | K197: =IF(E197="Yes",('Program Requirements'!H242),"") ->  | L197: =IF(E197="Yes",('Program Requirements'!M242),"") ->  | M197: =IF(ISBLANK('Program Requirements'!N242),"",'Program Requirements'!N242) -> 0 | N197: 0 | O197: 0 | Q197: 0
B198: =IF(ISBLANK('Program Requirements'!B243),"",('Program Requirements'!B243)) ->  | F198: =IF(ISBLANK('Program Requirements'!E243),"",'Program Requirements'!E243) ->  | K198: =IF(E198="Yes",('Program Requirements'!H243),"") ->  | L198: =IF(E198="Yes",('Program Requirements'!M243),"") ->  | M198: =IF(ISBLANK('Program Requirements'!N243),"",'Program Requirements'!N243) -> 0 | N198: 0 | O198: 0 | Q198: 0
B199: =IF(ISBLANK('Program Requirements'!B244),"",('Program Requirements'!B244)) ->  | F199: =IF(ISBLANK('Program Requirements'!E244),"",'Program Requirements'!E244) ->  | K199: =IF(E199="Yes",('Program Requirements'!H244),"") ->  | L199: =IF(E199="Yes",('Program Requirements'!M244),"") ->  | M199: =IF(ISBLANK('Program Requirements'!N244),"",'Program Requirements'!N244) -> 0 | N199: 0 | O199: 0 | Q199: 0
B200: =IF(ISBLANK('Program Requirements'!B245),"",('Program Requirements'!B245)) ->  | F200: =IF(ISBLANK('Program Requirements'!E245),"",'Program Requirements'!E245) ->  | K200: =IF(E200="Yes",('Program Requirements'!H245),"") ->  | L200: =IF(E200="Yes",('Program Requirements'!M245),"") ->  | M200: =IF(ISBLANK('Program Requirements'!N245),"",'Program Requirements'!N245) -> 0 | N200: 0 | O200: 0 | Q200: 0
B201: =IF(ISBLANK('Program Requirements'!B246),"",('Program Requirements'!B246)) ->  | F201: =IF(ISBLANK('Program Requirements'!E246),"",'Program Requirements'!E246) ->  | K201: =IF(E201="Yes",('Program Requirements'!H246),"") ->  | L201: =IF(E201="Yes",('Program Requirements'!M246),"") ->  | M201: =IF(ISBLANK('Program Requirements'!N246),"",'Program Requirements'!N246) -> 0 | N201: 0 | O201: 0 | Q201: 0
B202: =IF(ISBLANK('Program Requirements'!B247),"",('Program Requirements'!B247)) ->  | F202: =IF(ISBLANK('Program Requirements'!E247),"",'Program Requirements'!E247) ->  | K202: =IF(E202="Yes",('Program Requirements'!H247),"") ->  | L202: =IF(E202="Yes",('Program Requirements'!M247),"") ->  | M202: =IF(ISBLANK('Program Requirements'!N247),"",'Program Requirements'!N247) -> 0 | N202: 0 | O202: 0 | Q202: 0
B203: =IF(ISBLANK('Program Requirements'!B248),"",('Program Requirements'!B248)) ->  | F203: =IF(ISBLANK('Program Requirements'!E248),"",'Program Requirements'!E248) ->  | K203: =IF(E203="Yes",('Program Requirements'!H248),"") ->  | L203: =IF(E203="Yes",('Program Requirements'!M248),"") ->  | M203: =IF(ISBLANK('Program Requirements'!N248),"",'Program Requirements'!N248) -> 0 | N203: 0 | O203: 0 | Q203: 0
B204: =IF(ISBLANK('Program Requirements'!B249),"",('Program Requirements'!B249)) ->  | F204: =IF(ISBLANK('Program Requirements'!E249),"",'Program Requirements'!E249) ->  | K204: =IF(E204="Yes",('Program Requirements'!H249),"") ->  | L204: =IF(E204="Yes",('Program Requirements'!M249),"") ->  | M204: =IF(ISBLANK('Program Requirements'!N249),"",'Program Requirements'!N249) -> 0 | N204: 0 | O204: 0 | Q204: 0
B205: =IF(ISBLANK('Program Requirements'!B250),"",('Program Requirements'!B250)) ->  | F205: =IF(ISBLANK('Program Requirements'!E250),"",'Program Requirements'!E250) ->  | K205: =IF(E205="Yes",('Program Requirements'!H250),"") ->  | L205: =IF(E205="Yes",('Program Requirements'!M250),"") ->  | M205: =IF(ISBLANK('Program Requirements'!N250),"",'Program Requirements'!N250) -> 0 | N205: 0 | O205: 0 | Q205: 0
... 52 more rows

Sheet Below 35% Low-Income (hidden)
B1: ='Main Page'!$G$9 -> 2024-2025 | D1: School Division: | E1: ='Main Page'!$F$13 -> Albemarle County Public Schools | I1: Division Number: | J1: ='Main Page'!$F$14 -> 2 | K1: ='Main Page'!$B$6 -> Title I, Part A, Improving Basic Programs
B2: T. REQUIRED AND ALLOWABLE SET-ASIDES FOR DIVISIONS OPERATING TITLE I, PART A, BASIC PROGRAMS
B4: DIVISION LEVEL: IMPROVEMENT ACTIVITIES (Optional for Divisions with Comprehensive Support and Improvement and Targeted Support and Improvement) | M4: A | P4: B
B5: Up to 5 percent may be set aside for divisions to provide financial incentives and rewards to teachers who serve in schools identified for comprehensive support and improvement or targeted support and improvement activities for the purposes of attracting and retaining qualified and effective teachers.
B6: Five percent of the total allocation representing the maximum allowable set-aside for Comprehensive Support and Improvement and Targeted Support and Improvement | P6: =SUM((Narrative!O53)*0.05) -> 91689.2305
B7: Indicate amount of set-aside for each category, if applicable:
C8: Set-Aside for Teacher Incentives and Rewards Comprehensive
C9: Set-Aside for Teacher Incentives and Rewards Targeted
M10: 0
C11: Total Amount Set-Aside for Comprehensive Support and Improvement and Targeted Support and Improvement | P11: =SUMIF(Budget!K61:N86,"CSI*",Budget!P61:Q86)+SUMIF(Budget!M97:O135,"CSI*",Budget!P97:Q135)+SUMIF(Budget!M145:O182,"CSI*",Budget!P145:Q182)+SUMIF(Budget!M193:O230,"CSI*",Budget!P193:Q230)+SUMIF(Budget!M240:O276,"CSI*",Budget!P240:Q276)+SUMIF(Budget!K286:N320,"CSI*",Budget!P286:Q320)+SUMIF(Budget!K330:N363,"CSI*",Budget!P330:Q363)+SUMIF(Transferability!I63:K88,"CSI*",Transferability!P63:Q88)+SUMIF(Transferability!J99:M137,"CSI*",Transferability!P99:Q137)+SUMIF(Transferability!J147:M184,"CSI*",Transferability!P147:Q184)+SUMIF(Transferability!J195:M232,"CSI*",Transferability!P195:Q232)+SUMIF(Transferability!J242:M278,"CSI*",Transferability!P242:Q278)+SUMIF(Transferability!I288:K322,"CSI*",Transferability!P288:Q322)+SUMIF(Transferability!I332:K365,"CSI*",Transferability!P332:Q365) -> 0
B12: DIVISION LEVEL: PROGRAM ADMINISTRATION
C13: (1000) Personnel Services | P13: =SUMIF(Budget!K61:N86,"Div*",Budget!P61:Q86)+SUMIF(Transferability!I63:K88,"Div*",Transferability!P63:Q88) -> 113165
C14: (1000) Personnel Services - Salary Differential | P14: =SUMIF(Budget!K61:N86,"Sal*",Budget!P61:Q86)+SUMIF(Transferability!I63:K88,"Sal*",Transferability!P63:Q88) -> 0
C15: (2000) Employee Benefits | P15: =SUMIF(Budget!M97:O135,"Div*",Budget!P97:Q135)+SUMIF(Transferability!J99:M137,"Div*",Transferability!P99:Q137) -> 33482
C16: (2000) Employee Benefits - Differential | P16: =SUMIF(Budget!M97:O135,"Emp*",Budget!P97:Q135)+SUMIF(Transferability!J99:M137,"Emp*",Transferability!P99:Q137) -> 0
C17: (3000) Purchased/Contracted Services | P17: =SUMIF(Budget!M145:O182,"Div*",Budget!P145:Q182)+SUMIF(Transferability!J147:M184,"Div*",Transferability!P147:Q184) -> 0
C18: (4000) Internal Services | P18: =SUMIF(Budget!M193:O230,"Div*",Budget!P193:Q230)+SUMIF(Transferability!J195:M232,"Div*",Transferability!P195:Q232) -> 0
C19: (5000) Other Charges | P19: =SUMIF(Budget!M240:O276,"Div*",Budget!P240:Q276)+SUMIF(Transferability!J242:M278,"Div*",Transferability!P242:Q278) -> 0
C20: (6000) Materials and Supplies | P20: =SUMIF(Budget!K286:N320,"Div*",Budget!P286:Q320)+SUMIF(Transferability!I288:K322,"Div*",Transferability!P288:Q322) -> 0
C21: (8000) Capital Outlay | P21: =SUMIF(Budget!K330:N363,"Div*",Budget!P330:Q363)+SUMIF(Transferability!I332:K365,"Div*",Transferability!P332:Q365) -> 0
B22: Initiatives
C23: Title I Early Childhood Budget (Personnel and Program) | P23: =SUMIF(Budget!K61:N86,"Early*",Budget!P61:Q86)+SUMIF(Budget!M97:O135,"Early*",Budget!P97:Q135)+SUMIF(Budget!M145:O182,"Early*",Budget!P145:Q182)+SUMIF(Budget!M193:O230,"Early*",Budget!P193:Q230)+SUMIF(Budget!M240:O276,"Early*",Budget!P240:Q276)+SUMIF(Budget!K286:N320,"Early*",Budget!P286:Q320)+SUMIF(Budget!K330:N363,"Early*",Budget!P330:Q363)+SUMIF(Transferability!I63:K88,"Early*",Transferability!P63:Q88)+SUMIF(Transferability!J99:M137,"Early*",Transferability!P99:Q137)+SUMIF(Transferability!J147:M184,"Early*",Transferability!P147:Q184)+SUMIF(Transferability!J195:M232,"Early*",Transferability!P195:Q232)+SUMIF(Transferability!J242:M278,"Early*",Transferability!P242:Q278)+SUMIF(Transferability!I288:K322,"Early*",Transferability!P288:Q322)+SUMIF(Transferability!I332:K365,"Early*",Transferability!P332:Q365) -> 277385
C24: Private School Services (as necessary; not applicable for bypass divisions) These funds are in addition to school-level allocations for private school services. | P24: =ROUND(T53*SUM(M27),2) -> 0
C25: Additional Private School Funds | P25: =(SUMIF(Budget!K61:N86,"Priv*",Budget!P61:Q86)+SUMIF(Budget!M97:O135,"Priv*",Budget!P97:Q135)+SUMIF(Budget!M145:O182,"Priv*",Budget!P145:Q182)+SUMIF(Budget!M193:O230,"Priv*",Budget!P193:Q230)+SUMIF(Budget!M240:O276,"Priv*",Budget!P240:Q276)+SUMIF(Budget!K286:N320,"Priv*",Budget!P286:Q320)+SUMIF(Budget!K330:N363,"Priv*",Budget!P330:Q363)+SUMIF(Transferability!I63:K88,"Priv*",Transferability!P63:Q88)+SUMIF(Transferability!J99:M137,"Priv*",Transferability!P99:Q137)+SUMIF(Transferability!J147:M184,"Priv*",Transferability!P147:Q184)+SUMIF(Transferability!J195:M232,"Priv*",Transferability!P195:Q232)+SUMIF(Transferability!J242:M278,"Priv*",Transferability!P242:Q278)+SUMIF(Transferability!I288:K322,"Priv*",Transferability!P288:Q322)+SUMIF(Transferability!I332:K365,"Priv*",Transferability!P332:Q365))-P24 -> 14018.34
B26: Parent and Family Engagement (Required if allocation is $500,000 or more)
C27: Amount of school division allocation ESEA funds (from Page 2): | M27: =SUM(Narrative!O53) -> 1833784.61
C28: 1 percent of allocation (This amount is calculated if school division receives $500,000 or more from Title I, Part A.) | M28: =ROUND(IF(M27>499999.99,0.01*M27,0),2) -> 18337.85 | P28: =M28 -> 18337.85
C29: 90 percent of 1 percent must be used at the school level | M29: =ROUND(0.9*SUM(M28),2) -> 16504.07
C30: 10 percent of 1 percent is set aside by the school division for parent and family engagement initiatives | M30: =ROUND(0.1*SUM($M$28),2) -> 1833.79
C31: Additional Parent and Family Engagement Funds | M31: =(SUMIF(Budget!K61:N86,"PFE*",Budget!P61:Q86)+SUMIF(Budget!M97:O135,"PFE*",Budget!P97:Q135)+SUMIF(Budget!M145:O182,"PFE*",Budget!P145:Q182)+SUMIF(Budget!M193:O230,"PFE*",Budget!P193:Q230)+SUMIF(Budget!M240:O276,"PFE*",Budget!P240:Q276)+SUMIF(Budget!K286:N320,"PFE*",Budget!P286:Q320)+SUMIF(Budget!K330:N363,"PFE*",Budget!P330:Q363)+SUMIF(Transferability!I63:K88,"PFE*",Transferability!P63:Q88)+SUMIF(Transferability!J99:M137,"PFE*",Transferability!P99:Q137)+SUMIF(Transferability!J147:M184,"PFE*",Transferability!P147:Q184)+SUMIF(Transferability!J195:M232,"PFE*",Transferability!P195:Q232)+SUMIF(Transferability!J242:M278,"PFE*",Transferability!P242:Q278)+SUMIF(Transferability!I288:K322,"PFE*",Transferability!P288:Q322)+SUMIF(Transferability!I332:K365,"PFE*",Transferability!P332:Q365))-M28 -> 0.01
C32: Has the required parent and family engagement set aside been met? | M32: =IF(SUM(Budget!H45)+(Transferability!H47+Transferability!L47)>=SUM(M28),"Yes","No - please review your entries.") -> Yes
B33: Homeless (as necessary based on needs identified on homeless tab, question 2) | P33: =SUMIF(Budget!K61:N86,"Home*",Budget!P61:Q86)+SUMIF(Budget!M97:O135,"Home*",Budget!P97:Q135)+SUMIF(Budget!M145:O182,"Home*",Budget!P145:Q182)+SUMIF(Budget!M193:O230,"Home*",Budget!P193:Q230)+SUMIF(Budget!M240:O276,"Home*",Budget!P240:Q276)+SUMIF(Budget!K286:N320,"Home*",Budget!P286:Q320)+SUMIF(Budget!K330:N363,"Home*",Budget!P330:Q363)+SUMIF(Transferability!I63:K88,"Home*",Transferability!P63:Q88)+SUMIF(Transferability!J99:M137,"Home*",Transferability!P99:Q137)+SUMIF(Transferability!J147:M184,"Home*",Transferability!P147:Q184)+SUMIF(Transferability!J195:M232,"Home*",Transferability!P195:Q232)+SUMIF(Transferability!J242:M278,"Home*",Transferability!P242:Q278)+SUMIF(Transferability!I288:K322,"Home*",Transferability!P288:Q322)+SUMIF(Transferability!I332:K365,"Home*",Transferability!P332:Q365) -> 151302.67
B34: Foster Care (as necessary) | P34: =SUMIF(Budget!K61:N86,"Fost*",Budget!P61:Q86)+SUMIF(Budget!M97:O135,"Fost*",Budget!P97:Q135)+SUMIF(Budget!M145:O182,"Fost*",Budget!P145:Q182)+SUMIF(Budget!M193:O230,"Fost*",Budget!P193:Q230)+SUMIF(Budget!M240:O276,"Fost*",Budget!P240:Q276)+SUMIF(Budget!K286:N320,"Fost*",Budget!P286:Q320)+SUMIF(Budget!K330:N363,"Fost*",Budget!P330:Q363)+SUMIF(Transferability!I63:K88,"Fost*",Transferability!P63:Q88)+SUMIF(Transferability!J99:M137,"Fost*",Transferability!P99:Q137)+SUMIF(Transferability!J147:M184,"Fost*",Transferability!P147:Q184)+SUMIF(Transferability!J195:M232,"Fost*",Transferability!P195:Q232)+SUMIF(Transferability!J242:M278,"Fost*",Transferability!P242:Q278)+SUMIF(Transferability!I288:K322,"Fost*",Transferability!P288:Q322)+SUMIF(Transferability!I332:K365,"Fost*",Transferability!P332:Q365) -> 0
B35: Neglected/Delinquent (as necessary) | P35: =SUMIF(Budget!K61:N86,"Neg*",Budget!P61:Q86)+SUMIF(Budget!M97:O135,"Neg*",Budget!P97:Q135)+SUMIF(Budget!M145:O182,"Neg*",Budget!P145:Q182)+SUMIF(Budget!M193:O230,"Neg*",Budget!P193:Q230)+SUMIF(Budget!M240:O276,"Neg*",Budget!P240:Q276)+SUMIF(Budget!K286:N320,"Neg*",Budget!P286:Q320)+SUMIF(Budget!K330:N363,"Neg*",Budget!P330:Q363)+SUMIF(Transferability!I63:K88,"Neg*",Transferability!P63:Q88)+SUMIF(Transferability!J99:M137,"Neg*",Transferability!P99:Q137)+SUMIF(Transferability!J147:M184,"Neg*",Transferability!P147:Q184)+SUMIF(Transferability!J195:M232,"Neg*",Transferability!P195:Q232)+SUMIF(Transferability!J242:M278,"Neg*",Transferability!P242:Q278)+SUMIF(Transferability!I288:K322,"Neg*",Transferability!P288:Q322)+SUMIF(Transferability!I332:K365,"Neg*",Transferability!P332:Q365) -> 0
B36: School Division Set-Asides TOTAL (Feeds Box A on Allocation to Eligible Schools Page) | P36: =SUM(M31,P11:R35) -> 607690.87
B37: Page 37
B38: ='Main Page'!$G$9 -> 2024-2025 | D38: School Division: | E38: ='Main Page'!$F$13 -> Albemarle County Public Schools | I38: Division Number: | J38: ='Main Page'!$F$14 -> 2 | K38: ='Main Page'!$B$6 -> Title I, Part A, Improving Basic Programs
B39: TITLE I, PART A, ALLOCATION TO ELIGIBLE SCHOOLS
I40: Low-Income Factor BELOW 35 percent
I41: PPE X at least 125 percent
B42: A. | I42: B.
B43: Division’s Title I Allocation : | G43: =SUM(Narrative!O53) -> 1833784.61 | I43: *PER PUPIL EXPENDITURE CALCULATION
I44: Step 1:
B45: Minus Set-Asides (if applicable): | G45: =$P$36 -> 607690.87 | I45: =$G$43 -> 1833784.61 | L45: ='Program Requirements'!I313 -> 3802 | N45: = | O45: =IF(ISERROR(SUM(I45)/SUM(L45)),0,SUM(I45)/SUM(L45)) -> 482.3210442
I46: Division Total Allocation | L46: Number of Low-Income Pupils in Entire School Division | O46: Per Pupil Expenditure (PPE)
B47: Amount for Distribution to Schools: | G47: =SUM(G43)-SUM(G45) -> 1226093.74
I48: Step 2:
B49: Divisionwide Average From Low-Income Families | G49: ='Program Requirements'!N315 -> 0.4357905294 | I49: =O45 -> 482.3210442 | L49: 125 | N49: = | O49: =ROUND((SUM(I49)*SUM(L49))/100,2) -> 602.9
I50: PPE | L50: At least 125 percent (enter whole number) | O50: Adjusted PPE
B51: (1) | E51: (2) | F51: (3) | G51: (4) | H51: (5) | I51: (6) | J51: (7) | K51: (8) | L51: (9) | M51: (10) | N51: (11) | O51: (12) | P51: (13) | Q51: (14) | R51: (15)
B52: List of schools from highest poverty to lowest | E52: Is School Served? Yes or No | F52: Grade Span of School | G52: Targeted Assistance School? Yes or No | H52: Schoolwide Program School? Yes or No | I52: ="Number of Title I, Part A School Level FTE Personnel Funded with " & 'Main Page'!G9 & " Funds" -> Number of Title I, Part A School Level FTE Personnel Funded with 2024-2025 Funds | J52: ="Number of Title I, Part A School Level FTE Paraprofessionals Funded with " &'Main Page'!G9 & " Funds" -> Number of Title I, Part A School Level FTE Paraprofessionals Funded with 2024-2025 Funds | K52: Low-Income Private School Membership | L52: Low-Income Public School Membership | M52: Percent Low-Income | N52: Minimum School Allocation | O52: ="Distribution Balance: "&+SUM(G47) &" from Box A" -> Distribution Balance: 1226093.74 from Box A | P52: School Reallocation Amount | Q52: School Allocation Total | R52: Adjusted PPE
B53: TOTALS | I53: =SUM(I58:I256) -> 0 | J53: =SUM(J58:J256) -> 0 | K53: =SUM(K58:K256) -> 0 | L53: =SUM(L58:L256) -> 0 | N53: =SUM(N58:N256) -> 0 | O53: =G47 -> 1226093.74 | P53: =SUM(P58:P256) -> 0 | Q53: =SUM(Q58:Q256) -> 0 | T53: =IF(SUM(K53,L53) >0,K53/(K53+L53),0) -> 0
B54: The totals in columns 6 & 7 applies to all school level personnel funded with Title I except for early childhood personnel included on line 23 above, and parent and family engagement personnel included on lines 28 and 31 above. | O54: Balance to Reallocate | Q54: =SUM(G47-Q53) -> 1226093.74
B57: 1 | C57: 2 | D57: 3 | E57: 4 | F57: 5 | G57: 6 | H57: 7 | I57: 8 | J57: 9 | K57: 10 | L57: 11 | M57: 12 | N57: 13 | O57: 14 | P57: 15 | Q57: 16 | R57: 17
B58: =IF(ISBLANK('Program Requirements'!B103),"",('Program Requirements'!B103)) -> Woodbrook Elementary | F58: =IF(ISBLANK('Program Requirements'!E103),"",'Program Requirements'!E103) -> PK - 05 | K58: =IF(E58="Yes",('Program Requirements'!H103),"") ->  | L58: =IF(E58="Yes",('Program Requirements'!M103),"") ->  | M58: =IF(ISBLANK('Program Requirements'!N103),"",'Program Requirements'!N103) -> 0.8203045685 | N58: =IF(IF(E58="Yes",IF(ISBLANK(L58),"",SUM(L58)*$O$49),0)>$G$47,SUM($G$47),IF(E58="Yes",IF(ISBLANK(L58),"",SUM(L58)*$O$49),"")) ->  | O58: =SUM(Q54)-SUM(N58)-SUM(P58) -> 1226093.74 | Q58: =IF(SUM(P58)=0,SUM(N58),IF(SUM(N58,P58)=P58,"ERROR",SUM(N58,P58))) -> 0 | R58: =IF(E58="Yes",SUM(Q58)/SUM(L58),"") -> 
B59: =IF(ISBLANK('Program Requirements'!B104),"",('Program Requirements'!B104)) -> Mary Carr Greer Elementary | F59: =IF(ISBLANK('Program Requirements'!E104),"",'Program Requirements'!E104) -> PK - 05 | K59: =IF(E59="Yes",('Program Requirements'!H104),"") ->  | L59: =IF(E59="Yes",('Program Requirements'!M104),"") ->  | M59: =IF(ISBLANK('Program Requirements'!N104),"",'Program Requirements'!N104) -> 0.7892514395 | N59: =IF(IF(E59="Yes",IF(ISBLANK(L59),"",SUM(L59)*$O$49),0)>$G$47,SUM($G$47),IF(E59="Yes",IF(ISBLANK(L59),"",SUM(L59)*$O$49),"")) ->  | O59: =SUM(O58)-SUM(N59)-SUM(P59) -> 1226093.74 | Q59: =IF(SUM(P59)=0,SUM(N59),IF(SUM(N59,P59)=P59,"ERROR",SUM(N59,P59))) -> 0 | R59: =IF(E59="Yes",SUM(Q59)/SUM(L59),"") -> 
B60: =IF(ISBLANK('Program Requirements'!B105),"",('Program Requirements'!B105)) -> Journey Middle | F60: =IF(ISBLANK('Program Requirements'!E105),"",'Program Requirements'!E105) -> 06 - 08 | K60: =IF(E60="Yes",('Program Requirements'!H105),"") ->  | L60: =IF(E60="Yes",('Program Requirements'!M105),"") ->  | M60: =IF(ISBLANK('Program Requirements'!N105),"",'Program Requirements'!N105) -> 0.7133757962 | O60: =SUM(O59)-SUM(N60)-SUM(P60) -> 1226093.74 | Q60: 0
B61: =IF(ISBLANK('Program Requirements'!B106),"",('Program Requirements'!B106)) -> Red Hill Elementary | F61: =IF(ISBLANK('Program Requirements'!E106),"",'Program Requirements'!E106) -> PK - 05 | K61: =IF(E61="Yes",('Program Requirements'!H106),"") ->  | L61: =IF(E61="Yes",('Program Requirements'!M106),"") ->  | M61: =IF(ISBLANK('Program Requirements'!N106),"",'Program Requirements'!N106) -> 0.675 | O61: 1226093.74 | Q61: 0
B62: =IF(ISBLANK('Program Requirements'!B107),"",('Program Requirements'!B107)) -> Agnor-Hurt Elementary | F62: =IF(ISBLANK('Program Requirements'!E107),"",'Program Requirements'!E107) -> PK - 05 | K62: =IF(E62="Yes",('Program Requirements'!H107),"") ->  | L62: =IF(E62="Yes",('Program Requirements'!M107),"") ->  | M62: =IF(ISBLANK('Program Requirements'!N107),"",'Program Requirements'!N107) -> 0.6498896247 | O62: 1226093.74 | Q62: 0
B63: =IF(ISBLANK('Program Requirements'!B108),"",('Program Requirements'!B108)) -> Mountain View Elementary | F63: =IF(ISBLANK('Program Requirements'!E108),"",'Program Requirements'!E108) -> PK - 05 | K63: =IF(E63="Yes",('Program Requirements'!H108),"") ->  | L63: =IF(E63="Yes",('Program Requirements'!M108),"") ->  | M63: =IF(ISBLANK('Program Requirements'!N108),"",'Program Requirements'!N108) -> 0.6451268358 | O63: 1226093.74 | Q63: 0
B64: =IF(ISBLANK('Program Requirements'!B109),"",('Program Requirements'!B109)) -> Scottsville Elementary | F64: =IF(ISBLANK('Program Requirements'!E109),"",'Program Requirements'!E109) -> PK - 05 | K64: =IF(E64="Yes",('Program Requirements'!H109),"") ->  | L64: =IF(E64="Yes",('Program Requirements'!M109),"") ->  | M64: =IF(ISBLANK('Program Requirements'!N109),"",'Program Requirements'!N109) -> 0.6343612335 | O64: 1226093.74 | Q64: 0
B65: =IF(ISBLANK('Program Requirements'!B110),"",('Program Requirements'!B110)) -> Jackson P. Burley Middle | F65: =IF(ISBLANK('Program Requirements'!E110),"",'Program Requirements'!E110) -> 06 - 08 | K65: =IF(E65="Yes",('Program Requirements'!H110),"") ->  | L65: =IF(E65="Yes",('Program Requirements'!M110),"") ->  | M65: =IF(ISBLANK('Program Requirements'!N110),"",'Program Requirements'!N110) -> 0.5953488372 | O65: 1226093.74 | Q65: 0
B66: =IF(ISBLANK('Program Requirements'!B111),"",('Program Requirements'!B111)) -> Leslie H. Walton Middle | F66: =IF(ISBLANK('Program Requirements'!E111),"",'Program Requirements'!E111) -> 06 - 08 | K66: =IF(E66="Yes",('Program Requirements'!H111),"") ->  | L66: =IF(E66="Yes",('Program Requirements'!M111),"") ->  | M66: =IF(ISBLANK('Program Requirements'!N111),"",'Program Requirements'!N111) -> 0.5396449704 | O66: 1226093.74 | Q66: 0
B67: =IF(ISBLANK('Program Requirements'!B112),"",('Program Requirements'!B112)) -> Monticello High | F67: =IF(ISBLANK('Program Requirements'!E112),"",'Program Requirements'!E112) -> 09 - 12 | K67: =IF(E67="Yes",('Program Requirements'!H112),"") ->  | L67: =IF(E67="Yes",('Program Requirements'!M112),"") ->  | M67: =IF(ISBLANK('Program Requirements'!N112),"",'Program Requirements'!N112) -> 0.5223684211 | O67: 1226093.74 | Q67: 0
B68: =IF(ISBLANK('Program Requirements'!B113),"",('Program Requirements'!B113)) -> Albemarle High | F68: =IF(ISBLANK('Program Requirements'!E113),"",'Program Requirements'!E113) -> 09 - 12 | K68: =IF(E68="Yes",('Program Requirements'!H113),"") ->  | L68: =IF(E68="Yes",('Program Requirements'!M113),"") ->  | M68: =IF(ISBLANK('Program Requirements'!N113),"",'Program Requirements'!N113) -> 0.4613346918 | O68: 1226093.74 | Q68: 0
B69: =IF(ISBLANK('Program Requirements'!B114),"",('Program Requirements'!B114)) -> Stone Robinson Elementary | F69: =IF(ISBLANK('Program Requirements'!E114),"",'Program Requirements'!E114) -> PK - 05 | K69: =IF(E69="Yes",('Program Requirements'!H114),"") ->  | L69: =IF(E69="Yes",('Program Requirements'!M114),"") ->  | M69: =IF(ISBLANK('Program Requirements'!N114),"",'Program Requirements'!N114) -> 0.449475891 | O69: 1226093.74 | Q69: 0
B70: =IF(ISBLANK('Program Requirements'!B115),"",('Program Requirements'!B115)) -> Stony Point Elementary | F70: =IF(ISBLANK('Program Requirements'!E115),"",'Program Requirements'!E115) -> KG - 05 | K70: =IF(E70="Yes",('Program Requirements'!H115),"") ->  | L70: =IF(E70="Yes",('Program Requirements'!M115),"") ->  | M70: =IF(ISBLANK('Program Requirements'!N115),"",'Program Requirements'!N115) -> 0.3813471503 | O70: 1226093.74 | Q70: 0
B71: =IF(ISBLANK('Program Requirements'!B116),"",('Program Requirements'!B116)) -> Baker-Butler Elementary | F71: =IF(ISBLANK('Program Requirements'!E116),"",'Program Requirements'!E116) -> PK - 05 | K71: =IF(E71="Yes",('Program Requirements'!H116),"") ->  | L71: =IF(E71="Yes",('Program Requirements'!M116),"") ->  | M71: =IF(ISBLANK('Program Requirements'!N116),"",'Program Requirements'!N116) -> 0.3649867374 | O71: 1226093.74 | Q71: 0
B72: =IF(ISBLANK('Program Requirements'!B117),"",('Program Requirements'!B117)) -> Lakeside Middle | F72: =IF(ISBLANK('Program Requirements'!E117),"",'Program Requirements'!E117) -> 06 - 08 | K72: =IF(E72="Yes",('Program Requirements'!H117),"") ->  | L72: =IF(E72="Yes",('Program Requirements'!M117),"") ->  | M72: =IF(ISBLANK('Program Requirements'!N117),"",'Program Requirements'!N117) -> 0.3087719298 | O72: 1226093.74 | Q72: 0
B73: =IF(ISBLANK('Program Requirements'!B118),"",('Program Requirements'!B118)) -> Broadus Wood Elementary | F73: =IF(ISBLANK('Program Requirements'!E118),"",'Program Requirements'!E118) -> PK - 05 | K73: =IF(E73="Yes",('Program Requirements'!H118),"") ->  | L73: =IF(E73="Yes",('Program Requirements'!M118),"") ->  | M73: =IF(ISBLANK('Program Requirements'!N118),"",'Program Requirements'!N118) -> 0.256227758 | O73: 1226093.74 | Q73: 0
B74: =IF(ISBLANK('Program Requirements'!B119),"",('Program Requirements'!B119)) -> Hollymead Elementary | F74: =IF(ISBLANK('Program Requirements'!E119),"",'Program Requirements'!E119) -> PK - 05 | K74: =IF(E74="Yes",('Program Requirements'!H119),"") ->  | L74: =IF(E74="Yes",('Program Requirements'!M119),"") ->  | M74: =IF(ISBLANK('Program Requirements'!N119),"",'Program Requirements'!N119) -> 0.2542465753 | O74: 1226093.74 | Q74: 0
B75: =IF(ISBLANK('Program Requirements'!B120),"",('Program Requirements'!B120)) -> Crozet Elementary | F75: =IF(ISBLANK('Program Requirements'!E120),"",'Program Requirements'!E120) -> KG - 05 | K75: =IF(E75="Yes",('Program Requirements'!H120),"") ->  | L75: =IF(E75="Yes",('Program Requirements'!M120),"") ->  | M75: =IF(ISBLANK('Program Requirements'!N120),"",'Program Requirements'!N120) -> 0.2454713494 | O75: 1226093.74 | Q75: 0
B76: =IF(ISBLANK('Program Requirements'!B121),"",('Program Requirements'!B121)) -> Brownsville Elementary | F76: =IF(ISBLANK('Program Requirements'!E121),"",'Program Requirements'!E121) -> PK - 05 | K76: =IF(E76="Yes",('Program Requirements'!H121),"") ->  | L76: =IF(E76="Yes",('Program Requirements'!M121),"") ->  | M76: =IF(ISBLANK('Program Requirements'!N121),"",'Program Requirements'!N121) -> 0.2386440678 | O76: 1226093.74 | Q76: 0
B77: =IF(ISBLANK('Program Requirements'!B122),"",('Program Requirements'!B122)) -> Joseph T. Henley Middle | F77: =IF(ISBLANK('Program Requirements'!E122),"",'Program Requirements'!E122) -> 06 - 08 | K77: =IF(E77="Yes",('Program Requirements'!H122),"") ->  | L77: =IF(E77="Yes",('Program Requirements'!M122),"") ->  | M77: =IF(ISBLANK('Program Requirements'!N122),"",'Program Requirements'!N122) -> 0.199252802 | O77: 1226093.74 | Q77: 0
B78: =IF(ISBLANK('Program Requirements'!B123),"",('Program Requirements'!B123)) -> Western Albemarle High | F78: =IF(ISBLANK('Program Requirements'!E123),"",'Program Requirements'!E123) -> 09 - 12 | K78: =IF(E78="Yes",('Program Requirements'!H123),"") ->  | L78: =IF(E78="Yes",('Program Requirements'!M123),"") ->  | M78: =IF(ISBLANK('Program Requirements'!N123),"",'Program Requirements'!N123) -> 0.1886462882 | O78: 1226093.74 | Q78: 0
B79: =IF(ISBLANK('Program Requirements'!B124),"",('Program Requirements'!B124)) -> Virginia L. Murray Elementary | F79: =IF(ISBLANK('Program Requirements'!E124),"",'Program Requirements'!E124) -> PK - 05 | K79: =IF(E79="Yes",('Program Requirements'!H124),"") ->  | L79: =IF(E79="Yes",('Program Requirements'!M124),"") ->  | M79: =IF(ISBLANK('Program Requirements'!N124),"",'Program Requirements'!N124) -> 0.1 | O79: 1226093.74 | Q79: 0
B80: =IF(ISBLANK('Program Requirements'!B125),"",('Program Requirements'!B125)) -> Ivy Elementary | F80: =IF(ISBLANK('Program Requirements'!E125),"",'Program Requirements'!E125) -> KG - 05 | K80: =IF(E80="Yes",('Program Requirements'!H125),"") ->  | L80: =IF(E80="Yes",('Program Requirements'!M125),"") ->  | M80: =IF(ISBLANK('Program Requirements'!N125),"",'Program Requirements'!N125) -> 0.09940828402 | O80: 1226093.74 | Q80: 0
B81: =IF(ISBLANK('Program Requirements'!B126),"",('Program Requirements'!B126)) -> Community Lab School | F81: =IF(ISBLANK('Program Requirements'!E126),"",'Program Requirements'!E126) -> 06 - 08 | K81: =IF(E81="Yes",('Program Requirements'!H126),"") ->  | L81: =IF(E81="Yes",('Program Requirements'!M126),"") ->  | M81: =IF(ISBLANK('Program Requirements'!N126),"",'Program Requirements'!N126) -> 0.04188481675 | O81: 1226093.74 | Q81: 0
B82: =IF(ISBLANK('Program Requirements'!B127),"",('Program Requirements'!B127)) ->  | F82: =IF(ISBLANK('Program Requirements'!E127),"",'Program Requirements'!E127) ->  | K82: =IF(E82="Yes",('Program Requirements'!H127),"") ->  | L82: =IF(E82="Yes",('Program Requirements'!M127),"") ->  | M82: =IF(ISBLANK('Program Requirements'!N127),"",'Program Requirements'!N127) -> 0 | O82: 1226093.74 | Q82: 0
B83: =IF(ISBLANK('Program Requirements'!B128),"",('Program Requirements'!B128)) ->  | F83: =IF(ISBLANK('Program Requirements'!E128),"",'Program Requirements'!E128) ->  | K83: =IF(E83="Yes",('Program Requirements'!H128),"") ->  | L83: =IF(E83="Yes",('Program Requirements'!M128),"") ->  | M83: =IF(ISBLANK('Program Requirements'!N128),"",'Program Requirements'!N128) -> 0 | O83: 1226093.74 | Q83: 0
B84: =IF(ISBLANK('Program Requirements'!B129),"",('Program Requirements'!B129)) ->  | F84: =IF(ISBLANK('Program Requirements'!E129),"",'Program Requirements'!E129) ->  | K84: =IF(E84="Yes",('Program Requirements'!H129),"") ->  | L84: =IF(E84="Yes",('Program Requirements'!M129),"") ->  | M84: =IF(ISBLANK('Program Requirements'!N129),"",'Program Requirements'!N129) -> 0 | O84: 1226093.74 | Q84: 0
B85: =IF(ISBLANK('Program Requirements'!B130),"",('Program Requirements'!B130)) ->  | F85: =IF(ISBLANK('Program Requirements'!E130),"",'Program Requirements'!E130) ->  | K85: =IF(E85="Yes",('Program Requirements'!H130),"") ->  | L85: =IF(E85="Yes",('Program Requirements'!M130),"") ->  | M85: =IF(ISBLANK('Program Requirements'!N130),"",'Program Requirements'!N130) -> 0 | O85: 1226093.74 | Q85: 0
B86: =IF(ISBLANK('Program Requirements'!B131),"",('Program Requirements'!B131)) ->  | F86: =IF(ISBLANK('Program Requirements'!E131),"",'Program Requirements'!E131) ->  | K86: =IF(E86="Yes",('Program Requirements'!H131),"") ->  | L86: =IF(E86="Yes",('Program Requirements'!M131),"") ->  | M86: =IF(ISBLANK('Program Requirements'!N131),"",'Program Requirements'!N131) -> 0 | O86: 1226093.74 | Q86: 0
B87: =IF(ISBLANK('Program Requirements'!B132),"",('Program Requirements'!B132)) ->  | F87: =IF(ISBLANK('Program Requirements'!E132),"",'Program Requirements'!E132) ->  | K87: =IF(E87="Yes",('Program Requirements'!H132),"") ->  | L87: =IF(E87="Yes",('Program Requirements'!M132),"") ->  | M87: =IF(ISBLANK('Program Requirements'!N132),"",'Program Requirements'!N132) -> 0 | O87: 1226093.74 | Q87: 0
B88: =IF(ISBLANK('Program Requirements'!B133),"",('Program Requirements'!B133)) ->  | F88: =IF(ISBLANK('Program Requirements'!E133),"",'Program Requirements'!E133) ->  | K88: =IF(E88="Yes",('Program Requirements'!H133),"") ->  | L88: =IF(E88="Yes",('Program Requirements'!M133),"") ->  | M88: =IF(ISBLANK('Program Requirements'!N133),"",'Program Requirements'!N133) -> 0 | O88: 1226093.74 | Q88: 0
B89: =IF(ISBLANK('Program Requirements'!B134),"",('Program Requirements'!B134)) ->  | F89: =IF(ISBLANK('Program Requirements'!E134),"",'Program Requirements'!E134) ->  | K89: =IF(E89="Yes",('Program Requirements'!H134),"") ->  | L89: =IF(E89="Yes",('Program Requirements'!M134),"") ->  | M89: =IF(ISBLANK('Program Requirements'!N134),"",'Program Requirements'!N134) -> 0 | O89: 1226093.74 | Q89: 0
B90: =IF(ISBLANK('Program Requirements'!B135),"",('Program Requirements'!B135)) ->  | F90: =IF(ISBLANK('Program Requirements'!E135),"",'Program Requirements'!E135) ->  | K90: =IF(E90="Yes",('Program Requirements'!H135),"") ->  | L90: =IF(E90="Yes",('Program Requirements'!M135),"") ->  | M90: =IF(ISBLANK('Program Requirements'!N135),"",'Program Requirements'!N135) -> 0 | O90: 1226093.74 | Q90: 0 | R90: =IF(E90="Yes",SUM(Q90)/SUM(L90),"") -> 
B91: =IF(ISBLANK('Program Requirements'!B136),"",('Program Requirements'!B136)) ->  | F91: =IF(ISBLANK('Program Requirements'!E136),"",'Program Requirements'!E136) ->  | K91: =IF(E91="Yes",('Program Requirements'!H136),"") ->  | L91: =IF(E91="Yes",('Program Requirements'!M136),"") ->  | M91: =IF(ISBLANK('Program Requirements'!N136),"",'Program Requirements'!N136) -> 0 | O91: 1226093.74 | Q91: 0
B92: =IF(ISBLANK('Program Requirements'!B137),"",('Program Requirements'!B137)) ->  | F92: =IF(ISBLANK('Program Requirements'!E137),"",'Program Requirements'!E137) ->  | K92: =IF(E92="Yes",('Program Requirements'!H137),"") ->  | L92: =IF(E92="Yes",('Program Requirements'!M137),"") ->  | M92: =IF(ISBLANK('Program Requirements'!N137),"",'Program Requirements'!N137) -> 0 | O92: 1226093.74 | Q92: 0
B93: =IF(ISBLANK('Program Requirements'!B138),"",('Program Requirements'!B138)) ->  | F93: =IF(ISBLANK('Program Requirements'!E138),"",'Program Requirements'!E138) ->  | K93: =IF(E93="Yes",('Program Requirements'!H138),"") ->  | L93: =IF(E93="Yes",('Program Requirements'!M138),"") ->  | M93: =IF(ISBLANK('Program Requirements'!N138),"",'Program Requirements'!N138) -> 0 | O93: 1226093.74 | Q93: 0
B94: =IF(ISBLANK('Program Requirements'!B139),"",('Program Requirements'!B139)) ->  | F94: =IF(ISBLANK('Program Requirements'!E139),"",'Program Requirements'!E139) ->  | K94: =IF(E94="Yes",('Program Requirements'!H139),"") ->  | L94: =IF(E94="Yes",('Program Requirements'!M139),"") ->  | M94: =IF(ISBLANK('Program Requirements'!N139),"",'Program Requirements'!N139) -> 0 | O94: 1226093.74 | Q94: 0
B95: =IF(ISBLANK('Program Requirements'!B140),"",('Program Requirements'!B140)) ->  | F95: =IF(ISBLANK('Program Requirements'!E140),"",'Program Requirements'!E140) ->  | K95: =IF(E95="Yes",('Program Requirements'!H140),"") ->  | L95: =IF(E95="Yes",('Program Requirements'!M140),"") ->  | M95: =IF(ISBLANK('Program Requirements'!N140),"",'Program Requirements'!N140) -> 0 | O95: 1226093.74 | Q95: 0
B96: =IF(ISBLANK('Program Requirements'!B141),"",('Program Requirements'!B141)) ->  | F96: =IF(ISBLANK('Program Requirements'!E141),"",'Program Requirements'!E141) ->  | K96: =IF(E96="Yes",('Program Requirements'!H141),"") ->  | L96: =IF(E96="Yes",('Program Requirements'!M141),"") ->  | M96: =IF(ISBLANK('Program Requirements'!N141),"",'Program Requirements'!N141) -> 0 | O96: 1226093.74 | Q96: 0
B97: =IF(ISBLANK('Program Requirements'!B142),"",('Program Requirements'!B142)) ->  | F97: =IF(ISBLANK('Program Requirements'!E142),"",'Program Requirements'!E142) ->  | K97: =IF(E97="Yes",('Program Requirements'!H142),"") ->  | L97: =IF(E97="Yes",('Program Requirements'!M142),"") ->  | M97: =IF(ISBLANK('Program Requirements'!N142),"",'Program Requirements'!N142) -> 0 | O97: 1226093.74 | Q97: 0
B98: =IF(ISBLANK('Program Requirements'!B143),"",('Program Requirements'!B143)) ->  | F98: =IF(ISBLANK('Program Requirements'!E143),"",'Program Requirements'!E143) ->  | K98: =IF(E98="Yes",('Program Requirements'!H143),"") ->  | L98: =IF(E98="Yes",('Program Requirements'!M143),"") ->  | M98: =IF(ISBLANK('Program Requirements'!N143),"",'Program Requirements'!N143) -> 0 | O98: 1226093.74 | Q98: 0
B99: =IF(ISBLANK('Program Requirements'!B144),"",('Program Requirements'!B144)) ->  | F99: =IF(ISBLANK('Program Requirements'!E144),"",'Program Requirements'!E144) ->  | K99: =IF(E99="Yes",('Program Requirements'!H144),"") ->  | L99: =IF(E99="Yes",('Program Requirements'!M144),"") ->  | M99: =IF(ISBLANK('Program Requirements'!N144),"",'Program Requirements'!N144) -> 0 | O99: 1226093.74 | Q99: 0
B100: =IF(ISBLANK('Program Requirements'!B145),"",('Program Requirements'!B145)) ->  | F100: =IF(ISBLANK('Program Requirements'!E145),"",'Program Requirements'!E145) ->  | K100: =IF(E100="Yes",('Program Requirements'!H145),"") ->  | L100: =IF(E100="Yes",('Program Requirements'!M145),"") ->  | M100: =IF(ISBLANK('Program Requirements'!N145),"",'Program Requirements'!N145) -> 0 | O100: 1226093.74 | Q100: 0
B101: =IF(ISBLANK('Program Requirements'!B146),"",('Program Requirements'!B146)) ->  | F101: =IF(ISBLANK('Program Requirements'!E146),"",'Program Requirements'!E146) ->  | K101: =IF(E101="Yes",('Program Requirements'!H146),"") ->  | L101: =IF(E101="Yes",('Program Requirements'!M146),"") ->  | M101: =IF(ISBLANK('Program Requirements'!N146),"",'Program Requirements'!N146) -> 0 | O101: 1226093.74 | Q101: 0
B102: =IF(ISBLANK('Program Requirements'!B147),"",('Program Requirements'!B147)) ->  | F102: =IF(ISBLANK('Program Requirements'!E147),"",'Program Requirements'!E147) ->  | K102: =IF(E102="Yes",('Program Requirements'!H147),"") ->  | L102: =IF(E102="Yes",('Program Requirements'!M147),"") ->  | M102: =IF(ISBLANK('Program Requirements'!N147),"",'Program Requirements'!N147) -> 0 | O102: 1226093.74 | Q102: 0
B103: =IF(ISBLANK('Program Requirements'!B148),"",('Program Requirements'!B148)) ->  | F103: =IF(ISBLANK('Program Requirements'!E148),"",'Program Requirements'!E148) ->  | K103: =IF(E103="Yes",('Program Requirements'!H148),"") ->  | L103: =IF(E103="Yes",('Program Requirements'!M148),"") ->  | M103: =IF(ISBLANK('Program Requirements'!N148),"",'Program Requirements'!N148) -> 0 | O103: 1226093.74 | Q103: 0
B104: =IF(ISBLANK('Program Requirements'!B149),"",('Program Requirements'!B149)) ->  | F104: =IF(ISBLANK('Program Requirements'!E149),"",'Program Requirements'!E149) ->  | K104: =IF(E104="Yes",('Program Requirements'!H149),"") ->  | L104: =IF(E104="Yes",('Program Requirements'!M149),"") ->  | M104: =IF(ISBLANK('Program Requirements'!N149),"",'Program Requirements'!N149) -> 0 | O104: 1226093.74 | Q104: 0
B105: =IF(ISBLANK('Program Requirements'!B150),"",('Program Requirements'!B150)) ->  | F105: =IF(ISBLANK('Program Requirements'!E150),"",'Program Requirements'!E150) ->  | K105: =IF(E105="Yes",('Program Requirements'!H150),"") ->  | L105: =IF(E105="Yes",('Program Requirements'!M150),"") ->  | M105: =IF(ISBLANK('Program Requirements'!N150),"",'Program Requirements'!N150) -> 0 | O105: 1226093.74 | Q105: 0
B106: =IF(ISBLANK('Program Requirements'!B151),"",('Program Requirements'!B151)) ->  | F106: =IF(ISBLANK('Program Requirements'!E151),"",'Program Requirements'!E151) ->  | K106: =IF(E106="Yes",('Program Requirements'!H151),"") ->  | L106: =IF(E106="Yes",('Program Requirements'!M151),"") ->  | M106: =IF(ISBLANK('Program Requirements'!N151),"",'Program Requirements'!N151) -> 0 | O106: 1226093.74 | Q106: 0
B107: =IF(ISBLANK('Program Requirements'!B152),"",('Program Requirements'!B152)) ->  | F107: =IF(ISBLANK('Program Requirements'!E152),"",'Program Requirements'!E152) ->  | K107: =IF(E107="Yes",('Program Requirements'!H152),"") ->  | L107: =IF(E107="Yes",('Program Requirements'!M152),"") ->  | M107: =IF(ISBLANK('Program Requirements'!N152),"",'Program Requirements'!N152) -> 0 | O107: 1226093.74 | Q107: 0
B108: =IF(ISBLANK('Program Requirements'!B153),"",('Program Requirements'!B153)) ->  | F108: =IF(ISBLANK('Program Requirements'!E153),"",'Program Requirements'!E153) ->  | K108: =IF(E108="Yes",('Program Requirements'!H153),"") ->  | L108: =IF(E108="Yes",('Program Requirements'!M153),"") ->  | M108: =IF(ISBLANK('Program Requirements'!N153),"",'Program Requirements'!N153) -> 0 | O108: 1226093.74 | Q108: 0
B109: =IF(ISBLANK('Program Requirements'!B154),"",('Program Requirements'!B154)) ->  | F109: =IF(ISBLANK('Program Requirements'!E154),"",'Program Requirements'!E154) ->  | K109: =IF(E109="Yes",('Program Requirements'!H154),"") ->  | L109: =IF(E109="Yes",('Program Requirements'!M154),"") ->  | M109: =IF(ISBLANK('Program Requirements'!N154),"",'Program Requirements'!N154) -> 0 | O109: 1226093.74 | Q109: 0
B110: =IF(ISBLANK('Program Requirements'!B155),"",('Program Requirements'!B155)) ->  | F110: =IF(ISBLANK('Program Requirements'!E155),"",'Program Requirements'!E155) ->  | K110: =IF(E110="Yes",('Program Requirements'!H155),"") ->  | L110: =IF(E110="Yes",('Program Requirements'!M155),"") ->  | M110: =IF(ISBLANK('Program Requirements'!N155),"",'Program Requirements'!N155) -> 0 | O110: 1226093.74 | Q110: 0
B111: =IF(ISBLANK('Program Requirements'!B156),"",('Program Requirements'!B156)) ->  | F111: =IF(ISBLANK('Program Requirements'!E156),"",'Program Requirements'!E156) ->  | K111: =IF(E111="Yes",('Program Requirements'!H156),"") ->  | L111: =IF(E111="Yes",('Program Requirements'!M156),"") ->  | M111: =IF(ISBLANK('Program Requirements'!N156),"",'Program Requirements'!N156) -> 0 | O111: 1226093.74 | Q111: 0
B112: =IF(ISBLANK('Program Requirements'!B157),"",('Program Requirements'!B157)) ->  | F112: =IF(ISBLANK('Program Requirements'!E157),"",'Program Requirements'!E157) ->  | K112: =IF(E112="Yes",('Program Requirements'!H157),"") ->  | L112: =IF(E112="Yes",('Program Requirements'!M157),"") ->  | M112: =IF(ISBLANK('Program Requirements'!N157),"",'Program Requirements'!N157) -> 0 | O112: 1226093.74 | Q112: 0
B113: =IF(ISBLANK('Program Requirements'!B158),"",('Program Requirements'!B158)) ->  | F113: =IF(ISBLANK('Program Requirements'!E158),"",'Program Requirements'!E158) ->  | K113: =IF(E113="Yes",('Program Requirements'!H158),"") ->  | L113: =IF(E113="Yes",('Program Requirements'!M158),"") ->  | M113: =IF(ISBLANK('Program Requirements'!N158),"",'Program Requirements'!N158) -> 0 | O113: 1226093.74 | Q113: 0
B114: =IF(ISBLANK('Program Requirements'!B159),"",('Program Requirements'!B159)) ->  | F114: =IF(ISBLANK('Program Requirements'!E159),"",'Program Requirements'!E159) ->  | K114: =IF(E114="Yes",('Program Requirements'!H159),"") ->  | L114: =IF(E114="Yes",('Program Requirements'!M159),"") ->  | M114: =IF(ISBLANK('Program Requirements'!N159),"",'Program Requirements'!N159) -> 0 | O114: 1226093.74 | Q114: 0
B115: =IF(ISBLANK('Program Requirements'!B160),"",('Program Requirements'!B160)) ->  | F115: =IF(ISBLANK('Program Requirements'!E160),"",'Program Requirements'!E160) ->  | K115: =IF(E115="Yes",('Program Requirements'!H160),"") ->  | L115: =IF(E115="Yes",('Program Requirements'!M160),"") ->  | M115: =IF(ISBLANK('Program Requirements'!N160),"",'Program Requirements'!N160) -> 0 | O115: 1226093.74 | Q115: 0
B116: =IF(ISBLANK('Program Requirements'!B161),"",('Program Requirements'!B161)) ->  | F116: =IF(ISBLANK('Program Requirements'!E161),"",'Program Requirements'!E161) ->  | K116: =IF(E116="Yes",('Program Requirements'!H161),"") ->  | L116: =IF(E116="Yes",('Program Requirements'!M161),"") ->  | M116: =IF(ISBLANK('Program Requirements'!N161),"",'Program Requirements'!N161) -> 0 | O116: 1226093.74 | Q116: 0
B117: =IF(ISBLANK('Program Requirements'!B162),"",('Program Requirements'!B162)) ->  | F117: =IF(ISBLANK('Program Requirements'!E162),"",'Program Requirements'!E162) ->  | K117: =IF(E117="Yes",('Program Requirements'!H162),"") ->  | L117: =IF(E117="Yes",('Program Requirements'!M162),"") ->  | M117: =IF(ISBLANK('Program Requirements'!N162),"",'Program Requirements'!N162) -> 0 | O117: 1226093.74 | Q117: 0
B118: =IF(ISBLANK('Program Requirements'!B163),"",('Program Requirements'!B163)) ->  | F118: =IF(ISBLANK('Program Requirements'!E163),"",'Program Requirements'!E163) ->  | K118: =IF(E118="Yes",('Program Requirements'!H163),"") ->  | L118: =IF(E118="Yes",('Program Requirements'!M163),"") ->  | M118: =IF(ISBLANK('Program Requirements'!N163),"",'Program Requirements'!N163) -> 0 | O118: 1226093.74 | Q118: 0
B119: =IF(ISBLANK('Program Requirements'!B164),"",('Program Requirements'!B164)) ->  | F119: =IF(ISBLANK('Program Requirements'!E164),"",'Program Requirements'!E164) ->  | K119: =IF(E119="Yes",('Program Requirements'!H164),"") ->  | L119: =IF(E119="Yes",('Program Requirements'!M164),"") ->  | M119: =IF(ISBLANK('Program Requirements'!N164),"",'Program Requirements'!N164) -> 0 | O119: 1226093.74 | Q119: 0
B120: =IF(ISBLANK('Program Requirements'!B165),"",('Program Requirements'!B165)) ->  | F120: =IF(ISBLANK('Program Requirements'!E165),"",'Program Requirements'!E165) ->  | K120: =IF(E120="Yes",('Program Requirements'!H165),"") ->  | L120: =IF(E120="Yes",('Program Requirements'!M165),"") ->  | M120: =IF(ISBLANK('Program Requirements'!N165),"",'Program Requirements'!N165) -> 0 | O120: 1226093.74 | Q120: 0
B121: =IF(ISBLANK('Program Requirements'!B166),"",('Program Requirements'!B166)) ->  | F121: =IF(ISBLANK('Program Requirements'!E166),"",'Program Requirements'!E166) ->  | K121: =IF(E121="Yes",('Program Requirements'!H166),"") ->  | L121: =IF(E121="Yes",('Program Requirements'!M166),"") ->  | M121: =IF(ISBLANK('Program Requirements'!N166),"",'Program Requirements'!N166) -> 0 | O121: 1226093.74 | Q121: 0
B122: =IF(ISBLANK('Program Requirements'!B167),"",('Program Requirements'!B167)) ->  | F122: =IF(ISBLANK('Program Requirements'!E167),"",'Program Requirements'!E167) ->  | K122: =IF(E122="Yes",('Program Requirements'!H167),"") ->  | L122: =IF(E122="Yes",('Program Requirements'!M167),"") ->  | M122: =IF(ISBLANK('Program Requirements'!N167),"",'Program Requirements'!N167) -> 0 | O122: 1226093.74 | Q122: 0
B123: =IF(ISBLANK('Program Requirements'!B168),"",('Program Requirements'!B168)) ->  | F123: =IF(ISBLANK('Program Requirements'!E168),"",'Program Requirements'!E168) ->  | K123: =IF(E123="Yes",('Program Requirements'!H168),"") ->  | L123: =IF(E123="Yes",('Program Requirements'!M168),"") ->  | M123: =IF(ISBLANK('Program Requirements'!N168),"",'Program Requirements'!N168) -> 0 | N123: =IF(IF(E123="Yes",IF(ISBLANK(L123),"",SUM(L123)*$O$49),0)>$G$47,SUM($G$47),IF(E123="Yes",IF(ISBLANK(L123),"",SUM(L123)*$O$49),"")) ->  | O123: 1226093.74 | Q123: =IF(SUM(P123)=0,SUM(N123),IF(SUM(N123,P123)=P123,"ERROR",SUM(N123,P123))) -> 0
B124: =IF(ISBLANK('Program Requirements'!B169),"",('Program Requirements'!B169)) ->  | F124: =IF(ISBLANK('Program Requirements'!E169),"",'Program Requirements'!E169) ->  | K124: =IF(E124="Yes",('Program Requirements'!H169),"") ->  | L124: =IF(E124="Yes",('Program Requirements'!M169),"") ->  | M124: =IF(ISBLANK('Program Requirements'!N169),"",'Program Requirements'!N169) -> 0 | O124: =SUM(O123)-SUM(N124)-SUM(P124) -> 1226093.74 | Q124: 0
B125: =IF(ISBLANK('Program Requirements'!B170),"",('Program Requirements'!B170)) ->  | F125: =IF(ISBLANK('Program Requirements'!E170),"",'Program Requirements'!E170) ->  | K125: =IF(E125="Yes",('Program Requirements'!H170),"") ->  | L125: =IF(E125="Yes",('Program Requirements'!M170),"") ->  | M125: =IF(ISBLANK('Program Requirements'!N170),"",'Program Requirements'!N170) -> 0 | O125: 1226093.74 | Q125: 0
B126: =IF(ISBLANK('Program Requirements'!B171),"",('Program Requirements'!B171)) ->  | F126: =IF(ISBLANK('Program Requirements'!E171),"",'Program Requirements'!E171) ->  | K126: =IF(E126="Yes",('Program Requirements'!H171),"") ->  | L126: =IF(E126="Yes",('Program Requirements'!M171),"") ->  | M126: =IF(ISBLANK('Program Requirements'!N171),"",'Program Requirements'!N171) -> 0 | O126: 1226093.74 | Q126: 0
B127: =IF(ISBLANK('Program Requirements'!B172),"",('Program Requirements'!B172)) ->  | F127: =IF(ISBLANK('Program Requirements'!E172),"",'Program Requirements'!E172) ->  | K127: =IF(E127="Yes",('Program Requirements'!H172),"") ->  | L127: =IF(E127="Yes",('Program Requirements'!M172),"") ->  | M127: =IF(ISBLANK('Program Requirements'!N172),"",'Program Requirements'!N172) -> 0 | O127: 1226093.74 | Q127: 0
B128: =IF(ISBLANK('Program Requirements'!B173),"",('Program Requirements'!B173)) ->  | F128: =IF(ISBLANK('Program Requirements'!E173),"",'Program Requirements'!E173) ->  | K128: =IF(E128="Yes",('Program Requirements'!H173),"") ->  | L128: =IF(E128="Yes",('Program Requirements'!M173),"") ->  | M128: =IF(ISBLANK('Program Requirements'!N173),"",'Program Requirements'!N173) -> 0 | O128: 1226093.74 | Q128: 0
B129: =IF(ISBLANK('Program Requirements'!B174),"",('Program Requirements'!B174)) ->  | F129: =IF(ISBLANK('Program Requirements'!E174),"",'Program Requirements'!E174) ->  | K129: =IF(E129="Yes",('Program Requirements'!H174),"") ->  | L129: =IF(E129="Yes",('Program Requirements'!M174),"") ->  | M129: =IF(ISBLANK('Program Requirements'!N174),"",'Program Requirements'!N174) -> 0 | O129: 1226093.74 | Q129: 0
B130: =IF(ISBLANK('Program Requirements'!B175),"",('Program Requirements'!B175)) ->  | F130: =IF(ISBLANK('Program Requirements'!E175),"",'Program Requirements'!E175) ->  | K130: =IF(E130="Yes",('Program Requirements'!H175),"") ->  | L130: =IF(E130="Yes",('Program Requirements'!M175),"") ->  | M130: =IF(ISBLANK('Program Requirements'!N175),"",'Program Requirements'!N175) -> 0 | O130: 1226093.74 | Q130: 0
B131: =IF(ISBLANK('Program Requirements'!B176),"",('Program Requirements'!B176)) ->  | F131: =IF(ISBLANK('Program Requirements'!E176),"",'Program Requirements'!E176) ->  | K131: =IF(E131="Yes",('Program Requirements'!H176),"") ->  | L131: =IF(E131="Yes",('Program Requirements'!M176),"") ->  | M131: =IF(ISBLANK('Program Requirements'!N176),"",'Program Requirements'!N176) -> 0 | O131: 1226093.74 | Q131: 0
B132: =IF(ISBLANK('Program Requirements'!B177),"",('Program Requirements'!B177)) ->  | F132: =IF(ISBLANK('Program Requirements'!E177),"",'Program Requirements'!E177) ->  | K132: =IF(E132="Yes",('Program Requirements'!H177),"") ->  | L132: =IF(E132="Yes",('Program Requirements'!M177),"") ->  | M132: =IF(ISBLANK('Program Requirements'!N177),"",'Program Requirements'!N177) -> 0 | O132: 1226093.74 | Q132: 0
B133: =IF(ISBLANK('Program Requirements'!B178),"",('Program Requirements'!B178)) ->  | F133: =IF(ISBLANK('Program Requirements'!E178),"",'Program Requirements'!E178) ->  | K133: =IF(E133="Yes",('Program Requirements'!H178),"") ->  | L133: =IF(E133="Yes",('Program Requirements'!M178),"") ->  | M133: =IF(ISBLANK('Program Requirements'!N178),"",'Program Requirements'!N178) -> 0 | O133: 1226093.74 | Q133: 0
B134: =IF(ISBLANK('Program Requirements'!B179),"",('Program Requirements'!B179)) ->  | F134: =IF(ISBLANK('Program Requirements'!E179),"",'Program Requirements'!E179) ->  | K134: =IF(E134="Yes",('Program Requirements'!H179),"") ->  | L134: =IF(E134="Yes",('Program Requirements'!M179),"") ->  | M134: =IF(ISBLANK('Program Requirements'!N179),"",'Program Requirements'!N179) -> 0 | O134: 1226093.74 | Q134: 0
B135: =IF(ISBLANK('Program Requirements'!B180),"",('Program Requirements'!B180)) ->  | F135: =IF(ISBLANK('Program Requirements'!E180),"",'Program Requirements'!E180) ->  | K135: =IF(E135="Yes",('Program Requirements'!H180),"") ->  | L135: =IF(E135="Yes",('Program Requirements'!M180),"") ->  | M135: =IF(ISBLANK('Program Requirements'!N180),"",'Program Requirements'!N180) -> 0 | O135: 1226093.74 | Q135: 0
B136: =IF(ISBLANK('Program Requirements'!B181),"",('Program Requirements'!B181)) ->  | F136: =IF(ISBLANK('Program Requirements'!E181),"",'Program Requirements'!E181) ->  | K136: =IF(E136="Yes",('Program Requirements'!H181),"") ->  | L136: =IF(E136="Yes",('Program Requirements'!M181),"") ->  | M136: =IF(ISBLANK('Program Requirements'!N181),"",'Program Requirements'!N181) -> 0 | O136: 1226093.74 | Q136: 0
B137: =IF(ISBLANK('Program Requirements'!B182),"",('Program Requirements'!B182)) ->  | F137: =IF(ISBLANK('Program Requirements'!E182),"",'Program Requirements'!E182) ->  | K137: =IF(E137="Yes",('Program Requirements'!H182),"") ->  | L137: =IF(E137="Yes",('Program Requirements'!M182),"") ->  | M137: =IF(ISBLANK('Program Requirements'!N182),"",'Program Requirements'!N182) -> 0 | O137: 1226093.74 | Q137: 0
B138: =IF(ISBLANK('Program Requirements'!B183),"",('Program Requirements'!B183)) ->  | F138: =IF(ISBLANK('Program Requirements'!E183),"",'Program Requirements'!E183) ->  | K138: =IF(E138="Yes",('Program Requirements'!H183),"") ->  | L138: =IF(E138="Yes",('Program Requirements'!M183),"") ->  | M138: =IF(ISBLANK('Program Requirements'!N183),"",'Program Requirements'!N183) -> 0 | O138: 1226093.74 | Q138: 0
B139: =IF(ISBLANK('Program Requirements'!B184),"",('Program Requirements'!B184)) ->  | F139: =IF(ISBLANK('Program Requirements'!E184),"",'Program Requirements'!E184) ->  | K139: =IF(E139="Yes",('Program Requirements'!H184),"") ->  | L139: =IF(E139="Yes",('Program Requirements'!M184),"") ->  | M139: =IF(ISBLANK('Program Requirements'!N184),"",'Program Requirements'!N184) -> 0 | O139: 1226093.74 | Q139: 0
B140: =IF(ISBLANK('Program Requirements'!B185),"",('Program Requirements'!B185)) ->  | F140: =IF(ISBLANK('Program Requirements'!E185),"",'Program Requirements'!E185) ->  | K140: =IF(E140="Yes",('Program Requirements'!H185),"") ->  | L140: =IF(E140="Yes",('Program Requirements'!M185),"") ->  | M140: =IF(ISBLANK('Program Requirements'!N185),"",'Program Requirements'!N185) -> 0 | O140: 1226093.74 | Q140: 0
B141: =IF(ISBLANK('Program Requirements'!B186),"",('Program Requirements'!B186)) ->  | F141: =IF(ISBLANK('Program Requirements'!E186),"",'Program Requirements'!E186) ->  | K141: =IF(E141="Yes",('Program Requirements'!H186),"") ->  | L141: =IF(E141="Yes",('Program Requirements'!M186),"") ->  | M141: =IF(ISBLANK('Program Requirements'!N186),"",'Program Requirements'!N186) -> 0 | O141: 1226093.74 | Q141: 0
B142: =IF(ISBLANK('Program Requirements'!B187),"",('Program Requirements'!B187)) ->  | F142: =IF(ISBLANK('Program Requirements'!E187),"",'Program Requirements'!E187) ->  | K142: =IF(E142="Yes",('Program Requirements'!H187),"") ->  | L142: =IF(E142="Yes",('Program Requirements'!M187),"") ->  | M142: =IF(ISBLANK('Program Requirements'!N187),"",'Program Requirements'!N187) -> 0 | O142: 1226093.74 | Q142: 0
B143: =IF(ISBLANK('Program Requirements'!B188),"",('Program Requirements'!B188)) ->  | F143: =IF(ISBLANK('Program Requirements'!E188),"",'Program Requirements'!E188) ->  | K143: =IF(E143="Yes",('Program Requirements'!H188),"") ->  | L143: =IF(E143="Yes",('Program Requirements'!M188),"") ->  | M143: =IF(ISBLANK('Program Requirements'!N188),"",'Program Requirements'!N188) -> 0 | O143: 1226093.74 | Q143: 0
B144: =IF(ISBLANK('Program Requirements'!B189),"",('Program Requirements'!B189)) ->  | F144: =IF(ISBLANK('Program Requirements'!E189),"",'Program Requirements'!E189) ->  | K144: =IF(E144="Yes",('Program Requirements'!H189),"") ->  | L144: =IF(E144="Yes",('Program Requirements'!M189),"") ->  | M144: =IF(ISBLANK('Program Requirements'!N189),"",'Program Requirements'!N189) -> 0 | O144: 1226093.74 | Q144: 0
B145: =IF(ISBLANK('Program Requirements'!B190),"",('Program Requirements'!B190)) ->  | F145: =IF(ISBLANK('Program Requirements'!E190),"",'Program Requirements'!E190) ->  | K145: =IF(E145="Yes",('Program Requirements'!H190),"") ->  | L145: =IF(E145="Yes",('Program Requirements'!M190),"") ->  | M145: =IF(ISBLANK('Program Requirements'!N190),"",'Program Requirements'!N190) -> 0 | O145: 1226093.74 | Q145: 0
B146: =IF(ISBLANK('Program Requirements'!B191),"",('Program Requirements'!B191)) ->  | F146: =IF(ISBLANK('Program Requirements'!E191),"",'Program Requirements'!E191) ->  | K146: =IF(E146="Yes",('Program Requirements'!H191),"") ->  | L146: =IF(E146="Yes",('Program Requirements'!M191),"") ->  | M146: =IF(ISBLANK('Program Requirements'!N191),"",'Program Requirements'!N191) -> 0 | O146: 1226093.74 | Q146: 0
B147: =IF(ISBLANK('Program Requirements'!B192),"",('Program Requirements'!B192)) ->  | F147: =IF(ISBLANK('Program Requirements'!E192),"",'Program Requirements'!E192) ->  | K147: =IF(E147="Yes",('Program Requirements'!H192),"") ->  | L147: =IF(E147="Yes",('Program Requirements'!M192),"") ->  | M147: =IF(ISBLANK('Program Requirements'!N192),"",'Program Requirements'!N192) -> 0 | O147: 1226093.74 | Q147: 0
B148: =IF(ISBLANK('Program Requirements'!B193),"",('Program Requirements'!B193)) ->  | F148: =IF(ISBLANK('Program Requirements'!E193),"",'Program Requirements'!E193) ->  | K148: =IF(E148="Yes",('Program Requirements'!H193),"") ->  | L148: =IF(E148="Yes",('Program Requirements'!M193),"") ->  | M148: =IF(ISBLANK('Program Requirements'!N193),"",'Program Requirements'!N193) -> 0 | O148: 1226093.74 | Q148: 0
B149: =IF(ISBLANK('Program Requirements'!B194),"",('Program Requirements'!B194)) ->  | F149: =IF(ISBLANK('Program Requirements'!E194),"",'Program Requirements'!E194) ->  | K149: =IF(E149="Yes",('Program Requirements'!H194),"") ->  | L149: =IF(E149="Yes",('Program Requirements'!M194),"") ->  | M149: =IF(ISBLANK('Program Requirements'!N194),"",'Program Requirements'!N194) -> 0 | O149: 1226093.74 | Q149: 0
B150: =IF(ISBLANK('Program Requirements'!B195),"",('Program Requirements'!B195)) ->  | F150: =IF(ISBLANK('Program Requirements'!E195),"",'Program Requirements'!E195) ->  | K150: =IF(E150="Yes",('Program Requirements'!H195),"") ->  | L150: =IF(E150="Yes",('Program Requirements'!M195),"") ->  | M150: =IF(ISBLANK('Program Requirements'!N195),"",'Program Requirements'!N195) -> 0 | O150: 1226093.74 | Q150: 0
B151: =IF(ISBLANK('Program Requirements'!B196),"",('Program Requirements'!B196)) ->  | F151: =IF(ISBLANK('Program Requirements'!E196),"",'Program Requirements'!E196) ->  | K151: =IF(E151="Yes",('Program Requirements'!H196),"") ->  | L151: =IF(E151="Yes",('Program Requirements'!M196),"") ->  | M151: =IF(ISBLANK('Program Requirements'!N196),"",'Program Requirements'!N196) -> 0 | O151: 1226093.74 | Q151: 0
B152: =IF(ISBLANK('Program Requirements'!B197),"",('Program Requirements'!B197)) ->  | F152: =IF(ISBLANK('Program Requirements'!E197),"",'Program Requirements'!E197) ->  | K152: =IF(E152="Yes",('Program Requirements'!H197),"") ->  | L152: =IF(E152="Yes",('Program Requirements'!M197),"") ->  | M152: =IF(ISBLANK('Program Requirements'!N197),"",'Program Requirements'!N197) -> 0 | O152: 1226093.74 | Q152: 0
B153: =IF(ISBLANK('Program Requirements'!B198),"",('Program Requirements'!B198)) ->  | F153: =IF(ISBLANK('Program Requirements'!E198),"",'Program Requirements'!E198) ->  | K153: =IF(E153="Yes",('Program Requirements'!H198),"") ->  | L153: =IF(E153="Yes",('Program Requirements'!M198),"") ->  | M153: =IF(ISBLANK('Program Requirements'!N198),"",'Program Requirements'!N198) -> 0 | O153: 1226093.74 | Q153: 0
B154: =IF(ISBLANK('Program Requirements'!B199),"",('Program Requirements'!B199)) ->  | F154: =IF(ISBLANK('Program Requirements'!E199),"",'Program Requirements'!E199) ->  | K154: =IF(E154="Yes",('Program Requirements'!H199),"") ->  | L154: =IF(E154="Yes",('Program Requirements'!M199),"") ->  | M154: =IF(ISBLANK('Program Requirements'!N199),"",'Program Requirements'!N199) -> 0 | O154: 1226093.74 | Q154: 0 | R154: =IF(E154="Yes",SUM(Q154)/SUM(L154),"") -> 
B155: =IF(ISBLANK('Program Requirements'!B200),"",('Program Requirements'!B200)) ->  | F155: =IF(ISBLANK('Program Requirements'!E200),"",'Program Requirements'!E200) ->  | K155: =IF(E155="Yes",('Program Requirements'!H200),"") ->  | L155: =IF(E155="Yes",('Program Requirements'!M200),"") ->  | M155: =IF(ISBLANK('Program Requirements'!N200),"",'Program Requirements'!N200) -> 0 | O155: 1226093.74 | Q155: 0
B156: =IF(ISBLANK('Program Requirements'!B201),"",('Program Requirements'!B201)) ->  | F156: =IF(ISBLANK('Program Requirements'!E201),"",'Program Requirements'!E201) ->  | K156: =IF(E156="Yes",('Program Requirements'!H201),"") ->  | L156: =IF(E156="Yes",('Program Requirements'!M201),"") ->  | M156: =IF(ISBLANK('Program Requirements'!N201),"",'Program Requirements'!N201) -> 0 | O156: 1226093.74 | Q156: 0
B157: =IF(ISBLANK('Program Requirements'!B202),"",('Program Requirements'!B202)) ->  | F157: =IF(ISBLANK('Program Requirements'!E202),"",'Program Requirements'!E202) ->  | K157: =IF(E157="Yes",('Program Requirements'!H202),"") ->  | L157: =IF(E157="Yes",('Program Requirements'!M202),"") ->  | M157: =IF(ISBLANK('Program Requirements'!N202),"",'Program Requirements'!N202) -> 0 | O157: 1226093.74 | Q157: 0
B158: =IF(ISBLANK('Program Requirements'!B203),"",('Program Requirements'!B203)) ->  | F158: =IF(ISBLANK('Program Requirements'!E203),"",'Program Requirements'!E203) ->  | K158: =IF(E158="Yes",('Program Requirements'!H203),"") ->  | L158: =IF(E158="Yes",('Program Requirements'!M203),"") ->  | M158: =IF(ISBLANK('Program Requirements'!N203),"",'Program Requirements'!N203) -> 0 | O158: 1226093.74 | Q158: 0
B159: =IF(ISBLANK('Program Requirements'!B204),"",('Program Requirements'!B204)) ->  | F159: =IF(ISBLANK('Program Requirements'!E204),"",'Program Requirements'!E204) ->  | K159: =IF(E159="Yes",('Program Requirements'!H204),"") ->  | L159: =IF(E159="Yes",('Program Requirements'!M204),"") ->  | M159: =IF(ISBLANK('Program Requirements'!N204),"",'Program Requirements'!N204) -> 0 | O159: 1226093.74 | Q159: 0
B160: =IF(ISBLANK('Program Requirements'!B205),"",('Program Requirements'!B205)) ->  | F160: =IF(ISBLANK('Program Requirements'!E205),"",'Program Requirements'!E205) ->  | K160: =IF(E160="Yes",('Program Requirements'!H205),"") ->  | L160: =IF(E160="Yes",('Program Requirements'!M205),"") ->  | M160: =IF(ISBLANK('Program Requirements'!N205),"",'Program Requirements'!N205) -> 0 | O160: 1226093.74 | Q160: 0
B161: =IF(ISBLANK('Program Requirements'!B206),"",('Program Requirements'!B206)) ->  | F161: =IF(ISBLANK('Program Requirements'!E206),"",'Program Requirements'!E206) ->  | K161: =IF(E161="Yes",('Program Requirements'!H206),"") ->  | L161: =IF(E161="Yes",('Program Requirements'!M206),"") ->  | M161: =IF(ISBLANK('Program Requirements'!N206),"",'Program Requirements'!N206) -> 0 | O161: 1226093.74 | Q161: 0
B162: =IF(ISBLANK('Program Requirements'!B207),"",('Program Requirements'!B207)) ->  | F162: =IF(ISBLANK('Program Requirements'!E207),"",'Program Requirements'!E207) ->  | K162: =IF(E162="Yes",('Program Requirements'!H207),"") ->  | L162: =IF(E162="Yes",('Program Requirements'!M207),"") ->  | M162: =IF(ISBLANK('Program Requirements'!N207),"",'Program Requirements'!N207) -> 0 | O162: 1226093.74 | Q162: 0
B163: =IF(ISBLANK('Program Requirements'!B208),"",('Program Requirements'!B208)) ->  | F163: =IF(ISBLANK('Program Requirements'!E208),"",'Program Requirements'!E208) ->  | K163: =IF(E163="Yes",('Program Requirements'!H208),"") ->  | L163: =IF(E163="Yes",('Program Requirements'!M208),"") ->  | M163: =IF(ISBLANK('Program Requirements'!N208),"",'Program Requirements'!N208) -> 0 | O163: 1226093.74 | Q163: 0
B164: =IF(ISBLANK('Program Requirements'!B209),"",('Program Requirements'!B209)) ->  | F164: =IF(ISBLANK('Program Requirements'!E209),"",'Program Requirements'!E209) ->  | K164: =IF(E164="Yes",('Program Requirements'!H209),"") ->  | L164: =IF(E164="Yes",('Program Requirements'!M209),"") ->  | M164: =IF(ISBLANK('Program Requirements'!N209),"",'Program Requirements'!N209) -> 0 | O164: 1226093.74 | Q164: 0
B165: =IF(ISBLANK('Program Requirements'!B210),"",('Program Requirements'!B210)) ->  | F165: =IF(ISBLANK('Program Requirements'!E210),"",'Program Requirements'!E210) ->  | K165: =IF(E165="Yes",('Program Requirements'!H210),"") ->  | L165: =IF(E165="Yes",('Program Requirements'!M210),"") ->  | M165: =IF(ISBLANK('Program Requirements'!N210),"",'Program Requirements'!N210) -> 0 | O165: 1226093.74 | Q165: 0
B166: =IF(ISBLANK('Program Requirements'!B211),"",('Program Requirements'!B211)) ->  | F166: =IF(ISBLANK('Program Requirements'!E211),"",'Program Requirements'!E211) ->  | K166: =IF(E166="Yes",('Program Requirements'!H211),"") ->  | L166: =IF(E166="Yes",('Program Requirements'!M211),"") ->  | M166: =IF(ISBLANK('Program Requirements'!N211),"",'Program Requirements'!N211) -> 0 | O166: 1226093.74 | Q166: 0
B167: =IF(ISBLANK('Program Requirements'!B212),"",('Program Requirements'!B212)) ->  | F167: =IF(ISBLANK('Program Requirements'!E212),"",'Program Requirements'!E212) ->  | K167: =IF(E167="Yes",('Program Requirements'!H212),"") ->  | L167: =IF(E167="Yes",('Program Requirements'!M212),"") ->  | M167: =IF(ISBLANK('Program Requirements'!N212),"",'Program Requirements'!N212) -> 0 | O167: 1226093.74 | Q167: 0
B168: =IF(ISBLANK('Program Requirements'!B213),"",('Program Requirements'!B213)) ->  | F168: =IF(ISBLANK('Program Requirements'!E213),"",'Program Requirements'!E213) ->  | K168: =IF(E168="Yes",('Program Requirements'!H213),"") ->  | L168: =IF(E168="Yes",('Program Requirements'!M213),"") ->  | M168: =IF(ISBLANK('Program Requirements'!N213),"",'Program Requirements'!N213) -> 0 | O168: 1226093.74 | Q168: 0
B169: =IF(ISBLANK('Program Requirements'!B214),"",('Program Requirements'!B214)) ->  | F169: =IF(ISBLANK('Program Requirements'!E214),"",'Program Requirements'!E214) ->  | K169: =IF(E169="Yes",('Program Requirements'!H214),"") ->  | L169: =IF(E169="Yes",('Program Requirements'!M214),"") ->  | M169: =IF(ISBLANK('Program Requirements'!N214),"",'Program Requirements'!N214) -> 0 | O169: 1226093.74 | Q169: 0
B170: =IF(ISBLANK('Program Requirements'!B215),"",('Program Requirements'!B215)) ->  | F170: =IF(ISBLANK('Program Requirements'!E215),"",'Program Requirements'!E215) ->  | K170: =IF(E170="Yes",('Program Requirements'!H215),"") ->  | L170: =IF(E170="Yes",('Program Requirements'!M215),"") ->  | M170: =IF(ISBLANK('Program Requirements'!N215),"",'Program Requirements'!N215) -> 0 | O170: 1226093.74 | Q170: 0
B171: =IF(ISBLANK('Program Requirements'!B216),"",('Program Requirements'!B216)) ->  | F171: =IF(ISBLANK('Program Requirements'!E216),"",'Program Requirements'!E216) ->  | K171: =IF(E171="Yes",('Program Requirements'!H216),"") ->  | L171: =IF(E171="Yes",('Program Requirements'!M216),"") ->  | M171: =IF(ISBLANK('Program Requirements'!N216),"",'Program Requirements'!N216) -> 0 | O171: 1226093.74 | Q171: 0
B172: =IF(ISBLANK('Program Requirements'!B217),"",('Program Requirements'!B217)) ->  | F172: =IF(ISBLANK('Program Requirements'!E217),"",'Program Requirements'!E217) ->  | K172: =IF(E172="Yes",('Program Requirements'!H217),"") ->  | L172: =IF(E172="Yes",('Program Requirements'!M217),"") ->  | M172: =IF(ISBLANK('Program Requirements'!N217),"",'Program Requirements'!N217) -> 0 | O172: 1226093.74 | Q172: 0
B173: =IF(ISBLANK('Program Requirements'!B218),"",('Program Requirements'!B218)) ->  | F173: =IF(ISBLANK('Program Requirements'!E218),"",'Program Requirements'!E218) ->  | K173: =IF(E173="Yes",('Program Requirements'!H218),"") ->  | L173: =IF(E173="Yes",('Program Requirements'!M218),"") ->  | M173: =IF(ISBLANK('Program Requirements'!N218),"",'Program Requirements'!N218) -> 0 | O173: 1226093.74 | Q173: 0
B174: =IF(ISBLANK('Program Requirements'!B219),"",('Program Requirements'!B219)) ->  | F174: =IF(ISBLANK('Program Requirements'!E219),"",'Program Requirements'!E219) ->  | K174: =IF(E174="Yes",('Program Requirements'!H219),"") ->  | L174: =IF(E174="Yes",('Program Requirements'!M219),"") ->  | M174: =IF(ISBLANK('Program Requirements'!N219),"",'Program Requirements'!N219) -> 0 | O174: 1226093.74 | Q174: 0
B175: =IF(ISBLANK('Program Requirements'!B220),"",('Program Requirements'!B220)) ->  | F175: =IF(ISBLANK('Program Requirements'!E220),"",'Program Requirements'!E220) ->  | K175: =IF(E175="Yes",('Program Requirements'!H220),"") ->  | L175: =IF(E175="Yes",('Program Requirements'!M220),"") ->  | M175: =IF(ISBLANK('Program Requirements'!N220),"",'Program Requirements'!N220) -> 0 | O175: 1226093.74 | Q175: 0
B176: =IF(ISBLANK('Program Requirements'!B221),"",('Program Requirements'!B221)) ->  | F176: =IF(ISBLANK('Program Requirements'!E221),"",'Program Requirements'!E221) ->  | K176: =IF(E176="Yes",('Program Requirements'!H221),"") ->  | L176: =IF(E176="Yes",('Program Requirements'!M221),"") ->  | M176: =IF(ISBLANK('Program Requirements'!N221),"",'Program Requirements'!N221) -> 0 | O176: 1226093.74 | Q176: 0
B177: =IF(ISBLANK('Program Requirements'!B222),"",('Program Requirements'!B222)) ->  | F177: =IF(ISBLANK('Program Requirements'!E222),"",'Program Requirements'!E222) ->  | K177: =IF(E177="Yes",('Program Requirements'!H222),"") ->  | L177: =IF(E177="Yes",('Program Requirements'!M222),"") ->  | M177: =IF(ISBLANK('Program Requirements'!N222),"",'Program Requirements'!N222) -> 0 | O177: 1226093.74 | Q177: 0
B178: =IF(ISBLANK('Program Requirements'!B223),"",('Program Requirements'!B223)) ->  | F178: =IF(ISBLANK('Program Requirements'!E223),"",'Program Requirements'!E223) ->  | K178: =IF(E178="Yes",('Program Requirements'!H223),"") ->  | L178: =IF(E178="Yes",('Program Requirements'!M223),"") ->  | M178: =IF(ISBLANK('Program Requirements'!N223),"",'Program Requirements'!N223) -> 0 | O178: 1226093.74 | Q178: 0
B179: =IF(ISBLANK('Program Requirements'!B224),"",('Program Requirements'!B224)) ->  | F179: =IF(ISBLANK('Program Requirements'!E224),"",'Program Requirements'!E224) ->  | K179: =IF(E179="Yes",('Program Requirements'!H224),"") ->  | L179: =IF(E179="Yes",('Program Requirements'!M224),"") ->  | M179: =IF(ISBLANK('Program Requirements'!N224),"",'Program Requirements'!N224) -> 0 | O179: 1226093.74 | Q179: 0
B180: =IF(ISBLANK('Program Requirements'!B225),"",('Program Requirements'!B225)) ->  | F180: =IF(ISBLANK('Program Requirements'!E225),"",'Program Requirements'!E225) ->  | K180: =IF(E180="Yes",('Program Requirements'!H225),"") ->  | L180: =IF(E180="Yes",('Program Requirements'!M225),"") ->  | M180: =IF(ISBLANK('Program Requirements'!N225),"",'Program Requirements'!N225) -> 0 | O180: 1226093.74 | Q180: 0
B181: =IF(ISBLANK('Program Requirements'!B226),"",('Program Requirements'!B226)) ->  | F181: =IF(ISBLANK('Program Requirements'!E226),"",'Program Requirements'!E226) ->  | K181: =IF(E181="Yes",('Program Requirements'!H226),"") ->  | L181: =IF(E181="Yes",('Program Requirements'!M226),"") ->  | M181: =IF(ISBLANK('Program Requirements'!N226),"",'Program Requirements'!N226) -> 0 | O181: 1226093.74 | Q181: 0
B182: =IF(ISBLANK('Program Requirements'!B227),"",('Program Requirements'!B227)) ->  | F182: =IF(ISBLANK('Program Requirements'!E227),"",'Program Requirements'!E227) ->  | K182: =IF(E182="Yes",('Program Requirements'!H227),"") ->  | L182: =IF(E182="Yes",('Program Requirements'!M227),"") ->  | M182: =IF(ISBLANK('Program Requirements'!N227),"",'Program Requirements'!N227) -> 0 | O182: 1226093.74 | Q182: 0
B183: =IF(ISBLANK('Program Requirements'!B228),"",('Program Requirements'!B228)) ->  | F183: =IF(ISBLANK('Program Requirements'!E228),"",'Program Requirements'!E228) ->  | K183: =IF(E183="Yes",('Program Requirements'!H228),"") ->  | L183: =IF(E183="Yes",('Program Requirements'!M228),"") ->  | M183: =IF(ISBLANK('Program Requirements'!N228),"",'Program Requirements'!N228) -> 0 | O183: 1226093.74 | Q183: 0
B184: =IF(ISBLANK('Program Requirements'!B229),"",('Program Requirements'!B229)) ->  | F184: =IF(ISBLANK('Program Requirements'!E229),"",'Program Requirements'!E229) ->  | K184: =IF(E184="Yes",('Program Requirements'!H229),"") ->  | L184: =IF(E184="Yes",('Program Requirements'!M229),"") ->  | M184: =IF(ISBLANK('Program Requirements'!N229),"",'Program Requirements'!N229) -> 0 | O184: 1226093.74 | Q184: 0
B185: =IF(ISBLANK('Program Requirements'!B230),"",('Program Requirements'!B230)) ->  | F185: =IF(ISBLANK('Program Requirements'!E230),"",'Program Requirements'!E230) ->  | K185: =IF(E185="Yes",('Program Requirements'!H230),"") ->  | L185: =IF(E185="Yes",('Program Requirements'!M230),"") ->  | M185: =IF(ISBLANK('Program Requirements'!N230),"",'Program Requirements'!N230) -> 0 | O185: 1226093.74 | Q185: 0
B186: =IF(ISBLANK('Program Requirements'!B231),"",('Program Requirements'!B231)) ->  | F186: =IF(ISBLANK('Program Requirements'!E231),"",'Program Requirements'!E231) ->  | K186: =IF(E186="Yes",('Program Requirements'!H231),"") ->  | L186: =IF(E186="Yes",('Program Requirements'!M231),"") ->  | M186: =IF(ISBLANK('Program Requirements'!N231),"",'Program Requirements'!N231) -> 0 | O186: 1226093.74 | Q186: 0
B187: =IF(ISBLANK('Program Requirements'!B232),"",('Program Requirements'!B232)) ->  | F187: =IF(ISBLANK('Program Requirements'!E232),"",'Program Requirements'!E232) ->  | K187: =IF(E187="Yes",('Program Requirements'!H232),"") ->  | L187: =IF(E187="Yes",('Program Requirements'!M232),"") ->  | M187: =IF(ISBLANK('Program Requirements'!N232),"",'Program Requirements'!N232) -> 0 | N187: =IF(IF(E187="Yes",IF(ISBLANK(L187),"",SUM(L187)*$O$49),0)>$G$47,SUM($G$47),IF(E187="Yes",IF(ISBLANK(L187),"",SUM(L187)*$O$49),"")) ->  | O187: 1226093.74 | Q187: =IF(SUM(P187)=0,SUM(N187),IF(SUM(N187,P187)=P187,"ERROR",SUM(N187,P187))) -> 0
B188: =IF(ISBLANK('Program Requirements'!B233),"",('Program Requirements'!B233)) ->  | F188: =IF(ISBLANK('Program Requirements'!E233),"",'Program Requirements'!E233) ->  | K188: =IF(E188="Yes",('Program Requirements'!H233),"") ->  | L188: =IF(E188="Yes",('Program Requirements'!M233),"") ->  | M188: =IF(ISBLANK('Program Requirements'!N233),"",'Program Requirements'!N233) -> 0 | O188: =SUM(O187)-SUM(N188)-SUM(P188) -> 1226093.74 | Q188: 0
B189: =IF(ISBLANK('Program Requirements'!B234),"",('Program Requirements'!B234)) ->  | F189: =IF(ISBLANK('Program Requirements'!E234),"",'Program Requirements'!E234) ->  | K189: =IF(E189="Yes",('Program Requirements'!H234),"") ->  | L189: =IF(E189="Yes",('Program Requirements'!M234),"") ->  | M189: =IF(ISBLANK('Program Requirements'!N234),"",'Program Requirements'!N234) -> 0 | O189: 1226093.74 | Q189: 0
B190: =IF(ISBLANK('Program Requirements'!B235),"",('Program Requirements'!B235)) ->  | F190: =IF(ISBLANK('Program Requirements'!E235),"",'Program Requirements'!E235) ->  | K190: =IF(E190="Yes",('Program Requirements'!H235),"") ->  | L190: =IF(E190="Yes",('Program Requirements'!M235),"") ->  | M190: =IF(ISBLANK('Program Requirements'!N235),"",'Program Requirements'!N235) -> 0 | O190: 1226093.74 | Q190: 0
B191: =IF(ISBLANK('Program Requirements'!B236),"",('Program Requirements'!B236)) ->  | F191: =IF(ISBLANK('Program Requirements'!E236),"",'Program Requirements'!E236) ->  | K191: =IF(E191="Yes",('Program Requirements'!H236),"") ->  | L191: =IF(E191="Yes",('Program Requirements'!M236),"") ->  | M191: =IF(ISBLANK('Program Requirements'!N236),"",'Program Requirements'!N236) -> 0 | O191: 1226093.74 | Q191: 0
B192: =IF(ISBLANK('Program Requirements'!B237),"",('Program Requirements'!B237)) ->  | F192: =IF(ISBLANK('Program Requirements'!E237),"",'Program Requirements'!E237) ->  | K192: =IF(E192="Yes",('Program Requirements'!H237),"") ->  | L192: =IF(E192="Yes",('Program Requirements'!M237),"") ->  | M192: =IF(ISBLANK('Program Requirements'!N237),"",'Program Requirements'!N237) -> 0 | O192: 1226093.74 | Q192: 0
B193: =IF(ISBLANK('Program Requirements'!B238),"",('Program Requirements'!B238)) ->  | F193: =IF(ISBLANK('Program Requirements'!E238),"",'Program Requirements'!E238) ->  | K193: =IF(E193="Yes",('Program Requirements'!H238),"") ->  | L193: =IF(E193="Yes",('Program Requirements'!M238),"") ->  | M193: =IF(ISBLANK('Program Requirements'!N238),"",'Program Requirements'!N238) -> 0 | O193: 1226093.74 | Q193: 0
B194: =IF(ISBLANK('Program Requirements'!B239),"",('Program Requirements'!B239)) ->  | F194: =IF(ISBLANK('Program Requirements'!E239),"",'Program Requirements'!E239) ->  | K194: =IF(E194="Yes",('Program Requirements'!H239),"") ->  | L194: =IF(E194="Yes",('Program Requirements'!M239),"") ->  | M194: =IF(ISBLANK('Program Requirements'!N239),"",'Program Requirements'!N239) -> 0 | O194: 1226093.74 | Q194: 0
B195: =IF(ISBLANK('Program Requirements'!B240),"",('Program Requirements'!B240)) ->  | F195: =IF(ISBLANK('Program Requirements'!E240),"",'Program Requirements'!E240) ->  | K195: =IF(E195="Yes",('Program Requirements'!H240),"") ->  | L195: =IF(E195="Yes",('Program Requirements'!M240),"") ->  | M195: =IF(ISBLANK('Program Requirements'!N240),"",'Program Requirements'!N240) -> 0 | O195: 1226093.74 | Q195: 0
B196: =IF(ISBLANK('Program Requirements'!B241),"",('Program Requirements'!B241)) ->  | F196: =IF(ISBLANK('Program Requirements'!E241),"",'Program Requirements'!E241) ->  | K196: =IF(E196="Yes",('Program Requirements'!H241),"") ->  | L196: =IF(E196="Yes",('Program Requirements'!M241),"") ->  | M196: =IF(ISBLANK('Program Requirements'!N241),"",'Program Requirements'!N241) -> 0 | O196: 1226093.74 | Q196: 0
B197: =IF(ISBLANK('Program Requirements'!B242),"",('Program Requirements'!B242)) ->  | F197: =IF(ISBLANK('Program Requirements'!E242),"",'Program Requirements'!E242) ->  | K197: =IF(E197="Yes",('Program Requirements'!H242),"") ->  | L197: =IF(E197="Yes",('Program Requirements'!M242),"") ->  | M197: =IF(ISBLANK('Program Requirements'!N242),"",'Program Requirements'!N242) -> 0 | O197: 1226093.74 | Q197: 0
B198: =IF(ISBLANK('Program Requirements'!B243),"",('Program Requirements'!B243)) ->  | F198: =IF(ISBLANK('Program Requirements'!E243),"",'Program Requirements'!E243) ->  | K198: =IF(E198="Yes",('Program Requirements'!H243),"") ->  | L198: =IF(E198="Yes",('Program Requirements'!M243),"") ->  | M198: =IF(ISBLANK('Program Requirements'!N243),"",'Program Requirements'!N243) -> 0 | O198: 1226093.74 | Q198: 0
B199: =IF(ISBLANK('Program Requirements'!B244),"",('Program Requirements'!B244)) ->  | F199: =IF(ISBLANK('Program Requirements'!E244),"",'Program Requirements'!E244) ->  | K199: =IF(E199="Yes",('Program Requirements'!H244),"") ->  | L199: =IF(E199="Yes",('Program Requirements'!M244),"") ->  | M199: =IF(ISBLANK('Program Requirements'!N244),"",'Program Requirements'!N244) -> 0 | O199: 1226093.74 | Q199: 0
B200: =IF(ISBLANK('Program Requirements'!B245),"",('Program Requirements'!B245)) ->  | F200: =IF(ISBLANK('Program Requirements'!E245),"",'Program Requirements'!E245) ->  | K200: =IF(E200="Yes",('Program Requirements'!H245),"") ->  | L200: =IF(E200="Yes",('Program Requirements'!M245),"") ->  | M200: =IF(ISBLANK('Program Requirements'!N245),"",'Program Requirements'!N245) -> 0 | O200: 1226093.74 | Q200: 0
B201: =IF(ISBLANK('Program Requirements'!B246),"",('Program Requirements'!B246)) ->  | F201: =IF(ISBLANK('Program Requirements'!E246),"",'Program Requirements'!E246) ->  | K201: =IF(E201="Yes",('Program Requirements'!H246),"") ->  | L201: =IF(E201="Yes",('Program Requirements'!M246),"") ->  | M201: =IF(ISBLANK('Program Requirements'!N246),"",'Program Requirements'!N246) -> 0 | O201: 1226093.74 | Q201: 0
B202: =IF(ISBLANK('Program Requirements'!B247),"",('Program Requirements'!B247)) ->  | F202: =IF(ISBLANK('Program Requirements'!E247),"",'Program Requirements'!E247) ->  | K202: =IF(E202="Yes",('Program Requirements'!H247),"") ->  | L202: =IF(E202="Yes",('Program Requirements'!M247),"") ->  | M202: =IF(ISBLANK('Program Requirements'!N247),"",'Program Requirements'!N247) -> 0 | O202: 1226093.74 | Q202: 0
B203: =IF(ISBLANK('Program Requirements'!B248),"",('Program Requirements'!B248)) ->  | F203: =IF(ISBLANK('Program Requirements'!E248),"",'Program Requirements'!E248) ->  | K203: =IF(E203="Yes",('Program Requirements'!H248),"") ->  | L203: =IF(E203="Yes",('Program Requirements'!M248),"") ->  | M203: =IF(ISBLANK('Program Requirements'!N248),"",'Program Requirements'!N248) -> 0 | O203: 1226093.74 | Q203: 0
... 54 more rows

Sheet Private School
B1: ='Main Page'!$G$9 -> 2024-2025 | D1: School Division: | E1: ='Main Page'!$F$13 -> Albemarle County Public Schools | I1: Division Number: | J1: ='Main Page'!$F$14 -> 2 | K1: ='Main Page'!$B$6 -> Title I, Part A, Improving Basic Programs
B2: U. PRIVATE SCHOOL PARTICIPATION
B4: Each year, the school division must contact all eligible private (nonprofit) schools and engage in meaningful consultation on the availability of equitable services funded by Title I, Part A. (ESEA Section 1117(a) and Title VIII Uniform Provisions, Part F, Subpart 1).
B5: 1. | C5: Are there private nonprofit schools which students residing within the Title I attendance zone attend?
C6: X | D6: Yes (If yes, complete the remainder of this page.) | J6: No (If no, it is not necessary to complete the rest of this page.)
J8: No (If division participated in the bypass)
B10: 2. | C10: Place an "X" in the appropriate block(s) to indicate how private schools were notified of the availability of equitable services funded by Title I, Part A. (Copies of the notification must be kept on file for monitoring purposes.)
D12: Regular Mail | J12: Certified Mail
D14: Telephone Calls | I14: X | J14: Meetings
D16: Visits to the Private School | I16: X | J16: Other (Please specify) | M16: Email
B18: 3. | C18: Number of Public School Low-Income Children in Title I Schools | J18: =IF('Below 35% Low-Income'!L53>0,'Below 35% Low-Income'!L53,'35% and Above Low-Income'!L53) -> 1947.2
B19: 4. | C19: Number of Private School Low-Income Children Residing in Title I Attendance Zones | J19: =IF('35% and Above Low-Income'!K53>0,'35% and Above Low-Income'!K53,'Below 35% Low-Income'!K53) -> 15
B20: 5. | C20: Percentage used to determine proportionate share for equitable services. | J20: =J19/(J19+J18) -> 0.007644480685
B22: 6. | C22: Determining Set-Asides (These fields will calculate automatically once enrollment figures have been entered).
C23: a. Total Title I, Part A Allocation | K23: =Budget!N7 -> 1713686.78
C24: b1. Proportionate share of Title I funds available to provide equitable services - 35% and Above Low-Income | K24: =ROUND(K23*'35% and Above Low-Income'!T53,2) -> 13100.25
C25: b2. Proportionate share of Title I funds available to provide equitable services - Below 35% Low-Income | K25: =ROUND(K23*'Below 35% Low-Income'!T53,2) -> 0
C26: c1. Amount of funds for 1% for parent and family engagement (If LEA’s Title I allocation exceeds $500,000) - 35% and Above Low-Income | K26: =(K23*0.01)*'35% and Above Low-Income'!T53 -> 131.0024549
C27: c2. Amount of funds for 1% for parent and family engagement (If LEA’s Title I allocation exceeds $500,000) - Below 35% Low-Income | K27: =(K23*0.01)*'Below 35% Low-Income'!T53 -> 0
C28: d. School Division Admin set-aside (Optional)
C29: e1. Total Private School Set-Aside for Non-Administration - 35% and Above Low-Income | K29: =IF(K24>0,K24-K28,0) -> 13100.25
C30: e2. Total Private School Set-Aside for Non-Administration - Below 35% Low-Income | K30: =IF(K25>0,K25-K28,0) -> 0
C31: Has the required private school set-aside been met? - 35% and Above Low-Income | K31: =IF(SUM(Budget!H46)>=SUM(K24),"Yes","No - please review your entries.") -> Yes
C32: Has the required private school set-aside been met? - Below 35% Low-Income | K32: =IF(SUM(Budget!H46)>=SUM(K25),"Yes","No - please review your entries.") -> Yes
B34: 7. | C34: Determining additional set-asides as a result of Transferability. These fields will calculate automatically once budget and enrollment figures have been entered.
C35: a. Total Title I, Part A Transferability | K35: =Transferability!H9+Transferability!L9 -> 120097.83
C36: b1. Proportionate share of Title I funds available to provide equitable services - 35% and Above Low-Income | K36: =ROUND(K35*'35% and Above Low-Income'!T53,2) -> 918.09
C37: b2. Proportionate share of Title I funds available to provide equitable services - Below 35% Low-Income | K37: =ROUND(K35*'Below 35% Low-Income'!T53,2) -> 0
C38: c1. Amount of funds for 1% for parent and family engagement (If LEA’s Title I allocation exceeds $500,000) - 35% and Above Low-Income | K38: =(K35*0.01)*'35% and Above Low-Income'!T53 -> 9.180855417
C39: c2. Amount of funds for 1% for parent and family engagement (If LEA’s Title I allocation exceeds $500,000) - Below 35% Low-Income | K39: =(K35*0.01)*'Below 35% Low-Income'!T53 -> 0
C40: d. School Division Admin set-aside (Optional)
C41: e1. Total Private School Set-Aside for Non-Administration - 35% and Above Low-Income | K41: =IF(K36>0,K36-K40,0) -> 918.09
C42: e2. Total Private School Set-Aside for Non-Administration - Below 35% Low-Income | K42: =IF(K37>0,K37-K40,0) -> 0
C43: Has the required private school set-aside been met? - 35% and Above Low-Income | K43: =IF(SUM(Transferability!H48,Transferability!L48)>=SUM(K36),"Yes","No - please review your entries.") -> Yes
C44: Has the required private school set-aside been met? - Below 35% Low-Income | K44: =IF(SUM(Transferability!H48,Transferability!L48)>=SUM(K37),"Yes","No - please review your entries.") -> Yes
B46: Page 41
B47: ='Main Page'!$G$9 -> 2024-2025 | D47: School Division: | E47: ='Main Page'!$F$13 -> Albemarle County Public Schools | I47: Division Number: | J47: ='Main Page'!$F$14 -> 2 | K47: ='Main Page'!$B$6 -> Title I, Part A, Improving Basic Programs
B49: 8. | C49: Complete the chart below: • In Column A, list all private schools which students residing within the Title I attendance zones attend. • In Column C, enter the number of low-income students that attend the participating private school. • In Column D, enter the number of students in academic need attending the private school participating in services for the 2024-2025 award year. These students may not be low-income students but must reside in Title I attendance zones. • In Column E, enter the description of services provided for participating children. • In Column F, enter the amount of funds obligated to support eligible children.
B51: A | F51: B | G51: C | I51: D | K51: E | O51: F
B52: Private Schools | F52: ="Participation Status for " & 'Main Page'!$G$9 & " Award Year? (Yes/No) " -> Participation Status for 2024-2025 Award Year? (Yes/No) | G52: Number of Low-Income Private School Students that Reside in Title I Attendance Zones | I52: Number of Participating Children in Academic Need | K52: Description of Services | O52: Amount of Funding Obligated to Support Eligible Students
B53: Charlottesville Catholic School | F53: No
B54: Charlottesville Waldorf School | F54: No
B55: Community Christian Academy | F55: Yes | G55: 15 | I55: 7 | K55: Tutoring and Supplies | O55: 14018.34
B56: The Covenant School | F56: No
B57: Field School of Charlottesville | F57: No
B58: Free Union Country School | F58: No
B59: Keswick School | F59: No
B60: Miller School of Albemarle | F60: No
B61: Mountain Top Montessori | F61: No
B62: Peabody School | F62: No
B63: St. Anne's - Belfield | F63: No
B64: Tandem Friends School | F64: No
B65: University Montessori | F65: No
B104: Total Identified Students | G104: =SUM(G53:H103) -> 15 | I104: =SUM(I53:J103) -> 7 | O104: =SUM(O53:P103) -> 14018.34
B106: 9. | C106: Enter the private school services set-aside in the detailed budget description and Budget Summary.
B107: Page 42

Sheet School Improvement
B1: ='Main Page'!$G$9 -> 2024-2025 | D1: School Division: | E1: ='Main Page'!$F$13 -> Albemarle County Public Schools | I1: Division Number: | J1: ='Main Page'!$F$14 -> 2 | K1: ='Main Page'!$B$6 -> Title I, Part A, Improving Basic Programs
B2: V. SCHOOL IMPROVEMENT
B4: This section should only be completed if the school division has schools identified for Comprehensive Support and Improvement or Targeted Support and Improvement.
B5: Comprehensive Support and Improvement
B7: Describe how the local educational agency will carry out its responsibilities under Section 1111(d)(1). Please include the names of the schools in improvement.
B11: Targeted or Additional Targeted Support and Improvement
B13: Describe how the local educational agency will carry out its responsibilities under Section 1111(d)(2). Please include the names of the schools in improvement.
B14: TSI designated schools in ACPS will have enhanced central support and accountability measures in place for the 2024-2025 school year. This includes a liaison team assigned to each TSI school that meets with the principal bi-weekly to review their 90-day improvement plans and provide supports requested by the principal and school improvement teams. Liaison teams include a member of the Superintendent’s cabinet and two directors which could come from the Department of Instruction, Department of Strategic Planning and Accountability, or the Department of Professional Learning. Each school will be supported in developing 90-day improvement plans based on current needs as indicated from a variety of sources including performance on common quarterly assessments in reading, science and math. Each school is determining the most effective evidenced based interventions for their school and the division is committing to fully funding and monitoring those programs. At the start of each marking period, school principals will meet with division liaison teams to develop new 90-day improvement plans based on any emerging needs. All relevant data will be disaggregated for student subgroups to assess the progress of each individual group multiple times throughout the year. It is an expectation that this level of support will result in universal improvements in student outcome measures as indicated by performance on state SOL tests. Should improvements not be seen over the course of a three-year period, additional actions and supports will be implemented.
B16: Page 43

Sheet Skipped School Provision
B1: ='Main Page'!$G$9 -> 2024-2025 | D1: School Division: | E1: ='Main Page'!$F$13 -> Albemarle County Public Schools | I1: Division Number: | J1: ='Main Page'!$F$14 -> 2 | K1: ='Main Page'!$B$6 -> Title I, Part A, Improving Basic Programs
B2: W. SKIPPED SCHOOL PROVISION
B4: 1. | C4: If on the Allocation to Eligible Schools Table on the 35% Tab, a school was “skipped” that was eligible for Title I under the Eligible Attendance you selected, provide the name(s) of the school(s) in the box below. Include the rationale for choosing to “skip” the school(s) below.
B5: N/A
B7: Title I Section 1113(b)(1)(D)(i-iii):
B8: (i). | C8: The school meets the comparability requirements of Section 1118(c);
B9: (ii). | C9: The school is receiving supplemental funds from other state or local sources that are spent according to the requirements of Section 1114 or 1115; and
B10: (iii). | C10: The funds expended from such other sources equal or exceed the amount that would be provided under this part.
B12: Did the school(s) meet the criteria for the skipped school provision and did the division allocate the amount of funding to the skipped school(s) they would have received were they served under Title I, Part A?
B13: Place an "X" in the appropriate yes or no box.
D15: Yes | F15: No (The school(s) above cannot be skipped)
B17: 2. | C17: If yes, explain how the provision was met in the section below. Include the amount of funding provided and the funding source(s).
B20: Page 44

Sheet Neglected
B1: ='Main Page'!$G$9 -> 2024-2025 | D1: School Division: | E1: ='Main Page'!$F$13 -> Albemarle County Public Schools | I1: Division Number: | J1: ='Main Page'!$F$14 -> 2 | K1: ='Main Page'!$B$6 -> Title I, Part A, Improving Basic Programs
B2: X. NEGLECTED CHILDREN AND YOUTH
B4: All school divisions must complete this page.
B6: LEA Neglected Facility Contact
B7: Email Address
B8: Phone Number
B10: Provide the name of any residential neglected facilities that participated in the Title I, Part A neglected set-aside during the 2023-2024 school year and the number of students that received services ages 5-21.
B11: Neglected Facility Name | E11: Number of Students that Received Services Ages 5-21 (2023-2024) | G11: Contact Name from the Neglected Facility | J11: Location of Educational Services | M11: Contact Number and Email
B23: =VLOOKUP($J$1,Prefills!$H$6:$I$1457,2) -> 0 | C23: Total number of children and youth who are identified as neglected (year-to-date) for 2023-2024 based on the definition in Title I, Part D Section 1432(4)(A). (automatically populates)
B25: School divisions that have facilities that report one or more neglected students in the most recently submitted Title I, Part D, October Count under the neglected column must complete this tab. Please refer to the Guidelines, Instructions, and Assurances for more information.
C27: Check here if the local neglected facility has declined services. If this box is checked, the remaining items in this tab should be left blank.
B29: Page 45
B30: ='Main Page'!$G$9 -> 2024-2025 | D30: School Division: | E30: ='Main Page'!$F$13 -> Albemarle County Public Schools | I30: Division Number: | J30: ='Main Page'!$F$14 -> 2 | K30: ='Main Page'!$B$6 -> Title I, Part A, Improving Basic Programs
B31: X. NEGLECTED CHILDREN AND YOUTH (CONTINUED)
B32: A local educational agency shall reserve such funds as are necessary under this part to provide services comparable to those provided to children in schools funded under Title I, Part A, to serve (ii) children in local institutions for neglected children; and (iii) if appropriate, children in local institutions for delinquent children, and neglected or delinquent children in community day school programs. Section 1007(3)(A) The funds set aside from a LEA’s Title I, Part A allocation may be used: (1) to improve educational services for children and youth in local and state institutions for neglected or delinquent children and youth so that such children and youth have the opportunity to meet the same challenging state academic content standards and challenging State student academic achievement standards that all children in the state are expected to meet; (2) to provide such children and youth with the services needed to make a successful transition from institutionalization to further schooling or employment; and (3) to prevent at-risk youth from dropping out of school, and to provide dropouts, and children and youth returning from correctional facilities or institutions for neglected or delinquent children and youth, with a support system to ensure their continued education. Section 1401 (3)(A)
B34: 1. | C34: Describe the needs of the neglected students served identified during the needs assessment process. Include a brief summary of the needs assessment process and how services are coordinated with the neglected facilities or programs.
B37: 2. | C37: Describe the activities that will be implemented to address the identified need(s). Include the following information for each activity listed:
C38: a. | D38: Describe the facility and/or population that will be served.
C39: b. | D39: Describe each specific activity that will be implemented based on data analysis of neglected/delinquent children in local institutions or at-risk programs.
C40: c. | D40: Describe how the funds will be distributed to benefit neglected children being served.
B43: 3. | C43: Describe how Title I, Part A, set-aside neglected funds are coordinated with the Title I, Part D, Subpart 2, subgrants, if the division also receives those funds, as well as coordination with other federal, state, and local programs serving at-risk children and youth.
B46: 4. | C46: Describe the process the LEA will use to evaluate the effectiveness of the activities implemented to address the described needs.
B49: Guidance related to services for neglected students can be found on
B50: Virginia’s Title I, Part D website
B51: or by contacting Gueringe’ Ricardson, Title I Specialist, at Gueringe.Richardson@doe.virginia.gov or at (804) 750-8146.
B53: Page 46

Sheet Foster Care and Homeless
B1: ='Main Page'!$G$9 -> 2024-2025 | D1: School Division: | E1: ='Main Page'!$F$13 -> Albemarle County Public Schools | I1: Division Number: | J1: ='Main Page'!$F$14 -> 2 | K1: ='Main Page'!$B$6 -> Title I, Part A, Improving Basic Programs
B2: Y. FOSTER CARE AND HOMELESS
B4: Any LEA receiving Title I, Part A funds must include in its local plan a description of how the plan is coordinated with the McKinney-Vento Act. The local plan must describe services provided to any homeless child. (ESEA sections 1112(a)(1)(B) and (b)(6)). Content for this page and the homeless reservation should be completed in conjunction with the local homeless education liaison. (See US Department of Education 2017 Education for Homeless Children and Youths Program Non-Regulatory Guidance Section M on pages 39-43 for further detail.)
B6: Local Foster Care Education Liaison: | G6: Kevin Kirst
B8: 47 | C8: Total number of children and youth identified as foster care child (45 CFR 1355.20) in the school division (year-to-date) for the 2023-2024 school year.
B10: 1. | C10: How did the school division determine that the Title I, Part A set-aside is sufficient to meet the transportation needs of foster care students?
B11: Our Department of Social Services, Coordinator of Foster Care, and Transportation department work together when a BID meeting is needed, or special transportation needs to be provided. We follow our policy which is modeled on the state transportation model. Funding has not been a reason in any of our cases for why transportation is not provided. Students are placed in the schools that are in their best interests, and are able to be transported to those schools. ACDSS reports that there have been no transportation issues with foster cases. Therefore, there is no set aside for foster care.
B13: Local Homeless Education Liaison: | G13: Laura Brown
B15: 340 | C15: Total number of children and youth identified as homeless in the school division (year-to-date) for 2023-2024 based on the definition in Title IX, Part A, Section 725 (*place mouse curser over comment in cell B15 for definition).
B17: 2. | C17: Describe the process used to identify students experiencing homelessness and how the needs of homeless children and youths are determined.
B18: Albemarle County Homeless Department staff receive referrals on an ongoing basis from school staff, community agencies, and families via phone, email, text, and the school Shared Housing form which is utilized to identify potentially eligible students. Referring community providers include local shelters, preschool initiatives, housing resources, and the department of social services, amongst many others. Albemarle County Homeless staff provide division and community wide information and professional development regarding program eligibility, services, and the referral process. Students are referred to Homeless staff both at the time of school registration and upon experiencing a housing loss. The Homeless team partners with the division English Learner Welcome Center to identify students as they register for school. Once a family is referred, Homeless staff conduct an interview with the family, via phone or in person, to assess eligibility and complete the Homeless Student Service Plan. This plan is utilized internally within the department to identify and address educational, social-emotional, and basic student needs. Staff complete and regularly update the plan, which is used to capture required data, indicate eligibility specifications, track enrollments, identify needs, and specify support services. Additionally, notes are kept on file specifying services provided and communications with the family and community providers. The required information is gathered for each student and input into the local Homeless database. The required data is then entered into the division SIS system and maintained for accurate state reporting. Close collaboration is established with school staff, social workers, and other agency personnel to support and coordinate services. Individual academic performance is measured through Standards of Learning results, WIDA ACCESS for ELL levels, grade performance, and completion of graduation requirements. Tutoring, as well as connection to school-based tutoring resources, are provided. Trends in attendance and chronic absenteeism are used to inform areas of need and appropriate services. Homeless staff build strong rapport with families and maximize opportunities for needed resources through family engagement.
B20: 3. | C20: Describe the method used for determining the amount reserved to serve students experiencing homelessness.
C21: a. | D21: List staff (names and positions) consulted to determine the reservation. | I21: Craig Dommer, Director of Instruction - Tiered Support; Andrea Blount, Title I Coordinator; Deborah Maupin, Transportation Analyst I; Elaine Cecelski, Migrant and Homeless Specialist, Laura Brown, Homeless Liaison/Coordinator and Migrant Coordinator, Stephanie Grady, Management Analyst, Amy Hottinger, Budget and Grant Analyst; David Basme, Budget and Grant Analyst; Darby Vollmer, Management Analyst.
C22: b. | D22: What needs were identified? | I22: School transportation, support for school enrollment and attendance, tutoring, social-emotional needs, counseling, fund-raising, coordination, and collaboration were identified as areas of high need.
C23: c. | D23: What costs are associated with those needs? | I23: A portion of the Homeless Liaison's salary with benefits and tutoring funding are needed.
C24: d. | D24: What other school division funds are budgeted specifically to meet the needs of students experiencing homeless? | I24: School transportation for homeless students in the form of specially arranged bus routing and/or gas ($30,000), a portion of the Homeless Liaison's salary with benefits, supervision and Human Resources support for staff, computers and IT support, office space, county vehicles, travel expenses, mileage, and instructional materials and supplies are all provided by the school division.
B25: Page 47
B26: ='Main Page'!$G$9 -> 2024-2025 | D26: School Division: | E26: ='Main Page'!$F$13 -> Albemarle County Public Schools | I26: Division Number: | J26: ='Main Page'!$F$14 -> 2 | K26: ='Main Page'!$B$6 -> Title I, Part A, Improving Basic Programs
B27: Y. HOMELESS CHILDREN AND YOUTH (CONTINUED)
C29: e. | D29: How did the school division determine the Title I, Part A set-aside is sufficient to meet the needs of students experiencing homelessness? | I29: The set aside is based on student data, institutional history, costs, and increasing needs resulting from a national and local housing crisis. The Albemarle Title I Program supports the Homeless Program to ensure educational access and promote success for students experiencing homelessness.
C30: f. | D30: What process will the school division use to reassess how it meets the needs of these students throughout the year? | I30: Data, including grades, state assessments, four-year graduation rates, attendance, suspensions, transportation services, and enrollments, will be collected and reviewed on an ongoing basis to inform services. Information and data is shared with VDOE in the division annual report.
C31: g. | D31: How much of last year’s homeless set-aside was used to serve students experiencing homelessness? | I31: The homeless set-aside in the amount of $45,780.39 was used to serve students experiencing homelessness. Not all tutoring funds were used.
B33: 4. | C33: Describe the services provided to students experiencing homelessness by the Title I, Part A program to support their enrollment, attendance, and success. Include a description of the services provided with funds reserved under Title I, Part A, Section 1113(c)(3)(A)-(C). Place curser over this comment for the legislative text.
B34: Title I Part A supports the Albemarle Homeless "Families in Crisis" Program with partial support of the Homeless Liaison's salary and funds for hourly tutors. The Homeless Liaison collaborates with Title I staff to ensure that all students experiencing homelessness have equitable access to educational opportunities, as mandated by the McKinney-Vento Homeless Assistance Act. The Liaison develops and implements procedures to safeguard students' rights to expedient and appropriate educational access. The Liaison writes the supplementary grants and procures donations to enable the program to meet the unique needs of homeless students and their families.
B35: Services provided include needs assessments, resource collaboration and navigation, and coordination and provision of educational support services with an emphasis on immediate school enrollment, and academic and social-emotional support for students. Individualized tutoring is offered to students in need of academic support in collaboration with their teachers and school counselors. Services provided but not funded by Title I include school transportation, support for school continuity, immediate free lunch, school supplies/backpacks, food, clothing, resource access, and emergency shelter.
B37: *If an LEA has not identified any students experiencing homelessness during the last three school years, no set aside is required if the following McKinney-Vento Education of Homeless Children and Youth Program (Title IX, Part A) requirements have been fulfilled: a. The LEA can document outreach and coordination activities with other entities and agencies to identify homeless children and youths [Section 722(g)(6)(i)] b. Public notice of the educational rights of homeless children and youths is disseminated in locations frequented by parents or guardians of such children and youths, and unaccompanied youths, including schools, shelters, public libraries, and soup kitchens in a manner and form understandable to the parents and guardians of homeless children and youths, and unaccompanied youths [Section 722(g)(6)(iv)] c. The LEA can document that school personnel receive professional development and support to assist in the identification and support of homeless children and youths [Section 722(g)(6)(ix)]
B39: Guidance related to the local homeless education liaison, the definition of homelessness for educational purposes, identification strategies, professional development, and other services that can be provided through Title I, Part A, funding can be found on the Project HOPE-VA website: www.wm.edu/hope or by contacting Project HOPE-VA, Virginia’s Education for Homeless Children and Youth Program: phone: 757-221-4002 or email: homlss@wm.edu.
B41: Page 48

Sheet Early Childhood
B1: ='Main Page'!$G$9 -> 2024-2025 | D1: School Division: | E1: ='Main Page'!$F$13 -> Albemarle County Public Schools | I1: Division Number: | J1: ='Main Page'!$F$14 -> 2 | K1: ='Main Page'!$B$6 -> Title I, Part A, Improving Basic Programs
B2: Z. EARLY CHILDHOOD PROGRAM (if applicable)
B4: Number of Participating Students: | I4: 36
B5: Number of Eligible Students on Waiting List:
B6: Number of Participating Schools or Centers: | I6: 2
B7: Number of Title I Funded Teachers: | I7: 2
B8: Number of Title I Funded Paraprofessionals: | I8: 1.5
B9: Number, Titles and Brief Job Descriptions of Other Personnel Funded by Title I: • Be specific. Describe the type of personnel such as specialists, coaches, administrative and support staff including the number of each funded with Title I funds.
B10: Describe the Early Childhood Program expenditures, including how the expenditures relate to the staff on line 9: | I10: Title 1 allocates staffing to the PreK Program in the following way: a. 2 - Full-time Preschool Teachers (Red Hill & Agnor-Hurt) b. 1 - Full-time Preschool Teaching Assistant (Agnor -Hurt) c. 1 - Part-time Preschool Teaching Assistant (Red Hill) Title 1 funds a 2-week summer program known as Jumpstart which invites all currently enrolled VPI-Bright Stars students to participate in a Kindergarten Readiness experience.
B11: Average Number of Pupils Per Class/Average Class Size: | I11: 18
B12: Number of Classrooms: | I12: 2
B13: Title I Early Childhood Budget (Personnel and Program): | I13: 277385
B14: Does the total in I12 match cell P23 on the "35% and Above Low-Income" tab? | I14: =IF(I13=SUM('35% and Above Low-Income'!P23),"Yes","No - please review your entries.") -> Yes
B15: Does the total in I12 match cell P23 on the "Below 35% Low-Income" tab? | I15: =IF(I13=SUM('Below 35% Low-Income'!P23),"Yes","No - please review your entries.") -> Yes
B16: School Year Title I, Part A, Early Childhood First Established: | H16: FY | I16: 2005-06, Red Hill and 2016-17 at Agnor-Hurt
B17: Length of the Program Day (type X to left of selection): | J17: Half Day | M17: X | N17: Full Day
B18: Curriculum:
B19: Primary Curriculum | I19: The Creative Curriculum for PreSchool by Teaching Strategies
B20: Secondary Curriculum ( if applicable)
B21: Test/Evaluation Design:
B22: Primary Test | I22: EMAS,CBRS and Pre-K PALS
B23: Secondary Test ( if applicable)
B24: Other Early Childhood Programs with which Title I is collaborating: | I24: X | J24: Virginia Preschool Initiative | M24: X | N24: Head Start
I25: X | J25: Early Childhood Special Education
I26: X | J26: Others (specify) | L26: The Greater United Way of Charlottesville (Ready Regions Partner)
B27: Students Must Be: | I27: 4 | L27: 2024-09-30
I28: Age | K28: by | L28: Date
B30: Describe how the local educational agency will support, coordinate, and integrate services provided under this part with early childhood education programs at the local educational agency or individual school level, including plans for the transition of participants in such programs to local elementary school programs. This section must be completed if any school in the division, Title I or non-Title I, has an Early Childhood Program.
B31: ACPS initiates a Preschool Leadership Team which meets monthly to coordinate and collaborate regarding program needs, public awareness and continuous quality improvements; it includes coordinators and directors from Albemarle County Public Schools and Social Services, and Head Start. There are three preschool programs in Albemarle County, in addition to Title I: Bright Stars, MACAA's Head Start, and Early Childhood Special Education (ECSE). The four programs form the Albemarle County Preschool Network, which works to ensure that students receive equitable and excellent instruction across the programs. Collaboration includes support of professional development for teachers, parent training and workshops at individual schools, and enrichment activities that support success for all at-risk children.
B32: Page 49
B33: ='Main Page'!$G$9 -> 2024-2025 | D33: School Division: | E33: ='Main Page'!$F$13 -> Albemarle County Public Schools | I33: Division Number: | J33: ='Main Page'!$F$14 -> 2 | K33: ='Main Page'!$B$6 -> Title I, Part A, Improving Basic Programs
B34: Z. EARLY CHILDHOOD PROGRAM (CONTINUED)
B36: Provide a list of all schools and/or centers in your school division that house Title I, Part A, Early Childhood programs. Indicate the eligible Title I school zone(s) served by the school or center. In addition, include the total number of all Title I, Part A, Early Childhood teachers who are housed in each of the schools.
B37: List Schools and Early Childhood Centers with Title I, Part A, Early Childhood Programs
B38: School or Early Childhood Center Name | E38: Principal Name and Address | I38: Eligible Title I School Zone(s) Served | M38: Number of Title I Funded Teachers | O38: Number of Title I Funded Paraprofessionals
B39: Agnor-Hurt Elementary School | E39: Michael Irani, 3201 Berkmar Drive Charlottesville, VA 22901 | I39: Agnor-Hurt Elementary School | M39: 1 | O39: 1
B40: Red Hill Elementary School | E40: Nancy McCullen, 3901 Red Hill School Road North Garden, VA 22959 | I40: Red Hill Elementary School | M40: 1 | O40: 0.5
B67: Page 50

Sheet Expenditure Descriptions
B1: ='Main Page'!$G$9 -> 2024-2025 | D1: School Division: | E1: ='Main Page'!$F$13 -> Albemarle County Public Schools | I1: Division Number: | J1: ='Main Page'!$F$14 -> 2 | K1: ='Main Page'!$B$6 -> Title I, Part A, Improving Basic Programs
B2: EXPENDITURE ACCOUNT DESCRIPTIONS
B4: These accounts are for budgeting and recording expenditures of the educational agency for activities under its control. Below are definitions of the major expenditure categories. The descriptions provided are examples only. For further clarification on the proper expenditures of funds, contact your school division budget or finance office, the grant specialist in the Virginia Department of Education, or refer to the appropriate federal act.
B6: OBJECT CODE DEFINITIONS:
B7: (revised 4/8/21)
B9: 1000 | C9: PERSONAL SERVICES – Includes all compensation for the direct labor of persons in the employment of the local government. Salaries and wages paid to employees for full‐ and part‐time work, including overtime, shift differential, and similar compensation. Includes payments for time not worked, including sick leave, vacation, holidays, jury duty, military leave, and other paid absences that are earned during the reporting period. For the purposes of this report, the term “salaries” means all compensation including base wage. This also includes amounts paid through salary reduction plans, such as tax‐sheltered annuities and flexible benefit plans. Do not confuse this definition with the Virginia Retirement System (VRS) definition, which excludes supplements for retirement calculation purposes in some circumstances.
B11: 2000 | C11: EMPLOYEE BENEFITS – Job related benefits provided to employees as part of their total compensation. Fringe benefits include the employer’s portion of FICA, pensions, insurance (life, health, disability income, etc.) and employee allowances. NOTE: Fringe Benefits are a significant component of employee compensation and, like salaries and wages, are charged to the appropriate object of expenditure within each program. If possible, fringe benefit costs should be charged to the applicable educational program or activity on an ongoing basis. An alternative is to charge all fringe benefits to various benefit accounts. As part of the year‐end closing process, these accounts are closed, and all costs are allocated to the appropriate educational program or activity. The following methods are suggested for allocating such cost at year‐end. If these methods do not provide reasonable allocations based on circumstances within the school division, then the school division should use another reasonable allocation method. Consistency in application should be maintained at all times. 1) Allocation by percentage of payroll dollars 2) Allocation by Head Count 3) Direct to Program or Activity
B13: 3000 | C13: PURCHASED/CONTRACTUAL SERVICES – Services acquired from outside sources (i.e., private vendors, public authorities, or other governmental entities). Purchase of the service is on a fee basis or fixed time contract basis. Payments for rentals and utilities are not included in this account description. Allowable payments would be to individual or firms that are independent contractors and not employees of the grantee or sub‐grantee organization. The word honorarium is sometimes used to characterize such payments; the term “fee” is preferred. Food Purchases – Prepared meals, working meals, and/or catered services purchased through a vendor are included in this object code. Reimbursement is capped at the per diem rate for the meal listed according to the state travel regulations. Examples for this object code include meals provided during day‐long professional development sessions, or meals provided to support attendance at family engagement activities. Food purchased from catering services and restaurants such as Pizza Hut, Panera Bread, and Subway is included in this object code. Transportation Services Public Carriers – Payments to public carriers for transportation of pupils on vehicles that are used by the public. Include payments for pupils transported in intra‐city transit buses, taxicabs, airplanes, and intercity/interstate passenger buses. Transportation Services Private Carriers – Payments (either cash or tokens) to parents for transportation of pupils in lieu of providing transportation on school buses. Include allowable payments to parents for pupils attending public, private, and non‐sectarian schools. Include costs associated with transporting special education students in school board‐owned vehicles to and from school. Transportation Services by Contract – Payments to private owners of school buses who contract with the school board to transport pupils to and from public schools. Include payments to owners of private vehicles that contract with the school board to transport pupils to and from designated public and private schools.
C14: Purchase of Service from Other Governmental Entities – Payments for services purchased from other governmental entities (i.e., other local governments, public authorities, state agencies, and other LEAs) on a contract/fee basis. Tuition payments to other local governments for a jointly operated center are not included here but are reported under “Payments to Joint Operations” (object code 7000). Tuition Paid – Other Divisions In‐State, Tuition Paid – Other Divisions Out‐of‐State, and Tuition Paid – Private Schools are included in this object code.
B16: 4000 | C16: INTERNAL SERVICES – Charges from an Internal Service Fund to other functions/activities/elements of the local government for the use of intergovernmental services, such as data processing, automotive/motor pool, central purchasing/central stores, print shop, and risk management. These services are provided by internal services within the School District and possibly the county but not a vendor. Food Purchases – Food purchased from the food services department of a school division or sub‐grantee equivalent to support professional development or family engagement events is included in this object code. For example, internal expenses for school cafeterias to provide meals to support attendance at family engagement activities are included in this object code.
B17: Page 51
B18: 5000 | C18: OTHER CHARGES – Include expenditures that support the use of programs. Includes expenditures that support the program, including utilities (maintenance and operation of plant), staff/administrative/consultant travel, office phone charges, training, leases/rental, indirect cost, and other. Food Purchases – Food Purchases under this object code is restricted to food purchases related to travel reimbursement for meals only (see Travel below). If the sub‐recipient’s internal travel policies conform to state travel regulations, reimbursement is allowable at per diem meals rates according to state travel regulations. If the sub‐recipient’s internal travel policies require reimbursement for the cost of each meal, reimbursement is capped at the per diem rate for the meal listed according to the state travel regulations. Sub‐recipients must elect either meals per diem or per meals costs as their internal travel policy. Telecommunications – Include expenditures for recurring telecommunications services for the use of on‐line computer technology (e.g., telephone/telecommunications line charges). Telephone charges for line service for Internet connectivity and the Electronic Classroom program. Package pricing from a vendor for Accident or cyber‐risk insurance, LTE mobile carrier data plans, Internet access via an Internet Service Provider. Package pricing from a vendor for hardware, content filtering, data plans, extended warranty services and other components of the package when no breakout pricing is available. Utilities – Payments for heat, electricity, water, and sewer services regardless of whether the service is provided by a private enterprise authority or an enterprise fund operated by a local government. Communications – Payments for postal, messenger, and telecommunications services, typically office voice telephone charges. (Telecommunication costs directly related to technology uses should be coded under 6000.) In addition, office telephone charges would be coded under this code. Insurance – Payments for insurance except those that relate to personal services (i.e., hospitalization, group life, worker’s compensation, unemployment).
C19: Leases and Rentals – Includes payments for leases that are not capitalized and rental of land, structures, and equipment. Do not include payments made under a lease‐purchase agreement. Travel – includes payments for travel reimbursement for staff/administrative/consultant travel. These are travel costs that are being reimbursed directly to travelers. These costs may include lodging, mileage, meals, and incidentals as allowable according to state travel regulations or documented sub‐recipient internal travel policies. If the sub‐recipient does not have documented internal travel policies, state travel regulations will prevail. Contributions to Other Entities – Includes payments to other governmental entities or community organizations that are not related to the direct purchase of a service on a fee basis (which is reported under object code 3000) or payments to joint operations (which are reflected under object code 7000). Public Assistance Payments – Payments to individuals for public assistance programs (general government use only). Miscellaneous Other Charges – Includes expenditures that support the program, including indirect costs and other costs.
B21: 6000 | C21: MATERIALS AND SUPPLIES – Includes articles and commodities that are consumed or materially altered when used and minor equipment that is not capitalized. This includes any equipment purchased under $5,000, unless the LEA has set a lower capitalization threshold. Therefore, computer equipment under $5,000 would be reported in “materials and supplies.” Food Purchases – Food items purchased from a grocery store or its equivalent for snacks or breaks is included in this object code. Examples include bottled water, granola bars, cookies, and fruit purchased from a store such as Wal‐Mart, Food Lion, Costco, etc. Prepared meals is not included in this object code; see object code 3000 for prepared/working/catered meals as purchased/contracted services. Vehicle and Powered Equipment Fuels – Gasoline, lubricating oils, or such other fuel used in the operation of vehicles and powered equipment (e.g., lawnmowers) purchased from private sources or governmental agencies. Vehicle and Powered Equipment Supplies – Tires, spark plugs, batteries, and chains used in the operation of vehicles and powered equipment purchased from private sources or governmental agencies. Textbooks – All textbooks and workbooks purchased to be used in the classroom. Instructional Materials – Books (not textbooks) and other materials.
C22: Technology Software/On‐line Content – Include expenditures for videodiscs and computer programs used in the classroom for instructional purposes, operating system software (i.e., standalone software, not software that is pre‐installed and included in hardware costs), application software, and on‐line or downloadable software and content. Include expenditures for both additions and replacement. Non‐Capitalized Technology Hardware – Include expenditures for hardware or classroom technology equipment that is not capitalized. Non‐Capitalized Technology Infrastructure – Include expenditures for technology infrastructure that is not capitalized.
B23: Page 52
B24: 8000 | C24: CAPITAL OUTLAY – Note: Indirect cost cannot be claimed against capital outlay and equipment. Outlays that result in the acquisition of or additions to fixed assets. Capital Outlay includes the purchase of fixed assets both replacement and/or additional. Capital Outlay Replacement Technology – Hardware Replacements – Include capital outlay for replacement of hardware or classroom technology equipment. (For further clarification on which expenditures should be included in this object code, see the “Special Note” below). Technology – Infrastructure Replacements – Include capital outlay for replacement of technology infrastructure. (For further clarification on which expenditures should be included in this object code, see the “Special Note” below). Capital Outlay Additions – Include machinery, equipment, furniture, fixtures, communications equipment, motor vehicles, etc. that are capitalized. Technology – Hardware Additions – Include capital outlay for additional hardware or classroom technology equipment. (For further clarification on which expenditures should be included in this object code, see the “Special Note” below). Technology – Infrastructure Additions – Include capital outlay for additional technology infrastructure. (For further clarification on which expenditures should be included in this object code, see the “Special Note” below).
C25: Special Note ‐ Classification of Hardware and Infrastructure Expenditures: Report expenditures under technology “hardware” for computers, associated peripheral equipment, and other specialized technology equipment. Computers include desktop and laptop machines, handheld computers (i.e., Personal Digital Assistants or PDAs), and mainframe machines. Peripheral equipment includes devices attached to computers, such as monitors, keyboards, disk drives, modems, printers, scanners, cameras and speakers, etc. Report other specialized computer devices under technology “hardware” such as fax‐back and voice‐mail resources; videoconferencing and other distance education tools, including satellite transmitters and receivers; cable‐based receivers; and modem or codec‐based video equipment; projection devices, from transparent and opaque projectors to video monitors; and graphing calculators and other specialized computational aids. Report expenditures under technology “infrastructure” for equipment and devices that enable the linking of computers or video hardware to networks (such as routers, hubs, switches, access servers, modems, or codecs). Infrastructure also refers to cabling installations, whether wire, fiber optic, or coaxial, as well as electrical capacity expansion or HVAC upgrades to support networks. In wireless networking systems, include receivers and transmitters under infrastructure.
B26: Page 53

Sheet General Assurances
B1: ='Main Page'!$G$9 -> 2024-2025 | D1: School Division: | E1: ='Main Page'!$F$13 -> Albemarle County Public Schools | I1: Division Number: | J1: ='Main Page'!$F$14 -> 2 | K1: ='Main Page'!$B$6 -> Title I, Part A, Improving Basic Programs
B2: GENERAL ASSURANCES
B4: Title I, Part A | F4: Improving Basic Programs Operated by Local Educational Agencies
B5: Title I, Part C | F5: Education of Migratory Children
B6: Title I, Part D, Subpart 2 | F6: Prevention and Intervention Programs for Children and Youth Who Are Neglected, Delinquent, or At-Risk
B7: Title II, Part A | F7: Supporting Effective Instruction
B8: Title III, Part A | F8: Language Instruction for English Learners and Immigrant Students
B9: Title IV, Part A | F9: Student Support and Academic Enrichments Grants
B10: Title V, Part B, Subpart 2 | F10: Rural and Low-Income School Program
B12: The school division/grantee assures:
B13: I. | C13: Each program will be administered in accordance with all applicable statutes, regulations, program plans, and applications;
B14: II. | C14: The control of funds provided under each program and title to property acquired with program funds will be in a public agency, a nonprofit private agency, institution, organization, or an Indian tribe, if the law authorizing the program provides for assistance to those entities;
B15: III. | C15: The public agency, nonprofit private agency, institution, organization, or Indian tribe, will administer the funds and property to the extent required by the authorizing statutes;
B16: IV. | C16: It will adopt and use proper methods of administering each program, including -
C17: A. | D17: The enforcement of any obligations imposed by law on agencies, institutions, organizations, and other recipients responsible for carrying out each program;
C18: B. | D18: The correction of deficiencies in program operations that are identified through audits, monitoring, or evaluation and that:
D19: 1. | E19: It will maintain fiscal effort in support of free public education;
D20: 2. | E20: It will provide services with state and local funds that are at least comparable to services provided in schools and areas not receiving special federal funds;
D21: 3. | E21: The majority of the resources in the school division are derived from nonfederal funds;
D22: 4. | E22: It is in compliance with the requirements in Title VIII, Section 8524 and has no policy that prevents, or otherwise denies participation in, constitutionally protected prayer in public elementary and secondary schools;
D23: 5. | E23: It will comply with the audit requirements for each program;
D24: 6. | E24: The federal funds are used to supplement, not supplant regular nonfederal funds;
